{"text_format":"1","workbook":"xlsx","n_sheets":8,"sheets":["INTRO","COUNTRY_INFO","DEC","ALB_MBD","PZQ","IVM","SUMMARY","SHIPMENT"],"not_rendered":{"charts":0,"images":2,"macros":1,"external_links":0,"defined_names":4,"comments":8,"pivot_tables":0},"unopened":[],"bounds":{"document_bytes":16777216,"sheet_cells":100000,"rows_first":2000,"rows_last":500,"rows_between":2000,"halvings":0,"cell_chars":16384,"cell_head_chars":4096},"cells_cut":0,"cells_raw":0,"read":"whole","date_system":"1900"}

{"sheet":"INTRO","index":0,"n_rows":50,"n_cols":5,"rows_kept":50,"cut":false,"hidden":false,"merged":[[21,1,21,4],[7,2,7,4],[11,1,11,4],[4,1,4,4],[10,2,10,4],[20,2,20,4],[17,1,17,4],[13,1,13,4],[18,2,18,4],[8,2,8,4],[12,1,12,4],[16,1,16,4],[14,1,14,4],[15,1,15,4],[9,2,9,4],[49,1,49,2],[46,1,46,4],[38,1,38,2],[40,1,40,2],[42,1,42,2],[47,1,47,2],[44,1,44,2],[48,1,48,2],[24,1,24,4],[34,1,34,2],[0,2,0,4],[36,1,36,2],[22,2,23,4],[25,2,26,4],[27,1,27,4],[32,1,32,2],[29,1,29,4],[30,1,30,4],[28,2,28,4],[2,1,2,4],[1,1,1,4],[5,1,5,4],[3,1,3,4],[19,1,19,4]]}
[null,null,"The current version should be used in countries endemic for Loasis"]
[null,"Joint request for selected PC medicines"]
[]
[null,"As part of global efforts to accelerate expansion of preventive chemotherapy (PC) for control and elimination of lymphatic filariasis, schistosomiasis and soil-transmitted helminthiases, the World Health Organization (WHO) facilitates the supply of albendazole 400 mg tablets (GSK) to national lymphatic filariasis elimination programmes and national soil-transmitted helminth control programmes; diethylcarbamazine citrate 100 mg tablets (Eisai) to national lymphatic filariasis elimination programmes; mebendazole 500 mg tablets (J&J) for national soil-transmitted helminth control programmes; and praziquantel 600 mg tablets (Merck KGaA)  for school-age children to national schistosomiasis control programmes. WHO also collaborates to supply ivermectin 3 mg tablets (Merck) for onchocerciasis and lymphatic filariasis donation programmes.  \nThis Excel-based tool is designed to assist countries in quantifying the number of tablets of relevant PC medicines required to reach the planned target population and districts for the year of request. Output of the tool is a joint request for PC medicines, which can be printed, signed and submitted to WHO to request these medicines."]
[]
[null,"Structure of the application (worksheets):"]
[]
[null,"INTRO","This worksheet includes guides on how to complete the joint request for selected PC medicines and information about the status of PC for endemic diseases in the country."]
[null,"COUNTRY_INFO","This worksheet includes information about administrative structure of the country, population by age group, status of endemicity for each disease, population requiring PC and planned interventions."]
[null,"DEC, ALB_MBD, PZQ and IVM","These worksheets include information about endemic districts targeted for treatment with specified PC medicines, treatment plan, and number of tablets required and requested. "]
[null,"SUMMARY","This worksheet includes summary of number of tablets requested, information about stock, and date for submission of requested medicines. Before generating the report (run macros) please select the medicine for which the report is needed. Follow the same rule to see the number of people to be treated for the specific disease. \nThis worksheet should be printed and submitted as a joint request for selected PC medicines (see the instruction for submission in the SUMMARY worksheet)."]
[]
[null,"Instruction for data entry"]
[]
[null,"Most of the cells in the above-mentioned worksheets include formula that are calculated automatically according to the treatment policy recommended by WHO for each disease.\nSee the link http://www.who.int/neglected_diseases/preventive_chemotherapy/pct_manual/en/index.html"]
[]
[null,"Please enter your data into the cells according to their colour code:"]
[]
[null,null,"White - cell is not protected. Please enter the value of the requested indicator."]
[]
[null,null,"Yellow - cell is protected and includes name of indicator. No data entry required."]
[]
[null,null,"Orange - cell is not protected and includes a drop-down menu. Please select the value from the drop-down list."]
[]
[]
[null,null,"Green - cell is not protected and includes formula. Please change the value only if your data are different from those that are calculated automatically."]
[]
[]
[null,null,"Blue - cell is protected and includes formula. No data entry required."]
[]
[null,"Country data"]
[]
[null,"COUNTRY",null,null,"CAR"]
[]
[null,"Year for request of the medicine",null,null,2018]
[]
[null,"Is country endemic for lymphatic filariasis (LF)?",null,null,"Endemic"]
[]
[null,"Is country endemic for onchocerciasis (ONCHO)?",null,null,"Endemic"]
[]
[null,"Is country endemic for soil-transmitted helminthiases (STH)?",null,null,"Endemic"]
[]
[null,"Is country endemic for schistosomiasis (SCH)?",null,null,"Endemic"]
[]
[null,"How many administrative units in the country?",null,null,17]
[]
[null,"If demographical data at the second administrative level are not available by age group, please enter the proportion (%) of population by age group in the country. If data are available, please leave these cells blank."]
[null,"Preschool-age children (PreSAC) - aged 1-4 years",null,null,0.1381]
[null,"School-age children (SAC) - aged 5-14 years",null,null,0.22700000000000001]
[null,"Adults - aged 15 years and older",null,null,0.59989999999999999]

{"sheet":"COUNTRY_INFO","index":1,"n_rows":25,"n_cols":26,"rows_kept":25,"cut":false,"hidden":false,"merged":[[3,20,3,23],[5,20,5,23],[7,0,7,19],[5,3,5,6],[5,7,5,11],[5,12,5,15],[5,16,5,19],[3,0,3,2],[3,7,3,11],[3,16,3,19],[5,0,5,2]]}
["COUNTRY INFORMATION"]
["Administrative structure, population by age group, status of endemicity and planned interventions"]
[]
["TOTAL",null,null,{"$f":"SUM(D$9:D$1000)","v":5456720},{"$f":"SUM(E$9:E$1000)","v":753573},{"$f":"SUM(F$9:F$1000)","v":1238676},{"$f":"SUM(G$9:G$1000)","v":3273485},null,null,null,null,null,{"$f":"SUM(M$9:M$1000)","v":2622572},{"$f":"SUM(N$9:N$1000)","v":2676865},{"$f":"SUM(O$9:O$1000)","v":957501},{"$f":"SUM(P$9:P$1000)","v":947879.77}]
[]
["Country administrative structure",null,null,"Population",null,null,null,"Endemicity",null,null,null,null,"Population requiring PC",null,null,null,"Number of treatment\nrounds planned for the year",null,null,null,"Epidemiological surveys\nplanned for the year"]
["Country","Province/State","District","Total","PreSAC","SAC","Adults","LF","Oncho","STH","SCH","Loa","LF","Oncho","STH","SCH","LF","Oncho","STH","SCH","LF","Oncho","STH","SCH","IU_ID","IU_Name"]
[]
[{"$f":"IF(INTRO!$E$33<>0,INTRO!$E$33, \" \")","v":"CAR"},"Région Sanitaire N°1","Ombella-Mpoko",493822,{"$f":"IF(INTRO!$E$48=\"\",\"\",ROUND($D9*INTRO!$E$48,0))","v":68197},{"$f":"IF(INTRO!$E$49=\"\",\"\",ROUND($D9*INTRO!$E$49,0))","v":112098},{"$f":"IF(INTRO!$E$50=\"\",\"\",ROUND($D9*INTRO!$E$50,0))","v":296244},1,0,2,3,1,{"$f":"IF(INTRO!$E$37=\"Endemic\",IF($H9>0,IF($H9=4,\"Unknown\",IF($H9=99,\"Stopped\",$D9)),0),\"Not required\")","v":493822},{"$f":"IF(INTRO!$E$39=\"Endemic\", IF($I9>0, IF($I9=4,\"Unknown\",IF($I9=99,\"Stopped\",$D9)), 0),\"Not required\")","v":0},{"$f":"IF(INTRO!$E$41=\"Endemic\", IF(AND($J9>1,$J9<5), IF($J9=4, \"Unknown\", E9+F9), 0),\"Not required\")","v":180295},{"$f":"IF(INTRO!$E$43=\"Endemic\", IF(AND($K9>0,$K9<5), IF($K9=4,\"Unknown\", IF($K9=1, $F9*0.33, IF($K9=2, $F9*0.5+$G9*0.2, SUM(F9:G9)))), 0),\"Not required\")","v":408342},1,0,1,1,null,"Yes",null,null,9654,"Ombella-Mpoko"]
[{"$f":"IF(INTRO!$E$33<>0,INTRO!$E$33, \" \")","v":"CAR"},"Région Sanitaire N°1","Lobaye",341754,{"$f":"IF(INTRO!$E$48=\"\",\"\",ROUND($D10*INTRO!$E$48,0))","v":47196},{"$f":"IF(INTRO!$E$49=\"\",\"\",ROUND($D10*INTRO!$E$49,0))","v":77578},{"$f":"IF(INTRO!$E$50=\"\",\"\",ROUND($D10*INTRO!$E$50,0))","v":205018},1,0,2,1,1,{"$f":"IF(INTRO!$E$37=\"Endemic\",IF($H10>0,IF($H10=4,\"Unknown\",IF($H10=99,\"Stopped\",$D10)),0),\"Not required\")","v":341754},{"$f":"IF(INTRO!$E$39=\"Endemic\", IF($I10>0, IF($I10=4,\"Unknown\",IF($I10=99,\"Stopped\",$D10)), 0),\"Not required\")","v":0},{"$f":"IF(INTRO!$E$41=\"Endemic\", IF(AND($J10>1,$J10<5), IF($J10=4, \"Unknown\", E10+F10), 0),\"Not required\")","v":124774},{"$f":"IF(INTRO!$E$43=\"Endemic\", IF(AND($K10>0,$K10<5), IF($K10=4,\"Unknown\", IF($K10=1, $F10*0.33, IF($K10=2, $F10*0.5+$G10*0.2, SUM(F10:G10)))), 0),\"Not required\")","v":25600.74},1,0,1,1,null,"Yes",null,null,9649,"Lobaye"]
[{"$f":"IF(INTRO!$E$33<>0,INTRO!$E$33, \" \")","v":"CAR"},"Région Sanitaire N°2","Mambéré-Kadéï",504992,{"$f":"IF(INTRO!$E$48=\"\",\"\",ROUND($D11*INTRO!$E$48,0))","v":69739},{"$f":"IF(INTRO!$E$49=\"\",\"\",ROUND($D11*INTRO!$E$49,0))","v":114633},{"$f":"IF(INTRO!$E$50=\"\",\"\",ROUND($D11*INTRO!$E$50,0))","v":302945},1,0,3,1,1,{"$f":"IF(INTRO!$E$37=\"Endemic\",IF($H11>0,IF($H11=4,\"Unknown\",IF($H11=99,\"Stopped\",$D11)),0),\"Not required\")","v":504992},{"$f":"IF(INTRO!$E$39=\"Endemic\", IF($I11>0, IF($I11=4,\"Unknown\",IF($I11=99,\"Stopped\",$D11)), 0),\"Not required\")","v":0},{"$f":"IF(INTRO!$E$41=\"Endemic\", IF(AND($J11>1,$J11<5), IF($J11=4, \"Unknown\", E11+F11), 0),\"Not required\")","v":184372},{"$f":"IF(INTRO!$E$43=\"Endemic\", IF(AND($K11>0,$K11<5), IF($K11=4,\"Unknown\", IF($K11=1, $F11*0.33, IF($K11=2, $F11*0.5+$G11*0.2, SUM(F11:G11)))), 0),\"Not required\")","v":37828.89},1,0,1,1,null,null,null,null,9650,"Mambéré-Kadéï"]
[{"$f":"IF(INTRO!$E$33<>0,INTRO!$E$33, \" \")","v":"CAR"},"Région Sanitaire N°2","Sangha-Mbaéré",139919,{"$f":"IF(INTRO!$E$48=\"\",\"\",ROUND($D12*INTRO!$E$48,0))","v":19323},{"$f":"IF(INTRO!$E$49=\"\",\"\",ROUND($D12*INTRO!$E$49,0))","v":31762},{"$f":"IF(INTRO!$E$50=\"\",\"\",ROUND($D12*INTRO!$E$50,0))","v":83937},1,0,2,0,1,{"$f":"IF(INTRO!$E$37=\"Endemic\",IF($H12>0,IF($H12=4,\"Unknown\",IF($H12=99,\"Stopped\",$D12)),0),\"Not required\")","v":139919},{"$f":"IF(INTRO!$E$39=\"Endemic\", IF($I12>0, IF($I12=4,\"Unknown\",IF($I12=99,\"Stopped\",$D12)), 0),\"Not required\")","v":0},{"$f":"IF(INTRO!$E$41=\"Endemic\", IF(AND($J12>1,$J12<5), IF($J12=4, \"Unknown\", E12+F12), 0),\"Not required\")","v":51085},{"$f":"IF(INTRO!$E$43=\"Endemic\", IF(AND($K12>0,$K12<5), IF($K12=4,\"Unknown\", IF($K12=1, $F12*0.33, IF($K12=2, $F12*0.5+$G12*0.2, SUM(F12:G12)))), 0),\"Not required\")","v":0},1,0,1,0,null,null,null,null,9658,"Sangha-Mbaéré"]
[{"$f":"IF(INTRO!$E$33<>0,INTRO!$E$33, \" \")","v":"CAR"},"Région Sanitaire N°2","Nana-Mambéré",323468,{"$f":"IF(INTRO!$E$48=\"\",\"\",ROUND($D13*INTRO!$E$48,0))","v":44671},{"$f":"IF(INTRO!$E$49=\"\",\"\",ROUND($D13*INTRO!$E$49,0))","v":73427},{"$f":"IF(INTRO!$E$50=\"\",\"\",ROUND($D13*INTRO!$E$50,0))","v":194048},4,0,4,4,1,{"$f":"IF(INTRO!$E$37=\"Endemic\",IF($H13>0,IF($H13=4,\"Unknown\",IF($H13=99,\"Stopped\",$D13)),0),\"Not required\")","v":"Unknown"},{"$f":"IF(INTRO!$E$39=\"Endemic\", IF($I13>0, IF($I13=4,\"Unknown\",IF($I13=99,\"Stopped\",$D13)), 0),\"Not required\")","v":0},{"$f":"IF(INTRO!$E$41=\"Endemic\", IF(AND($J13>1,$J13<5), IF($J13=4, \"Unknown\", E13+F13), 0),\"Not required\")","v":"Unknown"},{"$f":"IF(INTRO!$E$43=\"Endemic\", IF(AND($K13>0,$K13<5), IF($K13=4,\"Unknown\", IF($K13=1, $F13*0.33, IF($K13=2, $F13*0.5+$G13*0.2, SUM(F13:G13)))), 0),\"Not required\")","v":"Unknown"},0,0,0,0,null,"Yes",null,null,9653,"Nana-Mambéré"]
[{"$f":"IF(INTRO!$E$33<>0,INTRO!$E$33, \" \")","v":"CAR"},"Région Sanitaire N°3","Ouham",511119,{"$f":"IF(INTRO!$E$48=\"\",\"\",ROUND($D14*INTRO!$E$48,0))","v":70586},{"$f":"IF(INTRO!$E$49=\"\",\"\",ROUND($D14*INTRO!$E$49,0))","v":116024},{"$f":"IF(INTRO!$E$50=\"\",\"\",ROUND($D14*INTRO!$E$50,0))","v":306620},4,1,4,4,1,{"$f":"IF(INTRO!$E$37=\"Endemic\",IF($H14>0,IF($H14=4,\"Unknown\",IF($H14=99,\"Stopped\",$D14)),0),\"Not required\")","v":"Unknown"},{"$f":"IF(INTRO!$E$39=\"Endemic\", IF($I14>0, IF($I14=4,\"Unknown\",IF($I14=99,\"Stopped\",$D14)), 0),\"Not required\")","v":511119},{"$f":"IF(INTRO!$E$41=\"Endemic\", IF(AND($J14>1,$J14<5), IF($J14=4, \"Unknown\", E14+F14), 0),\"Not required\")","v":"Unknown"},{"$f":"IF(INTRO!$E$43=\"Endemic\", IF(AND($K14>0,$K14<5), IF($K14=4,\"Unknown\", IF($K14=1, $F14*0.33, IF($K14=2, $F14*0.5+$G14*0.2, SUM(F14:G14)))), 0),\"Not required\")","v":"Unknown"},0,1,0,0,null,null,null,null,9656,"Ouham"]
[{"$f":"IF(INTRO!$E$33<>0,INTRO!$E$33, \" \")","v":"CAR"},"Région Sanitaire N°3","Ouham-Pendé",595959,{"$f":"IF(INTRO!$E$48=\"\",\"\",ROUND($D15*INTRO!$E$48,0))","v":82302},{"$f":"IF(INTRO!$E$49=\"\",\"\",ROUND($D15*INTRO!$E$49,0))","v":135283},{"$f":"IF(INTRO!$E$50=\"\",\"\",ROUND($D15*INTRO!$E$50,0))","v":357516},4,1,4,4,0,{"$f":"IF(INTRO!$E$37=\"Endemic\",IF($H15>0,IF($H15=4,\"Unknown\",IF($H15=99,\"Stopped\",$D15)),0),\"Not required\")","v":"Unknown"},{"$f":"IF(INTRO!$E$39=\"Endemic\", IF($I15>0, IF($I15=4,\"Unknown\",IF($I15=99,\"Stopped\",$D15)), 0),\"Not required\")","v":595959},{"$f":"IF(INTRO!$E$41=\"Endemic\", IF(AND($J15>1,$J15<5), IF($J15=4, \"Unknown\", E15+F15), 0),\"Not required\")","v":"Unknown"},{"$f":"IF(INTRO!$E$43=\"Endemic\", IF(AND($K15>0,$K15<5), IF($K15=4,\"Unknown\", IF($K15=1, $F15*0.33, IF($K15=2, $F15*0.5+$G15*0.2, SUM(F15:G15)))), 0),\"Not required\")","v":"Unknown"},0,1,0,0,null,null,null,null,9657,"Ouham-Pendé"]
[{"$f":"IF(INTRO!$E$33<>0,INTRO!$E$33, \" \")","v":"CAR"},"Région Sanitaire N°4","Ouaka",390984,{"$f":"IF(INTRO!$E$48=\"\",\"\",ROUND($D16*INTRO!$E$48,0))","v":53995},{"$f":"IF(INTRO!$E$49=\"\",\"\",ROUND($D16*INTRO!$E$49,0))","v":88753},{"$f":"IF(INTRO!$E$50=\"\",\"\",ROUND($D16*INTRO!$E$50,0))","v":234551},1,1,2,1,0,{"$f":"IF(INTRO!$E$37=\"Endemic\",IF($H16>0,IF($H16=4,\"Unknown\",IF($H16=99,\"Stopped\",$D16)),0),\"Not required\")","v":390984},{"$f":"IF(INTRO!$E$39=\"Endemic\", IF($I16>0, IF($I16=4,\"Unknown\",IF($I16=99,\"Stopped\",$D16)), 0),\"Not required\")","v":390984},{"$f":"IF(INTRO!$E$41=\"Endemic\", IF(AND($J16>1,$J16<5), IF($J16=4, \"Unknown\", E16+F16), 0),\"Not required\")","v":142748},{"$f":"IF(INTRO!$E$43=\"Endemic\", IF(AND($K16>0,$K16<5), IF($K16=4,\"Unknown\", IF($K16=1, $F16*0.33, IF($K16=2, $F16*0.5+$G16*0.2, SUM(F16:G16)))), 0),\"Not required\")","v":29288.49},1,1,1,1,null,null,null,null,9655,"Ouaka"]
[{"$f":"IF(INTRO!$E$33<>0,INTRO!$E$33, \" \")","v":"CAR"},"Région Sanitaire N°4","Kémo",167319,{"$f":"IF(INTRO!$E$48=\"\",\"\",ROUND($D17*INTRO!$E$48,0))","v":23107},{"$f":"IF(INTRO!$E$49=\"\",\"\",ROUND($D17*INTRO!$E$49,0))","v":37981},{"$f":"IF(INTRO!$E$50=\"\",\"\",ROUND($D17*INTRO!$E$50,0))","v":100375},1,1,2,3,0,{"$f":"IF(INTRO!$E$37=\"Endemic\",IF($H17>0,IF($H17=4,\"Unknown\",IF($H17=99,\"Stopped\",$D17)),0),\"Not required\")","v":167319},{"$f":"IF(INTRO!$E$39=\"Endemic\", IF($I17>0, IF($I17=4,\"Unknown\",IF($I17=99,\"Stopped\",$D17)), 0),\"Not required\")","v":167319},{"$f":"IF(INTRO!$E$41=\"Endemic\", IF(AND($J17>1,$J17<5), IF($J17=4, \"Unknown\", E17+F17), 0),\"Not required\")","v":61088},{"$f":"IF(INTRO!$E$43=\"Endemic\", IF(AND($K17>0,$K17<5), IF($K17=4,\"Unknown\", IF($K17=1, $F17*0.33, IF($K17=2, $F17*0.5+$G17*0.2, SUM(F17:G17)))), 0),\"Not required\")","v":138356},1,1,1,1,null,null,null,null,9648,"Kémo"]
[{"$f":"IF(INTRO!$E$33<>0,INTRO!$E$33, \" \")","v":"CAR"},"Région Sanitaire N°4","Nana-Gribizi",163095,{"$f":"IF(INTRO!$E$48=\"\",\"\",ROUND($D18*INTRO!$E$48,0))","v":22523},{"$f":"IF(INTRO!$E$49=\"\",\"\",ROUND($D18*INTRO!$E$49,0))","v":37023},{"$f":"IF(INTRO!$E$50=\"\",\"\",ROUND($D18*INTRO!$E$50,0))","v":97841},4,1,4,4,1,{"$f":"IF(INTRO!$E$37=\"Endemic\",IF($H18>0,IF($H18=4,\"Unknown\",IF($H18=99,\"Stopped\",$D18)),0),\"Not required\")","v":"Unknown"},{"$f":"IF(INTRO!$E$39=\"Endemic\", IF($I18>0, IF($I18=4,\"Unknown\",IF($I18=99,\"Stopped\",$D18)), 0),\"Not required\")","v":163095},{"$f":"IF(INTRO!$E$41=\"Endemic\", IF(AND($J18>1,$J18<5), IF($J18=4, \"Unknown\", E18+F18), 0),\"Not required\")","v":"Unknown"},{"$f":"IF(INTRO!$E$43=\"Endemic\", IF(AND($K18>0,$K18<5), IF($K18=4,\"Unknown\", IF($K18=1, $F18*0.33, IF($K18=2, $F18*0.5+$G18*0.2, SUM(F18:G18)))), 0),\"Not required\")","v":"Unknown"},0,1,0,0,null,null,null,null,9652,"Nana-Gribizi"]
[{"$f":"IF(INTRO!$E$33<>0,INTRO!$E$33, \" \")","v":"CAR"},"Région Sanitaire N°5","Haute-Kotto",125025,{"$f":"IF(INTRO!$E$48=\"\",\"\",ROUND($D19*INTRO!$E$48,0))","v":17266},{"$f":"IF(INTRO!$E$49=\"\",\"\",ROUND($D19*INTRO!$E$49,0))","v":28381},{"$f":"IF(INTRO!$E$50=\"\",\"\",ROUND($D19*INTRO!$E$50,0))","v":75002},4,1,4,4,0,{"$f":"IF(INTRO!$E$37=\"Endemic\",IF($H19>0,IF($H19=4,\"Unknown\",IF($H19=99,\"Stopped\",$D19)),0),\"Not required\")","v":"Unknown"},{"$f":"IF(INTRO!$E$39=\"Endemic\", IF($I19>0, IF($I19=4,\"Unknown\",IF($I19=99,\"Stopped\",$D19)), 0),\"Not required\")","v":125025},{"$f":"IF(INTRO!$E$41=\"Endemic\", IF(AND($J19>1,$J19<5), IF($J19=4, \"Unknown\", E19+F19), 0),\"Not required\")","v":"Unknown"},{"$f":"IF(INTRO!$E$43=\"Endemic\", IF(AND($K19>0,$K19<5), IF($K19=4,\"Unknown\", IF($K19=1, $F19*0.33, IF($K19=2, $F19*0.5+$G19*0.2, SUM(F19:G19)))), 0),\"Not required\")","v":"Unknown"},0,1,0,0,null,null,null,null,9647,"Haute-Kotto"]
[{"$f":"IF(INTRO!$E$33<>0,INTRO!$E$33, \" \")","v":"CAR"},"Région Sanitaire N°5","Bamingui-Bangoran",59843,{"$f":"IF(INTRO!$E$48=\"\",\"\",ROUND($D20*INTRO!$E$48,0))","v":8264},{"$f":"IF(INTRO!$E$49=\"\",\"\",ROUND($D20*INTRO!$E$49,0))","v":13584},{"$f":"IF(INTRO!$E$50=\"\",\"\",ROUND($D20*INTRO!$E$50,0))","v":35900},4,1,4,4,0,{"$f":"IF(INTRO!$E$37=\"Endemic\",IF($H20>0,IF($H20=4,\"Unknown\",IF($H20=99,\"Stopped\",$D20)),0),\"Not required\")","v":"Unknown"},{"$f":"IF(INTRO!$E$39=\"Endemic\", IF($I20>0, IF($I20=4,\"Unknown\",IF($I20=99,\"Stopped\",$D20)), 0),\"Not required\")","v":59843},{"$f":"IF(INTRO!$E$41=\"Endemic\", IF(AND($J20>1,$J20<5), IF($J20=4, \"Unknown\", E20+F20), 0),\"Not required\")","v":"Unknown"},{"$f":"IF(INTRO!$E$43=\"Endemic\", IF(AND($K20>0,$K20<5), IF($K20=4,\"Unknown\", IF($K20=1, $F20*0.33, IF($K20=2, $F20*0.5+$G20*0.2, SUM(F20:G20)))), 0),\"Not required\")","v":"Unknown"},0,1,0,0,null,null,null,null,9636,"Bamingui-Bangoran"]
[{"$f":"IF(INTRO!$E$33<>0,INTRO!$E$33, \" \")","v":"CAR"},"Région Sanitaire N°5","Vakaga",72337,{"$f":"IF(INTRO!$E$48=\"\",\"\",ROUND($D21*INTRO!$E$48,0))","v":9990},{"$f":"IF(INTRO!$E$49=\"\",\"\",ROUND($D21*INTRO!$E$49,0))","v":16420},{"$f":"IF(INTRO!$E$50=\"\",\"\",ROUND($D21*INTRO!$E$50,0))","v":43395},4,0,4,4,4,{"$f":"IF(INTRO!$E$37=\"Endemic\",IF($H21>0,IF($H21=4,\"Unknown\",IF($H21=99,\"Stopped\",$D21)),0),\"Not required\")","v":"Unknown"},{"$f":"IF(INTRO!$E$39=\"Endemic\", IF($I21>0, IF($I21=4,\"Unknown\",IF($I21=99,\"Stopped\",$D21)), 0),\"Not required\")","v":0},{"$f":"IF(INTRO!$E$41=\"Endemic\", IF(AND($J21>1,$J21<5), IF($J21=4, \"Unknown\", E21+F21), 0),\"Not required\")","v":"Unknown"},{"$f":"IF(INTRO!$E$43=\"Endemic\", IF(AND($K21>0,$K21<5), IF($K21=4,\"Unknown\", IF($K21=1, $F21*0.33, IF($K21=2, $F21*0.5+$G21*0.2, SUM(F21:G21)))), 0),\"Not required\")","v":"Unknown"},0,0,0,0,null,null,null,null,9659,"Vakaga"]
[{"$f":"IF(INTRO!$E$33<>0,INTRO!$E$33, \" \")","v":"CAR"},"Région Sanitaire N°6","Mbomou",231740,{"$f":"IF(INTRO!$E$48=\"\",\"\",ROUND($D22*INTRO!$E$48,0))","v":32003},{"$f":"IF(INTRO!$E$49=\"\",\"\",ROUND($D22*INTRO!$E$49,0))","v":52605},{"$f":"IF(INTRO!$E$50=\"\",\"\",ROUND($D22*INTRO!$E$50,0))","v":139021},1,1,2,1,0,{"$f":"IF(INTRO!$E$37=\"Endemic\",IF($H22>0,IF($H22=4,\"Unknown\",IF($H22=99,\"Stopped\",$D22)),0),\"Not required\")","v":231740},{"$f":"IF(INTRO!$E$39=\"Endemic\", IF($I22>0, IF($I22=4,\"Unknown\",IF($I22=99,\"Stopped\",$D22)), 0),\"Not required\")","v":231740},{"$f":"IF(INTRO!$E$41=\"Endemic\", IF(AND($J22>1,$J22<5), IF($J22=4, \"Unknown\", E22+F22), 0),\"Not required\")","v":84608},{"$f":"IF(INTRO!$E$43=\"Endemic\", IF(AND($K22>0,$K22<5), IF($K22=4,\"Unknown\", IF($K22=1, $F22*0.33, IF($K22=2, $F22*0.5+$G22*0.2, SUM(F22:G22)))), 0),\"Not required\")","v":17359.650000000001},1,1,1,1,null,null,null,null,9651,"Mbomou"]
[{"$f":"IF(INTRO!$E$33<>0,INTRO!$E$33, \" \")","v":"CAR"},"Région Sanitaire N°6","Basse-Kotto",352042,{"$f":"IF(INTRO!$E$48=\"\",\"\",ROUND($D23*INTRO!$E$48,0))","v":48617},{"$f":"IF(INTRO!$E$49=\"\",\"\",ROUND($D23*INTRO!$E$49,0))","v":79914},{"$f":"IF(INTRO!$E$50=\"\",\"\",ROUND($D23*INTRO!$E$50,0))","v":211190},1,1,3,3,0,{"$f":"IF(INTRO!$E$37=\"Endemic\",IF($H23>0,IF($H23=4,\"Unknown\",IF($H23=99,\"Stopped\",$D23)),0),\"Not required\")","v":352042},{"$f":"IF(INTRO!$E$39=\"Endemic\", IF($I23>0, IF($I23=4,\"Unknown\",IF($I23=99,\"Stopped\",$D23)), 0),\"Not required\")","v":352042},{"$f":"IF(INTRO!$E$41=\"Endemic\", IF(AND($J23>1,$J23<5), IF($J23=4, \"Unknown\", E23+F23), 0),\"Not required\")","v":128531},{"$f":"IF(INTRO!$E$43=\"Endemic\", IF(AND($K23>0,$K23<5), IF($K23=4,\"Unknown\", IF($K23=1, $F23*0.33, IF($K23=2, $F23*0.5+$G23*0.2, SUM(F23:G23)))), 0),\"Not required\")","v":291104},1,1,1,1,null,null,null,null,9645,"Basse-Kotto"]
[{"$f":"IF(INTRO!$E$33<>0,INTRO!$E$33, \" \")","v":"CAR"},"Région Sanitaire N°6","Haut-Mbomou",79739,{"$f":"IF(INTRO!$E$48=\"\",\"\",ROUND($D24*INTRO!$E$48,0))","v":11012},{"$f":"IF(INTRO!$E$49=\"\",\"\",ROUND($D24*INTRO!$E$49,0))","v":18101},{"$f":"IF(INTRO!$E$50=\"\",\"\",ROUND($D24*INTRO!$E$50,0))","v":47835},4,1,4,4,1,{"$f":"IF(INTRO!$E$37=\"Endemic\",IF($H24>0,IF($H24=4,\"Unknown\",IF($H24=99,\"Stopped\",$D24)),0),\"Not required\")","v":"Unknown"},{"$f":"IF(INTRO!$E$39=\"Endemic\", IF($I24>0, IF($I24=4,\"Unknown\",IF($I24=99,\"Stopped\",$D24)), 0),\"Not required\")","v":79739},{"$f":"IF(INTRO!$E$41=\"Endemic\", IF(AND($J24>1,$J24<5), IF($J24=4, \"Unknown\", E24+F24), 0),\"Not required\")","v":"Unknown"},{"$f":"IF(INTRO!$E$43=\"Endemic\", IF(AND($K24>0,$K24<5), IF($K24=4,\"Unknown\", IF($K24=1, $F24*0.33, IF($K24=2, $F24*0.5+$G24*0.2, SUM(F24:G24)))), 0),\"Not required\")","v":"Unknown"},0,1,0,0,null,null,null,null,9646,"Haut-Mbomou"]
[{"$f":"IF(INTRO!$E$33<>0,INTRO!$E$33, \" \")","v":"CAR"},"Région Sanitaire N°7","BANGUI (8 Unités adm.)",903563,{"$f":"IF(INTRO!$E$48=\"\",\"\",ROUND($D25*INTRO!$E$48,0))","v":124782},{"$f":"IF(INTRO!$E$49=\"\",\"\",ROUND($D25*INTRO!$E$49,0))","v":205109},{"$f":"IF(INTRO!$E$50=\"\",\"\",ROUND($D25*INTRO!$E$50,0))","v":542047},4,4,4,4,4,{"$f":"IF(INTRO!$E$37=\"Endemic\",IF($H25>0,IF($H25=4,\"Unknown\",IF($H25=99,\"Stopped\",$D25)),0),\"Not required\")","v":"Unknown"},{"$f":"IF(INTRO!$E$39=\"Endemic\", IF($I25>0, IF($I25=4,\"Unknown\",IF($I25=99,\"Stopped\",$D25)), 0),\"Not required\")","v":"Unknown"},{"$f":"IF(INTRO!$E$41=\"Endemic\", IF(AND($J25>1,$J25<5), IF($J25=4, \"Unknown\", E25+F25), 0),\"Not required\")","v":"Unknown"},{"$f":"IF(INTRO!$E$43=\"Endemic\", IF(AND($K25>0,$K25<5), IF($K25=4,\"Unknown\", IF($K25=1, $F25*0.33, IF($K25=2, $F25*0.5+$G25*0.2, SUM(F25:G25)))), 0),\"Not required\")","v":"Unknown"},0,0,0,0,null,null,null,null,9660,"BANGUI (8 Unités adm.)"]

{"sheet":"DEC","index":2,"n_rows":25,"n_cols":13,"rows_kept":25,"cut":false,"hidden":false,"merged":[[6,10,7,10],[6,0,7,0],[6,11,7,11],[5,3,5,6],[5,9,5,12],[6,4,7,4],[6,3,7,3],[6,8,7,8],[6,12,7,12],[6,7,7,7],[6,6,7,6],[6,9,7,9],[3,0,3,2],[5,0,5,2],[6,5,7,5],[6,2,7,2],[6,1,7,1]]}
["Diethylcarbamazine citrate (DEC)"]
["Administrative structure, eligible population by age group, treatment plan and information about tablets"]
[]
["TOTAL",null,null,{"$f":"SUM(D$9:D$1000)","v":0},{"$f":"SUM(E$9:E$1000)","v":0},{"$f":"SUM(F$9:F$1000)","v":0},{"$f":"SUM(G$9:G$1000)","v":0},null,{"$f":"SUM(I$9:I$1000)","v":0},{"$f":"SUM(J$9:J$1000)","v":0},{"$f":"SUM(K$9:K$1000)","v":0},{"$f":"SUM(L$9:L$1000)","v":0},{"$f":"SUM(M$9:M$1000)","v":0}]
[]
["Country administrative structure",null,null,"Population requiring treatment with DEC",null,null,null,"Treatment plan","Target population","Diethylcarbamazine citrate (DEC)"]
["Country","Province/State","District","PreSAC","SAC","Adults","Total","LF","LF","Total required","Remaining in stock","Tablets to be procured","Bottle (100 mg)\n1000 tablets"]
[]
[{"$f":"IF(INTRO!$E$39<>\"Non-endemic\", \" \", IF(INTRO!$E$37=\"Non-endemic\",\" \", IF(COUNTRY_INFO!A9=0,\" \",COUNTRY_INFO!A9)))","v":" "},{"$f":"IF(INTRO!$E$39<>\"Non-endemic\", \" \", IF(INTRO!$E$37=\"Non-endemic\",\" \", IF(COUNTRY_INFO!B9=0,\" \",COUNTRY_INFO!B9)))","v":" "},{"$f":"IF(INTRO!$E$39<>\"Non-endemic\", \" \", IF(INTRO!$E$37=\"Non-endemic\",\" \", IF(COUNTRY_INFO!C9=0,\" \",COUNTRY_INFO!C9)))","v":" "},{"$f":"IF(INTRO!$E$39<>\"Non-endemic\", 0, IF(INTRO!$E$37=\"Non-endemic\",0,IF(COUNTRY_INFO!$H9=1,COUNTRY_INFO!E9,0)))","v":0},{"$f":"IF(INTRO!$E$39<>\"Non-endemic\", 0, IF(INTRO!$E$37=\"Non-endemic\",0,IF(COUNTRY_INFO!$H9=1,COUNTRY_INFO!F9,0)))","v":0},{"$f":"IF(INTRO!$E$39<>\"Non-endemic\", 0, IF(INTRO!$E$37=\"Non-endemic\",0,IF(COUNTRY_INFO!$H9=1,COUNTRY_INFO!G9,0)))","v":0},{"$f":"SUM(D9:F9)","v":0},{"$f":"IF(INTRO!$E$39=\"Non-endemic\",IF(INTRO!$E$37=\"Non-endemic\",\"Not required\",COUNTRY_INFO!Q9),\"Treat with IVM\")","v":"Treat with IVM"},{"$f":"IF(H9=1,IF(ALB_MBD!$J9<>\" \",$G9-ALB_MBD!$J9,$G9),0)","v":0},{"$f":"IF(I9>0,I9*2.5,0)","v":0},null,{"$f":"IF($J9>$K9,$J9-$K9,0)","v":0},{"$f":"ROUNDUP($J9/1000,0)","v":0}]
[{"$f":"IF(INTRO!$E$39<>\"Non-endemic\", \" \", IF(INTRO!$E$37=\"Non-endemic\",\" \", IF(COUNTRY_INFO!A10=0,\" \",COUNTRY_INFO!A10)))","v":" "},{"$f":"IF(INTRO!$E$39<>\"Non-endemic\", \" \", IF(INTRO!$E$37=\"Non-endemic\",\" \", IF(COUNTRY_INFO!B10=0,\" \",COUNTRY_INFO!B10)))","v":" "},{"$f":"IF(INTRO!$E$39<>\"Non-endemic\", \" \", IF(INTRO!$E$37=\"Non-endemic\",\" \", IF(COUNTRY_INFO!C10=0,\" \",COUNTRY_INFO!C10)))","v":" "},{"$f":"IF(INTRO!$E$39<>\"Non-endemic\", 0, IF(INTRO!$E$37=\"Non-endemic\",0,IF(COUNTRY_INFO!$H10=1,COUNTRY_INFO!E10,0)))","v":0},{"$f":"IF(INTRO!$E$39<>\"Non-endemic\", 0, IF(INTRO!$E$37=\"Non-endemic\",0,IF(COUNTRY_INFO!$H10=1,COUNTRY_INFO!F10,0)))","v":0},{"$f":"IF(INTRO!$E$39<>\"Non-endemic\", 0, IF(INTRO!$E$37=\"Non-endemic\",0,IF(COUNTRY_INFO!$H10=1,COUNTRY_INFO!G10,0)))","v":0},{"$f":"SUM(D10:F10)","v":0},{"$f":"IF(INTRO!$E$39=\"Non-endemic\",IF(INTRO!$E$37=\"Non-endemic\",\"Not required\",COUNTRY_INFO!Q10),\"Treat with IVM\")","v":"Treat with IVM"},{"$f":"IF(H10=1,IF(ALB_MBD!$J10<>\" \",$G10-ALB_MBD!$J10,$G10),0)","v":0},{"$f":"IF(I10>0,I10*2.5,0)","v":0},null,0,0]
[{"$f":"IF(INTRO!$E$39<>\"Non-endemic\", \" \", IF(INTRO!$E$37=\"Non-endemic\",\" \", IF(COUNTRY_INFO!A11=0,\" \",COUNTRY_INFO!A11)))","v":" "},{"$f":"IF(INTRO!$E$39<>\"Non-endemic\", \" \", IF(INTRO!$E$37=\"Non-endemic\",\" \", IF(COUNTRY_INFO!B11=0,\" \",COUNTRY_INFO!B11)))","v":" "},{"$f":"IF(INTRO!$E$39<>\"Non-endemic\", \" \", IF(INTRO!$E$37=\"Non-endemic\",\" \", IF(COUNTRY_INFO!C11=0,\" \",COUNTRY_INFO!C11)))","v":" "},{"$f":"IF(INTRO!$E$39<>\"Non-endemic\", 0, IF(INTRO!$E$37=\"Non-endemic\",0,IF(COUNTRY_INFO!$H11=1,COUNTRY_INFO!E11,0)))","v":0},{"$f":"IF(INTRO!$E$39<>\"Non-endemic\", 0, IF(INTRO!$E$37=\"Non-endemic\",0,IF(COUNTRY_INFO!$H11=1,COUNTRY_INFO!F11,0)))","v":0},{"$f":"IF(INTRO!$E$39<>\"Non-endemic\", 0, IF(INTRO!$E$37=\"Non-endemic\",0,IF(COUNTRY_INFO!$H11=1,COUNTRY_INFO!G11,0)))","v":0},0,{"$f":"IF(INTRO!$E$39=\"Non-endemic\",IF(INTRO!$E$37=\"Non-endemic\",\"Not required\",COUNTRY_INFO!Q11),\"Treat with IVM\")","v":"Treat with IVM"},{"$f":"IF(H11=1,IF(ALB_MBD!$J11<>\" \",$G11-ALB_MBD!$J11,$G11),0)","v":0},0,null,0,0]
[{"$f":"IF(INTRO!$E$39<>\"Non-endemic\", \" \", IF(INTRO!$E$37=\"Non-endemic\",\" \", IF(COUNTRY_INFO!A12=0,\" \",COUNTRY_INFO!A12)))","v":" "},{"$f":"IF(INTRO!$E$39<>\"Non-endemic\", \" \", IF(INTRO!$E$37=\"Non-endemic\",\" \", IF(COUNTRY_INFO!B12=0,\" \",COUNTRY_INFO!B12)))","v":" "},{"$f":"IF(INTRO!$E$39<>\"Non-endemic\", \" \", IF(INTRO!$E$37=\"Non-endemic\",\" \", IF(COUNTRY_INFO!C12=0,\" \",COUNTRY_INFO!C12)))","v":" "},{"$f":"IF(INTRO!$E$39<>\"Non-endemic\", 0, IF(INTRO!$E$37=\"Non-endemic\",0,IF(COUNTRY_INFO!$H12=1,COUNTRY_INFO!E12,0)))","v":0},{"$f":"IF(INTRO!$E$39<>\"Non-endemic\", 0, IF(INTRO!$E$37=\"Non-endemic\",0,IF(COUNTRY_INFO!$H12=1,COUNTRY_INFO!F12,0)))","v":0},{"$f":"IF(INTRO!$E$39<>\"Non-endemic\", 0, IF(INTRO!$E$37=\"Non-endemic\",0,IF(COUNTRY_INFO!$H12=1,COUNTRY_INFO!G12,0)))","v":0},0,{"$f":"IF(INTRO!$E$39=\"Non-endemic\",IF(INTRO!$E$37=\"Non-endemic\",\"Not required\",COUNTRY_INFO!Q12),\"Treat with IVM\")","v":"Treat with IVM"},{"$f":"IF(H12=1,IF(ALB_MBD!$J12<>\" \",$G12-ALB_MBD!$J12,$G12),0)","v":0},0,null,0,0]
[{"$f":"IF(INTRO!$E$39<>\"Non-endemic\", \" \", IF(INTRO!$E$37=\"Non-endemic\",\" \", IF(COUNTRY_INFO!A13=0,\" \",COUNTRY_INFO!A13)))","v":" "},{"$f":"IF(INTRO!$E$39<>\"Non-endemic\", \" \", IF(INTRO!$E$37=\"Non-endemic\",\" \", IF(COUNTRY_INFO!B13=0,\" \",COUNTRY_INFO!B13)))","v":" "},{"$f":"IF(INTRO!$E$39<>\"Non-endemic\", \" \", IF(INTRO!$E$37=\"Non-endemic\",\" \", IF(COUNTRY_INFO!C13=0,\" \",COUNTRY_INFO!C13)))","v":" "},{"$f":"IF(INTRO!$E$39<>\"Non-endemic\", 0, IF(INTRO!$E$37=\"Non-endemic\",0,IF(COUNTRY_INFO!$H13=1,COUNTRY_INFO!E13,0)))","v":0},{"$f":"IF(INTRO!$E$39<>\"Non-endemic\", 0, IF(INTRO!$E$37=\"Non-endemic\",0,IF(COUNTRY_INFO!$H13=1,COUNTRY_INFO!F13,0)))","v":0},{"$f":"IF(INTRO!$E$39<>\"Non-endemic\", 0, IF(INTRO!$E$37=\"Non-endemic\",0,IF(COUNTRY_INFO!$H13=1,COUNTRY_INFO!G13,0)))","v":0},0,{"$f":"IF(INTRO!$E$39=\"Non-endemic\",IF(INTRO!$E$37=\"Non-endemic\",\"Not required\",COUNTRY_INFO!Q13),\"Treat with IVM\")","v":"Treat with IVM"},{"$f":"IF(H13=1,IF(ALB_MBD!$J13<>\" \",$G13-ALB_MBD!$J13,$G13),0)","v":0},0,null,0,0]
[{"$f":"IF(INTRO!$E$39<>\"Non-endemic\", \" \", IF(INTRO!$E$37=\"Non-endemic\",\" \", IF(COUNTRY_INFO!A14=0,\" \",COUNTRY_INFO!A14)))","v":" "},{"$f":"IF(INTRO!$E$39<>\"Non-endemic\", \" \", IF(INTRO!$E$37=\"Non-endemic\",\" \", IF(COUNTRY_INFO!B14=0,\" \",COUNTRY_INFO!B14)))","v":" "},{"$f":"IF(INTRO!$E$39<>\"Non-endemic\", \" \", IF(INTRO!$E$37=\"Non-endemic\",\" \", IF(COUNTRY_INFO!C14=0,\" \",COUNTRY_INFO!C14)))","v":" "},{"$f":"IF(INTRO!$E$39<>\"Non-endemic\", 0, IF(INTRO!$E$37=\"Non-endemic\",0,IF(COUNTRY_INFO!$H14=1,COUNTRY_INFO!E14,0)))","v":0},{"$f":"IF(INTRO!$E$39<>\"Non-endemic\", 0, IF(INTRO!$E$37=\"Non-endemic\",0,IF(COUNTRY_INFO!$H14=1,COUNTRY_INFO!F14,0)))","v":0},{"$f":"IF(INTRO!$E$39<>\"Non-endemic\", 0, IF(INTRO!$E$37=\"Non-endemic\",0,IF(COUNTRY_INFO!$H14=1,COUNTRY_INFO!G14,0)))","v":0},0,{"$f":"IF(INTRO!$E$39=\"Non-endemic\",IF(INTRO!$E$37=\"Non-endemic\",\"Not required\",COUNTRY_INFO!Q14),\"Treat with IVM\")","v":"Treat with IVM"},{"$f":"IF(H14=1,IF(ALB_MBD!$J14<>\" \",$G14-ALB_MBD!$J14,$G14),0)","v":0},0,null,0,0]
[{"$f":"IF(INTRO!$E$39<>\"Non-endemic\", \" \", IF(INTRO!$E$37=\"Non-endemic\",\" \", IF(COUNTRY_INFO!A15=0,\" \",COUNTRY_INFO!A15)))","v":" "},{"$f":"IF(INTRO!$E$39<>\"Non-endemic\", \" \", IF(INTRO!$E$37=\"Non-endemic\",\" \", IF(COUNTRY_INFO!B15=0,\" \",COUNTRY_INFO!B15)))","v":" "},{"$f":"IF(INTRO!$E$39<>\"Non-endemic\", \" \", IF(INTRO!$E$37=\"Non-endemic\",\" \", IF(COUNTRY_INFO!C15=0,\" \",COUNTRY_INFO!C15)))","v":" "},{"$f":"IF(INTRO!$E$39<>\"Non-endemic\", 0, IF(INTRO!$E$37=\"Non-endemic\",0,IF(COUNTRY_INFO!$H15=1,COUNTRY_INFO!E15,0)))","v":0},{"$f":"IF(INTRO!$E$39<>\"Non-endemic\", 0, IF(INTRO!$E$37=\"Non-endemic\",0,IF(COUNTRY_INFO!$H15=1,COUNTRY_INFO!F15,0)))","v":0},{"$f":"IF(INTRO!$E$39<>\"Non-endemic\", 0, IF(INTRO!$E$37=\"Non-endemic\",0,IF(COUNTRY_INFO!$H15=1,COUNTRY_INFO!G15,0)))","v":0},0,{"$f":"IF(INTRO!$E$39=\"Non-endemic\",IF(INTRO!$E$37=\"Non-endemic\",\"Not required\",COUNTRY_INFO!Q15),\"Treat with IVM\")","v":"Treat with IVM"},{"$f":"IF(H15=1,IF(ALB_MBD!$J15<>\" \",$G15-ALB_MBD!$J15,$G15),0)","v":0},0,null,0,0]
[{"$f":"IF(INTRO!$E$39<>\"Non-endemic\", \" \", IF(INTRO!$E$37=\"Non-endemic\",\" \", IF(COUNTRY_INFO!A16=0,\" \",COUNTRY_INFO!A16)))","v":" "},{"$f":"IF(INTRO!$E$39<>\"Non-endemic\", \" \", IF(INTRO!$E$37=\"Non-endemic\",\" \", IF(COUNTRY_INFO!B16=0,\" \",COUNTRY_INFO!B16)))","v":" "},{"$f":"IF(INTRO!$E$39<>\"Non-endemic\", \" \", IF(INTRO!$E$37=\"Non-endemic\",\" \", IF(COUNTRY_INFO!C16=0,\" \",COUNTRY_INFO!C16)))","v":" "},{"$f":"IF(INTRO!$E$39<>\"Non-endemic\", 0, IF(INTRO!$E$37=\"Non-endemic\",0,IF(COUNTRY_INFO!$H16=1,COUNTRY_INFO!E16,0)))","v":0},{"$f":"IF(INTRO!$E$39<>\"Non-endemic\", 0, IF(INTRO!$E$37=\"Non-endemic\",0,IF(COUNTRY_INFO!$H16=1,COUNTRY_INFO!F16,0)))","v":0},{"$f":"IF(INTRO!$E$39<>\"Non-endemic\", 0, IF(INTRO!$E$37=\"Non-endemic\",0,IF(COUNTRY_INFO!$H16=1,COUNTRY_INFO!G16,0)))","v":0},0,{"$f":"IF(INTRO!$E$39=\"Non-endemic\",IF(INTRO!$E$37=\"Non-endemic\",\"Not required\",COUNTRY_INFO!Q16),\"Treat with IVM\")","v":"Treat with IVM"},{"$f":"IF(H16=1,IF(ALB_MBD!$J16<>\" \",$G16-ALB_MBD!$J16,$G16),0)","v":0},0,null,0,0]
[{"$f":"IF(INTRO!$E$39<>\"Non-endemic\", \" \", IF(INTRO!$E$37=\"Non-endemic\",\" \", IF(COUNTRY_INFO!A17=0,\" \",COUNTRY_INFO!A17)))","v":" "},{"$f":"IF(INTRO!$E$39<>\"Non-endemic\", \" \", IF(INTRO!$E$37=\"Non-endemic\",\" \", IF(COUNTRY_INFO!B17=0,\" \",COUNTRY_INFO!B17)))","v":" "},{"$f":"IF(INTRO!$E$39<>\"Non-endemic\", \" \", IF(INTRO!$E$37=\"Non-endemic\",\" \", IF(COUNTRY_INFO!C17=0,\" \",COUNTRY_INFO!C17)))","v":" "},{"$f":"IF(INTRO!$E$39<>\"Non-endemic\", 0, IF(INTRO!$E$37=\"Non-endemic\",0,IF(COUNTRY_INFO!$H17=1,COUNTRY_INFO!E17,0)))","v":0},{"$f":"IF(INTRO!$E$39<>\"Non-endemic\", 0, IF(INTRO!$E$37=\"Non-endemic\",0,IF(COUNTRY_INFO!$H17=1,COUNTRY_INFO!F17,0)))","v":0},{"$f":"IF(INTRO!$E$39<>\"Non-endemic\", 0, IF(INTRO!$E$37=\"Non-endemic\",0,IF(COUNTRY_INFO!$H17=1,COUNTRY_INFO!G17,0)))","v":0},0,{"$f":"IF(INTRO!$E$39=\"Non-endemic\",IF(INTRO!$E$37=\"Non-endemic\",\"Not required\",COUNTRY_INFO!Q17),\"Treat with IVM\")","v":"Treat with IVM"},{"$f":"IF(H17=1,IF(ALB_MBD!$J17<>\" \",$G17-ALB_MBD!$J17,$G17),0)","v":0},0,null,0,0]
[{"$f":"IF(INTRO!$E$39<>\"Non-endemic\", \" \", IF(INTRO!$E$37=\"Non-endemic\",\" \", IF(COUNTRY_INFO!A18=0,\" \",COUNTRY_INFO!A18)))","v":" "},{"$f":"IF(INTRO!$E$39<>\"Non-endemic\", \" \", IF(INTRO!$E$37=\"Non-endemic\",\" \", IF(COUNTRY_INFO!B18=0,\" \",COUNTRY_INFO!B18)))","v":" "},{"$f":"IF(INTRO!$E$39<>\"Non-endemic\", \" \", IF(INTRO!$E$37=\"Non-endemic\",\" \", IF(COUNTRY_INFO!C18=0,\" \",COUNTRY_INFO!C18)))","v":" "},{"$f":"IF(INTRO!$E$39<>\"Non-endemic\", 0, IF(INTRO!$E$37=\"Non-endemic\",0,IF(COUNTRY_INFO!$H18=1,COUNTRY_INFO!E18,0)))","v":0},{"$f":"IF(INTRO!$E$39<>\"Non-endemic\", 0, IF(INTRO!$E$37=\"Non-endemic\",0,IF(COUNTRY_INFO!$H18=1,COUNTRY_INFO!F18,0)))","v":0},{"$f":"IF(INTRO!$E$39<>\"Non-endemic\", 0, IF(INTRO!$E$37=\"Non-endemic\",0,IF(COUNTRY_INFO!$H18=1,COUNTRY_INFO!G18,0)))","v":0},0,{"$f":"IF(INTRO!$E$39=\"Non-endemic\",IF(INTRO!$E$37=\"Non-endemic\",\"Not required\",COUNTRY_INFO!Q18),\"Treat with IVM\")","v":"Treat with IVM"},{"$f":"IF(H18=1,IF(ALB_MBD!$J18<>\" \",$G18-ALB_MBD!$J18,$G18),0)","v":0},0,null,0,0]
[{"$f":"IF(INTRO!$E$39<>\"Non-endemic\", \" \", IF(INTRO!$E$37=\"Non-endemic\",\" \", IF(COUNTRY_INFO!A19=0,\" \",COUNTRY_INFO!A19)))","v":" "},{"$f":"IF(INTRO!$E$39<>\"Non-endemic\", \" \", IF(INTRO!$E$37=\"Non-endemic\",\" \", IF(COUNTRY_INFO!B19=0,\" \",COUNTRY_INFO!B19)))","v":" "},{"$f":"IF(INTRO!$E$39<>\"Non-endemic\", \" \", IF(INTRO!$E$37=\"Non-endemic\",\" \", IF(COUNTRY_INFO!C19=0,\" \",COUNTRY_INFO!C19)))","v":" "},{"$f":"IF(INTRO!$E$39<>\"Non-endemic\", 0, IF(INTRO!$E$37=\"Non-endemic\",0,IF(COUNTRY_INFO!$H19=1,COUNTRY_INFO!E19,0)))","v":0},{"$f":"IF(INTRO!$E$39<>\"Non-endemic\", 0, IF(INTRO!$E$37=\"Non-endemic\",0,IF(COUNTRY_INFO!$H19=1,COUNTRY_INFO!F19,0)))","v":0},{"$f":"IF(INTRO!$E$39<>\"Non-endemic\", 0, IF(INTRO!$E$37=\"Non-endemic\",0,IF(COUNTRY_INFO!$H19=1,COUNTRY_INFO!G19,0)))","v":0},0,{"$f":"IF(INTRO!$E$39=\"Non-endemic\",IF(INTRO!$E$37=\"Non-endemic\",\"Not required\",COUNTRY_INFO!Q19),\"Treat with IVM\")","v":"Treat with IVM"},{"$f":"IF(H19=1,IF(ALB_MBD!$J19<>\" \",$G19-ALB_MBD!$J19,$G19),0)","v":0},0,null,0,0]
[{"$f":"IF(INTRO!$E$39<>\"Non-endemic\", \" \", IF(INTRO!$E$37=\"Non-endemic\",\" \", IF(COUNTRY_INFO!A20=0,\" \",COUNTRY_INFO!A20)))","v":" "},{"$f":"IF(INTRO!$E$39<>\"Non-endemic\", \" \", IF(INTRO!$E$37=\"Non-endemic\",\" \", IF(COUNTRY_INFO!B20=0,\" \",COUNTRY_INFO!B20)))","v":" "},{"$f":"IF(INTRO!$E$39<>\"Non-endemic\", \" \", IF(INTRO!$E$37=\"Non-endemic\",\" \", IF(COUNTRY_INFO!C20=0,\" \",COUNTRY_INFO!C20)))","v":" "},{"$f":"IF(INTRO!$E$39<>\"Non-endemic\", 0, IF(INTRO!$E$37=\"Non-endemic\",0,IF(COUNTRY_INFO!$H20=1,COUNTRY_INFO!E20,0)))","v":0},{"$f":"IF(INTRO!$E$39<>\"Non-endemic\", 0, IF(INTRO!$E$37=\"Non-endemic\",0,IF(COUNTRY_INFO!$H20=1,COUNTRY_INFO!F20,0)))","v":0},{"$f":"IF(INTRO!$E$39<>\"Non-endemic\", 0, IF(INTRO!$E$37=\"Non-endemic\",0,IF(COUNTRY_INFO!$H20=1,COUNTRY_INFO!G20,0)))","v":0},0,{"$f":"IF(INTRO!$E$39=\"Non-endemic\",IF(INTRO!$E$37=\"Non-endemic\",\"Not required\",COUNTRY_INFO!Q20),\"Treat with IVM\")","v":"Treat with IVM"},{"$f":"IF(H20=1,IF(ALB_MBD!$J20<>\" \",$G20-ALB_MBD!$J20,$G20),0)","v":0},0,null,0,0]
[{"$f":"IF(INTRO!$E$39<>\"Non-endemic\", \" \", IF(INTRO!$E$37=\"Non-endemic\",\" \", IF(COUNTRY_INFO!A21=0,\" \",COUNTRY_INFO!A21)))","v":" "},{"$f":"IF(INTRO!$E$39<>\"Non-endemic\", \" \", IF(INTRO!$E$37=\"Non-endemic\",\" \", IF(COUNTRY_INFO!B21=0,\" \",COUNTRY_INFO!B21)))","v":" "},{"$f":"IF(INTRO!$E$39<>\"Non-endemic\", \" \", IF(INTRO!$E$37=\"Non-endemic\",\" \", IF(COUNTRY_INFO!C21=0,\" \",COUNTRY_INFO!C21)))","v":" "},{"$f":"IF(INTRO!$E$39<>\"Non-endemic\", 0, IF(INTRO!$E$37=\"Non-endemic\",0,IF(COUNTRY_INFO!$H21=1,COUNTRY_INFO!E21,0)))","v":0},{"$f":"IF(INTRO!$E$39<>\"Non-endemic\", 0, IF(INTRO!$E$37=\"Non-endemic\",0,IF(COUNTRY_INFO!$H21=1,COUNTRY_INFO!F21,0)))","v":0},{"$f":"IF(INTRO!$E$39<>\"Non-endemic\", 0, IF(INTRO!$E$37=\"Non-endemic\",0,IF(COUNTRY_INFO!$H21=1,COUNTRY_INFO!G21,0)))","v":0},0,{"$f":"IF(INTRO!$E$39=\"Non-endemic\",IF(INTRO!$E$37=\"Non-endemic\",\"Not required\",COUNTRY_INFO!Q21),\"Treat with IVM\")","v":"Treat with IVM"},{"$f":"IF(H21=1,IF(ALB_MBD!$J21<>\" \",$G21-ALB_MBD!$J21,$G21),0)","v":0},0,null,0,0]
[{"$f":"IF(INTRO!$E$39<>\"Non-endemic\", \" \", IF(INTRO!$E$37=\"Non-endemic\",\" \", IF(COUNTRY_INFO!A22=0,\" \",COUNTRY_INFO!A22)))","v":" "},{"$f":"IF(INTRO!$E$39<>\"Non-endemic\", \" \", IF(INTRO!$E$37=\"Non-endemic\",\" \", IF(COUNTRY_INFO!B22=0,\" \",COUNTRY_INFO!B22)))","v":" "},{"$f":"IF(INTRO!$E$39<>\"Non-endemic\", \" \", IF(INTRO!$E$37=\"Non-endemic\",\" \", IF(COUNTRY_INFO!C22=0,\" \",COUNTRY_INFO!C22)))","v":" "},{"$f":"IF(INTRO!$E$39<>\"Non-endemic\", 0, IF(INTRO!$E$37=\"Non-endemic\",0,IF(COUNTRY_INFO!$H22=1,COUNTRY_INFO!E22,0)))","v":0},{"$f":"IF(INTRO!$E$39<>\"Non-endemic\", 0, IF(INTRO!$E$37=\"Non-endemic\",0,IF(COUNTRY_INFO!$H22=1,COUNTRY_INFO!F22,0)))","v":0},{"$f":"IF(INTRO!$E$39<>\"Non-endemic\", 0, IF(INTRO!$E$37=\"Non-endemic\",0,IF(COUNTRY_INFO!$H22=1,COUNTRY_INFO!G22,0)))","v":0},0,{"$f":"IF(INTRO!$E$39=\"Non-endemic\",IF(INTRO!$E$37=\"Non-endemic\",\"Not required\",COUNTRY_INFO!Q22),\"Treat with IVM\")","v":"Treat with IVM"},{"$f":"IF(H22=1,IF(ALB_MBD!$J22<>\" \",$G22-ALB_MBD!$J22,$G22),0)","v":0},0,null,0,0]
[{"$f":"IF(INTRO!$E$39<>\"Non-endemic\", \" \", IF(INTRO!$E$37=\"Non-endemic\",\" \", IF(COUNTRY_INFO!A23=0,\" \",COUNTRY_INFO!A23)))","v":" "},{"$f":"IF(INTRO!$E$39<>\"Non-endemic\", \" \", IF(INTRO!$E$37=\"Non-endemic\",\" \", IF(COUNTRY_INFO!B23=0,\" \",COUNTRY_INFO!B23)))","v":" "},{"$f":"IF(INTRO!$E$39<>\"Non-endemic\", \" \", IF(INTRO!$E$37=\"Non-endemic\",\" \", IF(COUNTRY_INFO!C23=0,\" \",COUNTRY_INFO!C23)))","v":" "},{"$f":"IF(INTRO!$E$39<>\"Non-endemic\", 0, IF(INTRO!$E$37=\"Non-endemic\",0,IF(COUNTRY_INFO!$H23=1,COUNTRY_INFO!E23,0)))","v":0},{"$f":"IF(INTRO!$E$39<>\"Non-endemic\", 0, IF(INTRO!$E$37=\"Non-endemic\",0,IF(COUNTRY_INFO!$H23=1,COUNTRY_INFO!F23,0)))","v":0},{"$f":"IF(INTRO!$E$39<>\"Non-endemic\", 0, IF(INTRO!$E$37=\"Non-endemic\",0,IF(COUNTRY_INFO!$H23=1,COUNTRY_INFO!G23,0)))","v":0},0,{"$f":"IF(INTRO!$E$39=\"Non-endemic\",IF(INTRO!$E$37=\"Non-endemic\",\"Not required\",COUNTRY_INFO!Q23),\"Treat with IVM\")","v":"Treat with IVM"},{"$f":"IF(H23=1,IF(ALB_MBD!$J23<>\" \",$G23-ALB_MBD!$J23,$G23),0)","v":0},0,null,0,0]
[{"$f":"IF(INTRO!$E$39<>\"Non-endemic\", \" \", IF(INTRO!$E$37=\"Non-endemic\",\" \", IF(COUNTRY_INFO!A24=0,\" \",COUNTRY_INFO!A24)))","v":" "},{"$f":"IF(INTRO!$E$39<>\"Non-endemic\", \" \", IF(INTRO!$E$37=\"Non-endemic\",\" \", IF(COUNTRY_INFO!B24=0,\" \",COUNTRY_INFO!B24)))","v":" "},{"$f":"IF(INTRO!$E$39<>\"Non-endemic\", \" \", IF(INTRO!$E$37=\"Non-endemic\",\" \", IF(COUNTRY_INFO!C24=0,\" \",COUNTRY_INFO!C24)))","v":" "},{"$f":"IF(INTRO!$E$39<>\"Non-endemic\", 0, IF(INTRO!$E$37=\"Non-endemic\",0,IF(COUNTRY_INFO!$H24=1,COUNTRY_INFO!E24,0)))","v":0},{"$f":"IF(INTRO!$E$39<>\"Non-endemic\", 0, IF(INTRO!$E$37=\"Non-endemic\",0,IF(COUNTRY_INFO!$H24=1,COUNTRY_INFO!F24,0)))","v":0},{"$f":"IF(INTRO!$E$39<>\"Non-endemic\", 0, IF(INTRO!$E$37=\"Non-endemic\",0,IF(COUNTRY_INFO!$H24=1,COUNTRY_INFO!G24,0)))","v":0},0,{"$f":"IF(INTRO!$E$39=\"Non-endemic\",IF(INTRO!$E$37=\"Non-endemic\",\"Not required\",COUNTRY_INFO!Q24),\"Treat with IVM\")","v":"Treat with IVM"},{"$f":"IF(H24=1,IF(ALB_MBD!$J24<>\" \",$G24-ALB_MBD!$J24,$G24),0)","v":0},0,null,0,0]
[{"$f":"IF(INTRO!$E$39<>\"Non-endemic\", \" \", IF(INTRO!$E$37=\"Non-endemic\",\" \", IF(COUNTRY_INFO!A25=0,\" \",COUNTRY_INFO!A25)))","v":" "},{"$f":"IF(INTRO!$E$39<>\"Non-endemic\", \" \", IF(INTRO!$E$37=\"Non-endemic\",\" \", IF(COUNTRY_INFO!B25=0,\" \",COUNTRY_INFO!B25)))","v":" "},{"$f":"IF(INTRO!$E$39<>\"Non-endemic\", \" \", IF(INTRO!$E$37=\"Non-endemic\",\" \", IF(COUNTRY_INFO!C25=0,\" \",COUNTRY_INFO!C25)))","v":" "},{"$f":"IF(INTRO!$E$39<>\"Non-endemic\", 0, IF(INTRO!$E$37=\"Non-endemic\",0,IF(COUNTRY_INFO!$H25=1,COUNTRY_INFO!E25,0)))","v":0},{"$f":"IF(INTRO!$E$39<>\"Non-endemic\", 0, IF(INTRO!$E$37=\"Non-endemic\",0,IF(COUNTRY_INFO!$H25=1,COUNTRY_INFO!F25,0)))","v":0},{"$f":"IF(INTRO!$E$39<>\"Non-endemic\", 0, IF(INTRO!$E$37=\"Non-endemic\",0,IF(COUNTRY_INFO!$H25=1,COUNTRY_INFO!G25,0)))","v":0},0,{"$f":"IF(INTRO!$E$39=\"Non-endemic\",IF(INTRO!$E$37=\"Non-endemic\",\"Not required\",COUNTRY_INFO!Q25),\"Treat with IVM\")","v":"Treat with IVM"},{"$f":"IF(H25=1,IF(ALB_MBD!$J25<>\" \",$G25-ALB_MBD!$J25,$G25),0)","v":0},0,null,0,0]

{"sheet":"ALB_MBD","index":3,"n_rows":25,"n_cols":29,"rows_kept":25,"cut":false,"hidden":false,"merged":[[6,0,7,0],[6,1,7,1],[6,2,7,2],[6,3,7,3],[6,28,7,28],[5,8,7,8],[6,4,7,4],[6,5,7,5],[6,6,7,6],[6,7,7,7],[5,26,5,28],[6,26,7,26],[6,27,7,27],[6,24,7,24],[6,25,7,25],[5,20,5,25],[3,0,3,2],[3,6,3,7],[5,0,5,2],[5,6,5,7],[5,3,5,5],[5,9,5,10],[6,9,7,9],[6,10,7,10],[6,23,7,23],[6,20,7,20],[6,21,7,21],[6,22,7,22],[6,16,6,19],[5,11,7,11],[6,12,6,15],[5,12,5,19]]}
["Albendazole (ALB) and Mebendazole (MBD)"]
["Administrative structure, eligible population by age group, treatment plan and information about tablets"]
[]
["TOTAL",null,null,{"$f":"SUM(D$9:D$1000)","v":362177},{"$f":"SUM(E$9:E$1000)","v":595324},{"$f":"SUM(F$9:F$1000)","v":957501},null,null,{"$f":"SUM(I$9:I$1000)","v":1049357},{"$f":"SUM(J$9:J$1000)","v":1119248},null,null,{"$f":"SUM(M$9:M$1000)","v":362177},{"$f":"SUM(N$9:N$1000)","v":0},{"$f":"SUM(O$9:O$1000)","v":0},{"$f":"SUM(P$9:P$1000)","v":362177},{"$f":"SUM(Q$9:Q$1000)","v":0},{"$f":"SUM(R$9:R$1000)","v":0},0,0,0,3287853,16443,0,0,0,0,0,0]
[]
["Country administrative structure",null,null,"Population requiring treatment with ALB/MBD",null,null,"Treatment plan",null,"People covered by PELF with ALB","Loa endemic areas",null,"Select medicine for treatment of STH","Target population",null,null,null,null,null,null,null,"Albendazole (ALB)",null,null,null,null,null,"Mebendazole (MBD)"]
["Country","Province/State","District","PreSAC","SAC","Total","LF","STH",null,"Population","Rounds planned",null,"STH (ALB)",null,null,null,"STH (MBD)",null,null,null,"Remaining in stock (LF)","Tablets to be procured (LF)","Bottle (400 mg)\n200 tablets (LF)","Remaining in stock (STH)","Tablets to be procured for SAC (STH)","Bottle (400 mg)\n200 tablets (STH)","Remaining in stock","Tablets to be procured for SAC","Bottles (500 mg)\n150 tablets"]
[null,null,null,null,null,null,null,null,null,null,null,null,"PreSAC","SAC","Other","Total","PreSAC","SAC","Other","Total"]
[{"$f":"IF(AND(INTRO!$E$37=\"Non-endemic\",INTRO!$E$41=\"Non-endemic\"),\" \",IF(COUNTRY_INFO!A9=0,\" \",COUNTRY_INFO!A9))","v":"CAR"},{"$f":"IF(AND(INTRO!$E$37=\"Non-endemic\",INTRO!$E$41=\"Non-endemic\"),\" \",IF(COUNTRY_INFO!B9=0,\" \",COUNTRY_INFO!B9))","v":"Région Sanitaire N°1"},{"$f":"IF(AND(INTRO!$E$37=\"Non-endemic\",INTRO!$E$41=\"Non-endemic\"),\" \",IF(COUNTRY_INFO!C9=0,\" \",COUNTRY_INFO!C9))","v":"Ombella-Mpoko"},{"$f":"IF(AND(INTRO!$E$37=\"Non-endemic\",INTRO!$E$41=\"Non-endemic\"),0,IF(AND(OR(COUNTRY_INFO!$H9=0,COUNTRY_INFO!$H9=4,COUNTRY_INFO!$H9=99),OR(COUNTRY_INFO!$J9=0,COUNTRY_INFO!$J9=4)),0,COUNTRY_INFO!$E9))","v":68197},{"$f":"IF(AND(INTRO!$E$37=\"Non-endemic\",INTRO!$E$41=\"Non-endemic\"),0,IF(AND(OR(COUNTRY_INFO!$H9=0,COUNTRY_INFO!$H9=4,COUNTRY_INFO!$H9=99),OR(COUNTRY_INFO!$J9=0,COUNTRY_INFO!$J9=4)),0,COUNTRY_INFO!$F9))","v":112098},{"$f":"SUM(D9:E9)","v":180295},{"$f":"IF(AND(INTRO!$E$37=\"Non-endemic\",INTRO!$E$41=\"Non-endemic\"),0,COUNTRY_INFO!Q9)","v":1},{"$f":"IF(AND(INTRO!$E$37=\"Non-endemic\",INTRO!$E$41=\"Non-endemic\"),0,COUNTRY_INFO!S9)","v":1},{"$f":"IF(INTRO!$E$39=\"Non-endemic\",IF($G9=1,DEC!$I9,0),IF($G9=1,IVM!$G9,0))","v":35013},373329,2,"ALB",{"$f":"IF($L9=\"ALB\", IF(INTRO!$E$39=\"Non-endemic\",IF($H9<>0,$D9*($H9-$G9),0),$D9*$H9), 0)","v":68197},{"$f":"IF($L9=\"ALB\", IF($H9<>0, IF($I9=0, $E9*$H9, $E9*($H9-$G9)),0), 0)","v":0},null,{"$f":"SUM(M9:O9)","v":68197},{"$f":"IF($L9=\"MBD\", IF(INTRO!$E$39=\"Non-endemic\",IF($H9<>0,$D9*($H9-$G9),0),$D9*$H9),0)","v":0},{"$f":"IF($L9=\"MBD\", IF($H9<>0,IF($I9=0, $E9*$H9, $E9*($H9-$G9)),0), 0 )","v":0},null,{"$f":"SUM(Q9:S9)","v":0},null,{"$f":"IF($J9<>\" \", IF(($I9+$J9*$K9)>$U9, ($I9+$J9*$K9)-$U9,0), IF($I9>$U9, $I9-$U9, 0))","v":781671},{"$f":"IF($J9<>\" \", ROUNDUP(($I9+$J9*$K9)/200,0), ROUNDUP($I9/200,0))","v":3909},null,{"$f":"IF($N9>$X9,$N9-$X9,0)","v":0},{"$f":"ROUNDUP($N9/200,0)","v":0},null,{"$f":"IF($R9>$AA9,$R9-$AA9,0)","v":0},{"$f":"ROUNDUP($R9/150,0)","v":0}]
[{"$f":"IF(AND(INTRO!$E$37=\"Non-endemic\",INTRO!$E$41=\"Non-endemic\"),\" \",IF(COUNTRY_INFO!A10=0,\" \",COUNTRY_INFO!A10))","v":"CAR"},{"$f":"IF(AND(INTRO!$E$37=\"Non-endemic\",INTRO!$E$41=\"Non-endemic\"),\" \",IF(COUNTRY_INFO!B10=0,\" \",COUNTRY_INFO!B10))","v":"Région Sanitaire N°1"},{"$f":"IF(AND(INTRO!$E$37=\"Non-endemic\",INTRO!$E$41=\"Non-endemic\"),\" \",IF(COUNTRY_INFO!C10=0,\" \",COUNTRY_INFO!C10))","v":"Lobaye"},{"$f":"IF(AND(INTRO!$E$37=\"Non-endemic\",INTRO!$E$41=\"Non-endemic\"),0,IF(AND(OR(COUNTRY_INFO!$H10=0,COUNTRY_INFO!$H10=4,COUNTRY_INFO!$H10=99),OR(COUNTRY_INFO!$J10=0,COUNTRY_INFO!$J10=4)),0,COUNTRY_INFO!$E10))","v":47196},{"$f":"IF(AND(INTRO!$E$37=\"Non-endemic\",INTRO!$E$41=\"Non-endemic\"),0,IF(AND(OR(COUNTRY_INFO!$H10=0,COUNTRY_INFO!$H10=4,COUNTRY_INFO!$H10=99),OR(COUNTRY_INFO!$J10=0,COUNTRY_INFO!$J10=4)),0,COUNTRY_INFO!$F10))","v":77578},{"$f":"SUM(D10:E10)","v":124774},{"$f":"IF(AND(INTRO!$E$37=\"Non-endemic\",INTRO!$E$41=\"Non-endemic\"),0,COUNTRY_INFO!Q10)","v":1},{"$f":"IF(AND(INTRO!$E$37=\"Non-endemic\",INTRO!$E$41=\"Non-endemic\"),0,COUNTRY_INFO!S10)","v":1},{"$f":"IF(INTRO!$E$39=\"Non-endemic\",IF($G10=1,DEC!$I10,0),IF($G10=1,IVM!$G10,0))","v":24230},258366,2,"ALB",{"$f":"IF($L10=\"ALB\", IF(INTRO!$E$39=\"Non-endemic\",IF($H10<>0,$D10*($H10-$G10),0),$D10*$H10), 0)","v":47196},0,null,{"$f":"SUM(M10:O10)","v":47196},{"$f":"IF($L10=\"MBD\", IF(INTRO!$E$39=\"Non-endemic\",IF($H10<>0,$D10*($H10-$G10),0),$D10*$H10),0)","v":0},0,null,{"$f":"SUM(Q10:S10)","v":0},null,540962,2705,null,0,0,null,0,0]
[{"$f":"IF(AND(INTRO!$E$37=\"Non-endemic\",INTRO!$E$41=\"Non-endemic\"),\" \",IF(COUNTRY_INFO!A11=0,\" \",COUNTRY_INFO!A11))","v":"CAR"},{"$f":"IF(AND(INTRO!$E$37=\"Non-endemic\",INTRO!$E$41=\"Non-endemic\"),\" \",IF(COUNTRY_INFO!B11=0,\" \",COUNTRY_INFO!B11))","v":"Région Sanitaire N°2"},{"$f":"IF(AND(INTRO!$E$37=\"Non-endemic\",INTRO!$E$41=\"Non-endemic\"),\" \",IF(COUNTRY_INFO!C11=0,\" \",COUNTRY_INFO!C11))","v":"Mambéré-Kadéï"},{"$f":"IF(AND(INTRO!$E$37=\"Non-endemic\",INTRO!$E$41=\"Non-endemic\"),0,IF(AND(OR(COUNTRY_INFO!$H11=0,COUNTRY_INFO!$H11=4,COUNTRY_INFO!$H11=99),OR(COUNTRY_INFO!$J11=0,COUNTRY_INFO!$J11=4)),0,COUNTRY_INFO!$E11))","v":69739},{"$f":"IF(AND(INTRO!$E$37=\"Non-endemic\",INTRO!$E$41=\"Non-endemic\"),0,IF(AND(OR(COUNTRY_INFO!$H11=0,COUNTRY_INFO!$H11=4,COUNTRY_INFO!$H11=99),OR(COUNTRY_INFO!$J11=0,COUNTRY_INFO!$J11=4)),0,COUNTRY_INFO!$F11))","v":114633},184372,{"$f":"IF(AND(INTRO!$E$37=\"Non-endemic\",INTRO!$E$41=\"Non-endemic\"),0,COUNTRY_INFO!Q11)","v":1},{"$f":"IF(AND(INTRO!$E$37=\"Non-endemic\",INTRO!$E$41=\"Non-endemic\"),0,COUNTRY_INFO!S11)","v":1},{"$f":"IF(INTRO!$E$39=\"Non-endemic\",IF($G11=1,DEC!$I11,0),IF($G11=1,IVM!$G11,0))","v":35804},381774,2,"ALB",{"$f":"IF($L11=\"ALB\", IF(INTRO!$E$39=\"Non-endemic\",IF($H11<>0,$D11*($H11-$G11),0),$D11*$H11), 0)","v":69739},0,null,69739,{"$f":"IF($L11=\"MBD\", IF(INTRO!$E$39=\"Non-endemic\",IF($H11<>0,$D11*($H11-$G11),0),$D11*$H11),0)","v":0},0,null,0,null,799352,3997,null,0,0,null,0,0]
[{"$f":"IF(AND(INTRO!$E$37=\"Non-endemic\",INTRO!$E$41=\"Non-endemic\"),\" \",IF(COUNTRY_INFO!A12=0,\" \",COUNTRY_INFO!A12))","v":"CAR"},{"$f":"IF(AND(INTRO!$E$37=\"Non-endemic\",INTRO!$E$41=\"Non-endemic\"),\" \",IF(COUNTRY_INFO!B12=0,\" \",COUNTRY_INFO!B12))","v":"Région Sanitaire N°2"},{"$f":"IF(AND(INTRO!$E$37=\"Non-endemic\",INTRO!$E$41=\"Non-endemic\"),\" \",IF(COUNTRY_INFO!C12=0,\" \",COUNTRY_INFO!C12))","v":"Sangha-Mbaéré"},{"$f":"IF(AND(INTRO!$E$37=\"Non-endemic\",INTRO!$E$41=\"Non-endemic\"),0,IF(AND(OR(COUNTRY_INFO!$H12=0,COUNTRY_INFO!$H12=4,COUNTRY_INFO!$H12=99),OR(COUNTRY_INFO!$J12=0,COUNTRY_INFO!$J12=4)),0,COUNTRY_INFO!$E12))","v":19323},{"$f":"IF(AND(INTRO!$E$37=\"Non-endemic\",INTRO!$E$41=\"Non-endemic\"),0,IF(AND(OR(COUNTRY_INFO!$H12=0,COUNTRY_INFO!$H12=4,COUNTRY_INFO!$H12=99),OR(COUNTRY_INFO!$J12=0,COUNTRY_INFO!$J12=4)),0,COUNTRY_INFO!$F12))","v":31762},51085,{"$f":"IF(AND(INTRO!$E$37=\"Non-endemic\",INTRO!$E$41=\"Non-endemic\"),0,COUNTRY_INFO!Q12)","v":1},{"$f":"IF(AND(INTRO!$E$37=\"Non-endemic\",INTRO!$E$41=\"Non-endemic\"),0,COUNTRY_INFO!S12)","v":1},{"$f":"IF(INTRO!$E$39=\"Non-endemic\",IF($G12=1,DEC!$I12,0),IF($G12=1,IVM!$G12,0))","v":9920},105779,2,"ALB",{"$f":"IF($L12=\"ALB\", IF(INTRO!$E$39=\"Non-endemic\",IF($H12<>0,$D12*($H12-$G12),0),$D12*$H12), 0)","v":19323},0,null,19323,{"$f":"IF($L12=\"MBD\", IF(INTRO!$E$39=\"Non-endemic\",IF($H12<>0,$D12*($H12-$G12),0),$D12*$H12),0)","v":0},0,null,0,null,221478,1108,null,0,0,null,0,0]
[{"$f":"IF(AND(INTRO!$E$37=\"Non-endemic\",INTRO!$E$41=\"Non-endemic\"),\" \",IF(COUNTRY_INFO!A13=0,\" \",COUNTRY_INFO!A13))","v":"CAR"},{"$f":"IF(AND(INTRO!$E$37=\"Non-endemic\",INTRO!$E$41=\"Non-endemic\"),\" \",IF(COUNTRY_INFO!B13=0,\" \",COUNTRY_INFO!B13))","v":"Région Sanitaire N°2"},{"$f":"IF(AND(INTRO!$E$37=\"Non-endemic\",INTRO!$E$41=\"Non-endemic\"),\" \",IF(COUNTRY_INFO!C13=0,\" \",COUNTRY_INFO!C13))","v":"Nana-Mambéré"},{"$f":"IF(AND(INTRO!$E$37=\"Non-endemic\",INTRO!$E$41=\"Non-endemic\"),0,IF(AND(OR(COUNTRY_INFO!$H13=0,COUNTRY_INFO!$H13=4,COUNTRY_INFO!$H13=99),OR(COUNTRY_INFO!$J13=0,COUNTRY_INFO!$J13=4)),0,COUNTRY_INFO!$E13))","v":0},{"$f":"IF(AND(INTRO!$E$37=\"Non-endemic\",INTRO!$E$41=\"Non-endemic\"),0,IF(AND(OR(COUNTRY_INFO!$H13=0,COUNTRY_INFO!$H13=4,COUNTRY_INFO!$H13=99),OR(COUNTRY_INFO!$J13=0,COUNTRY_INFO!$J13=4)),0,COUNTRY_INFO!$F13))","v":0},0,{"$f":"IF(AND(INTRO!$E$37=\"Non-endemic\",INTRO!$E$41=\"Non-endemic\"),0,COUNTRY_INFO!Q13)","v":0},{"$f":"IF(AND(INTRO!$E$37=\"Non-endemic\",INTRO!$E$41=\"Non-endemic\"),0,COUNTRY_INFO!S13)","v":0},{"$f":"IF(INTRO!$E$39=\"Non-endemic\",IF($G13=1,DEC!$I13,0),IF($G13=1,IVM!$G13,0))","v":0},{"$f":"IF($G13=0, \" \", IF(COUNTRY_INFO!$H13=1, IF(COUNTRY_INFO!$L13=1, 0,\" \"),\" \"))","v":" "},null,null,{"$f":"IF($L13=\"ALB\", IF(INTRO!$E$39=\"Non-endemic\",IF($H13<>0,$D13*($H13-$G13),0),$D13*$H13), 0)","v":0},0,null,0,{"$f":"IF($L13=\"MBD\", IF(INTRO!$E$39=\"Non-endemic\",IF($H13<>0,$D13*($H13-$G13),0),$D13*$H13),0)","v":0},0,null,0,null,0,0,null,0,0,null,0,0]
[{"$f":"IF(AND(INTRO!$E$37=\"Non-endemic\",INTRO!$E$41=\"Non-endemic\"),\" \",IF(COUNTRY_INFO!A14=0,\" \",COUNTRY_INFO!A14))","v":"CAR"},{"$f":"IF(AND(INTRO!$E$37=\"Non-endemic\",INTRO!$E$41=\"Non-endemic\"),\" \",IF(COUNTRY_INFO!B14=0,\" \",COUNTRY_INFO!B14))","v":"Région Sanitaire N°3"},{"$f":"IF(AND(INTRO!$E$37=\"Non-endemic\",INTRO!$E$41=\"Non-endemic\"),\" \",IF(COUNTRY_INFO!C14=0,\" \",COUNTRY_INFO!C14))","v":"Ouham"},{"$f":"IF(AND(INTRO!$E$37=\"Non-endemic\",INTRO!$E$41=\"Non-endemic\"),0,IF(AND(OR(COUNTRY_INFO!$H14=0,COUNTRY_INFO!$H14=4,COUNTRY_INFO!$H14=99),OR(COUNTRY_INFO!$J14=0,COUNTRY_INFO!$J14=4)),0,COUNTRY_INFO!$E14))","v":0},{"$f":"IF(AND(INTRO!$E$37=\"Non-endemic\",INTRO!$E$41=\"Non-endemic\"),0,IF(AND(OR(COUNTRY_INFO!$H14=0,COUNTRY_INFO!$H14=4,COUNTRY_INFO!$H14=99),OR(COUNTRY_INFO!$J14=0,COUNTRY_INFO!$J14=4)),0,COUNTRY_INFO!$F14))","v":0},0,{"$f":"IF(AND(INTRO!$E$37=\"Non-endemic\",INTRO!$E$41=\"Non-endemic\"),0,COUNTRY_INFO!Q14)","v":0},{"$f":"IF(AND(INTRO!$E$37=\"Non-endemic\",INTRO!$E$41=\"Non-endemic\"),0,COUNTRY_INFO!S14)","v":0},{"$f":"IF(INTRO!$E$39=\"Non-endemic\",IF($G14=1,DEC!$I14,0),IF($G14=1,IVM!$G14,0))","v":0},{"$f":"IF($G14=0, \" \", IF(COUNTRY_INFO!$H14=1, IF(COUNTRY_INFO!$L14=1, 0,\" \"),\" \"))","v":" "},null,null,{"$f":"IF($L14=\"ALB\", IF(INTRO!$E$39=\"Non-endemic\",IF($H14<>0,$D14*($H14-$G14),0),$D14*$H14), 0)","v":0},0,null,0,{"$f":"IF($L14=\"MBD\", IF(INTRO!$E$39=\"Non-endemic\",IF($H14<>0,$D14*($H14-$G14),0),$D14*$H14),0)","v":0},0,null,0,null,0,0,null,0,0,null,0,0]
[{"$f":"IF(AND(INTRO!$E$37=\"Non-endemic\",INTRO!$E$41=\"Non-endemic\"),\" \",IF(COUNTRY_INFO!A15=0,\" \",COUNTRY_INFO!A15))","v":"CAR"},{"$f":"IF(AND(INTRO!$E$37=\"Non-endemic\",INTRO!$E$41=\"Non-endemic\"),\" \",IF(COUNTRY_INFO!B15=0,\" \",COUNTRY_INFO!B15))","v":"Région Sanitaire N°3"},{"$f":"IF(AND(INTRO!$E$37=\"Non-endemic\",INTRO!$E$41=\"Non-endemic\"),\" \",IF(COUNTRY_INFO!C15=0,\" \",COUNTRY_INFO!C15))","v":"Ouham-Pendé"},{"$f":"IF(AND(INTRO!$E$37=\"Non-endemic\",INTRO!$E$41=\"Non-endemic\"),0,IF(AND(OR(COUNTRY_INFO!$H15=0,COUNTRY_INFO!$H15=4,COUNTRY_INFO!$H15=99),OR(COUNTRY_INFO!$J15=0,COUNTRY_INFO!$J15=4)),0,COUNTRY_INFO!$E15))","v":0},{"$f":"IF(AND(INTRO!$E$37=\"Non-endemic\",INTRO!$E$41=\"Non-endemic\"),0,IF(AND(OR(COUNTRY_INFO!$H15=0,COUNTRY_INFO!$H15=4,COUNTRY_INFO!$H15=99),OR(COUNTRY_INFO!$J15=0,COUNTRY_INFO!$J15=4)),0,COUNTRY_INFO!$F15))","v":0},0,{"$f":"IF(AND(INTRO!$E$37=\"Non-endemic\",INTRO!$E$41=\"Non-endemic\"),0,COUNTRY_INFO!Q15)","v":0},{"$f":"IF(AND(INTRO!$E$37=\"Non-endemic\",INTRO!$E$41=\"Non-endemic\"),0,COUNTRY_INFO!S15)","v":0},{"$f":"IF(INTRO!$E$39=\"Non-endemic\",IF($G15=1,DEC!$I15,0),IF($G15=1,IVM!$G15,0))","v":0},{"$f":"IF($G15=0, \" \", IF(COUNTRY_INFO!$H15=1, IF(COUNTRY_INFO!$L15=1, 0,\" \"),\" \"))","v":" "},null,null,{"$f":"IF($L15=\"ALB\", IF(INTRO!$E$39=\"Non-endemic\",IF($H15<>0,$D15*($H15-$G15),0),$D15*$H15), 0)","v":0},0,null,0,{"$f":"IF($L15=\"MBD\", IF(INTRO!$E$39=\"Non-endemic\",IF($H15<>0,$D15*($H15-$G15),0),$D15*$H15),0)","v":0},0,null,0,null,0,0,null,0,0,null,0,0]
[{"$f":"IF(AND(INTRO!$E$37=\"Non-endemic\",INTRO!$E$41=\"Non-endemic\"),\" \",IF(COUNTRY_INFO!A16=0,\" \",COUNTRY_INFO!A16))","v":"CAR"},{"$f":"IF(AND(INTRO!$E$37=\"Non-endemic\",INTRO!$E$41=\"Non-endemic\"),\" \",IF(COUNTRY_INFO!B16=0,\" \",COUNTRY_INFO!B16))","v":"Région Sanitaire N°4"},{"$f":"IF(AND(INTRO!$E$37=\"Non-endemic\",INTRO!$E$41=\"Non-endemic\"),\" \",IF(COUNTRY_INFO!C16=0,\" \",COUNTRY_INFO!C16))","v":"Ouaka"},{"$f":"IF(AND(INTRO!$E$37=\"Non-endemic\",INTRO!$E$41=\"Non-endemic\"),0,IF(AND(OR(COUNTRY_INFO!$H16=0,COUNTRY_INFO!$H16=4,COUNTRY_INFO!$H16=99),OR(COUNTRY_INFO!$J16=0,COUNTRY_INFO!$J16=4)),0,COUNTRY_INFO!$E16))","v":53995},{"$f":"IF(AND(INTRO!$E$37=\"Non-endemic\",INTRO!$E$41=\"Non-endemic\"),0,IF(AND(OR(COUNTRY_INFO!$H16=0,COUNTRY_INFO!$H16=4,COUNTRY_INFO!$H16=99),OR(COUNTRY_INFO!$J16=0,COUNTRY_INFO!$J16=4)),0,COUNTRY_INFO!$F16))","v":88753},142748,{"$f":"IF(AND(INTRO!$E$37=\"Non-endemic\",INTRO!$E$41=\"Non-endemic\"),0,COUNTRY_INFO!Q16)","v":1},{"$f":"IF(AND(INTRO!$E$37=\"Non-endemic\",INTRO!$E$41=\"Non-endemic\"),0,COUNTRY_INFO!S16)","v":1},{"$f":"IF(INTRO!$E$39=\"Non-endemic\",IF($G16=1,DEC!$I16,0),IF($G16=1,IVM!$G16,0))","v":323304},{"$f":"IF($G16=0, \" \", IF(COUNTRY_INFO!$H16=1, IF(COUNTRY_INFO!$L16=1, 0,\" \"),\" \"))","v":" "},null,"ALB",{"$f":"IF($L16=\"ALB\", IF(INTRO!$E$39=\"Non-endemic\",IF($H16<>0,$D16*($H16-$G16),0),$D16*$H16), 0)","v":53995},0,null,53995,{"$f":"IF($L16=\"MBD\", IF(INTRO!$E$39=\"Non-endemic\",IF($H16<>0,$D16*($H16-$G16),0),$D16*$H16),0)","v":0},0,null,0,null,323304,1617,null,0,0,null,0,0]
[{"$f":"IF(AND(INTRO!$E$37=\"Non-endemic\",INTRO!$E$41=\"Non-endemic\"),\" \",IF(COUNTRY_INFO!A17=0,\" \",COUNTRY_INFO!A17))","v":"CAR"},{"$f":"IF(AND(INTRO!$E$37=\"Non-endemic\",INTRO!$E$41=\"Non-endemic\"),\" \",IF(COUNTRY_INFO!B17=0,\" \",COUNTRY_INFO!B17))","v":"Région Sanitaire N°4"},{"$f":"IF(AND(INTRO!$E$37=\"Non-endemic\",INTRO!$E$41=\"Non-endemic\"),\" \",IF(COUNTRY_INFO!C17=0,\" \",COUNTRY_INFO!C17))","v":"Kémo"},{"$f":"IF(AND(INTRO!$E$37=\"Non-endemic\",INTRO!$E$41=\"Non-endemic\"),0,IF(AND(OR(COUNTRY_INFO!$H17=0,COUNTRY_INFO!$H17=4,COUNTRY_INFO!$H17=99),OR(COUNTRY_INFO!$J17=0,COUNTRY_INFO!$J17=4)),0,COUNTRY_INFO!$E17))","v":23107},{"$f":"IF(AND(INTRO!$E$37=\"Non-endemic\",INTRO!$E$41=\"Non-endemic\"),0,IF(AND(OR(COUNTRY_INFO!$H17=0,COUNTRY_INFO!$H17=4,COUNTRY_INFO!$H17=99),OR(COUNTRY_INFO!$J17=0,COUNTRY_INFO!$J17=4)),0,COUNTRY_INFO!$F17))","v":37981},61088,{"$f":"IF(AND(INTRO!$E$37=\"Non-endemic\",INTRO!$E$41=\"Non-endemic\"),0,COUNTRY_INFO!Q17)","v":1},{"$f":"IF(AND(INTRO!$E$37=\"Non-endemic\",INTRO!$E$41=\"Non-endemic\"),0,COUNTRY_INFO!S17)","v":1},{"$f":"IF(INTRO!$E$39=\"Non-endemic\",IF($G17=1,DEC!$I17,0),IF($G17=1,IVM!$G17,0))","v":138356},{"$f":"IF($G17=0, \" \", IF(COUNTRY_INFO!$H17=1, IF(COUNTRY_INFO!$L17=1, 0,\" \"),\" \"))","v":" "},null,"ALB",{"$f":"IF($L17=\"ALB\", IF(INTRO!$E$39=\"Non-endemic\",IF($H17<>0,$D17*($H17-$G17),0),$D17*$H17), 0)","v":23107},0,null,23107,{"$f":"IF($L17=\"MBD\", IF(INTRO!$E$39=\"Non-endemic\",IF($H17<>0,$D17*($H17-$G17),0),$D17*$H17),0)","v":0},0,null,0,null,138356,692,null,0,0,null,0,0]
[{"$f":"IF(AND(INTRO!$E$37=\"Non-endemic\",INTRO!$E$41=\"Non-endemic\"),\" \",IF(COUNTRY_INFO!A18=0,\" \",COUNTRY_INFO!A18))","v":"CAR"},{"$f":"IF(AND(INTRO!$E$37=\"Non-endemic\",INTRO!$E$41=\"Non-endemic\"),\" \",IF(COUNTRY_INFO!B18=0,\" \",COUNTRY_INFO!B18))","v":"Région Sanitaire N°4"},{"$f":"IF(AND(INTRO!$E$37=\"Non-endemic\",INTRO!$E$41=\"Non-endemic\"),\" \",IF(COUNTRY_INFO!C18=0,\" \",COUNTRY_INFO!C18))","v":"Nana-Gribizi"},{"$f":"IF(AND(INTRO!$E$37=\"Non-endemic\",INTRO!$E$41=\"Non-endemic\"),0,IF(AND(OR(COUNTRY_INFO!$H18=0,COUNTRY_INFO!$H18=4,COUNTRY_INFO!$H18=99),OR(COUNTRY_INFO!$J18=0,COUNTRY_INFO!$J18=4)),0,COUNTRY_INFO!$E18))","v":0},{"$f":"IF(AND(INTRO!$E$37=\"Non-endemic\",INTRO!$E$41=\"Non-endemic\"),0,IF(AND(OR(COUNTRY_INFO!$H18=0,COUNTRY_INFO!$H18=4,COUNTRY_INFO!$H18=99),OR(COUNTRY_INFO!$J18=0,COUNTRY_INFO!$J18=4)),0,COUNTRY_INFO!$F18))","v":0},0,{"$f":"IF(AND(INTRO!$E$37=\"Non-endemic\",INTRO!$E$41=\"Non-endemic\"),0,COUNTRY_INFO!Q18)","v":0},{"$f":"IF(AND(INTRO!$E$37=\"Non-endemic\",INTRO!$E$41=\"Non-endemic\"),0,COUNTRY_INFO!S18)","v":0},{"$f":"IF(INTRO!$E$39=\"Non-endemic\",IF($G18=1,DEC!$I18,0),IF($G18=1,IVM!$G18,0))","v":0},{"$f":"IF($G18=0, \" \", IF(COUNTRY_INFO!$H18=1, IF(COUNTRY_INFO!$L18=1, 0,\" \"),\" \"))","v":" "},null,null,{"$f":"IF($L18=\"ALB\", IF(INTRO!$E$39=\"Non-endemic\",IF($H18<>0,$D18*($H18-$G18),0),$D18*$H18), 0)","v":0},0,null,0,{"$f":"IF($L18=\"MBD\", IF(INTRO!$E$39=\"Non-endemic\",IF($H18<>0,$D18*($H18-$G18),0),$D18*$H18),0)","v":0},0,null,0,null,0,0,null,0,0,null,0,0]
[{"$f":"IF(AND(INTRO!$E$37=\"Non-endemic\",INTRO!$E$41=\"Non-endemic\"),\" \",IF(COUNTRY_INFO!A19=0,\" \",COUNTRY_INFO!A19))","v":"CAR"},{"$f":"IF(AND(INTRO!$E$37=\"Non-endemic\",INTRO!$E$41=\"Non-endemic\"),\" \",IF(COUNTRY_INFO!B19=0,\" \",COUNTRY_INFO!B19))","v":"Région Sanitaire N°5"},{"$f":"IF(AND(INTRO!$E$37=\"Non-endemic\",INTRO!$E$41=\"Non-endemic\"),\" \",IF(COUNTRY_INFO!C19=0,\" \",COUNTRY_INFO!C19))","v":"Haute-Kotto"},{"$f":"IF(AND(INTRO!$E$37=\"Non-endemic\",INTRO!$E$41=\"Non-endemic\"),0,IF(AND(OR(COUNTRY_INFO!$H19=0,COUNTRY_INFO!$H19=4,COUNTRY_INFO!$H19=99),OR(COUNTRY_INFO!$J19=0,COUNTRY_INFO!$J19=4)),0,COUNTRY_INFO!$E19))","v":0},{"$f":"IF(AND(INTRO!$E$37=\"Non-endemic\",INTRO!$E$41=\"Non-endemic\"),0,IF(AND(OR(COUNTRY_INFO!$H19=0,COUNTRY_INFO!$H19=4,COUNTRY_INFO!$H19=99),OR(COUNTRY_INFO!$J19=0,COUNTRY_INFO!$J19=4)),0,COUNTRY_INFO!$F19))","v":0},0,{"$f":"IF(AND(INTRO!$E$37=\"Non-endemic\",INTRO!$E$41=\"Non-endemic\"),0,COUNTRY_INFO!Q19)","v":0},{"$f":"IF(AND(INTRO!$E$37=\"Non-endemic\",INTRO!$E$41=\"Non-endemic\"),0,COUNTRY_INFO!S19)","v":0},{"$f":"IF(INTRO!$E$39=\"Non-endemic\",IF($G19=1,DEC!$I19,0),IF($G19=1,IVM!$G19,0))","v":0},{"$f":"IF($G19=0, \" \", IF(COUNTRY_INFO!$H19=1, IF(COUNTRY_INFO!$L19=1, 0,\" \"),\" \"))","v":" "},null,null,{"$f":"IF($L19=\"ALB\", IF(INTRO!$E$39=\"Non-endemic\",IF($H19<>0,$D19*($H19-$G19),0),$D19*$H19), 0)","v":0},0,null,0,{"$f":"IF($L19=\"MBD\", IF(INTRO!$E$39=\"Non-endemic\",IF($H19<>0,$D19*($H19-$G19),0),$D19*$H19),0)","v":0},0,null,0,null,0,0,null,0,0,null,0,0]
[{"$f":"IF(AND(INTRO!$E$37=\"Non-endemic\",INTRO!$E$41=\"Non-endemic\"),\" \",IF(COUNTRY_INFO!A20=0,\" \",COUNTRY_INFO!A20))","v":"CAR"},{"$f":"IF(AND(INTRO!$E$37=\"Non-endemic\",INTRO!$E$41=\"Non-endemic\"),\" \",IF(COUNTRY_INFO!B20=0,\" \",COUNTRY_INFO!B20))","v":"Région Sanitaire N°5"},{"$f":"IF(AND(INTRO!$E$37=\"Non-endemic\",INTRO!$E$41=\"Non-endemic\"),\" \",IF(COUNTRY_INFO!C20=0,\" \",COUNTRY_INFO!C20))","v":"Bamingui-Bangoran"},{"$f":"IF(AND(INTRO!$E$37=\"Non-endemic\",INTRO!$E$41=\"Non-endemic\"),0,IF(AND(OR(COUNTRY_INFO!$H20=0,COUNTRY_INFO!$H20=4,COUNTRY_INFO!$H20=99),OR(COUNTRY_INFO!$J20=0,COUNTRY_INFO!$J20=4)),0,COUNTRY_INFO!$E20))","v":0},{"$f":"IF(AND(INTRO!$E$37=\"Non-endemic\",INTRO!$E$41=\"Non-endemic\"),0,IF(AND(OR(COUNTRY_INFO!$H20=0,COUNTRY_INFO!$H20=4,COUNTRY_INFO!$H20=99),OR(COUNTRY_INFO!$J20=0,COUNTRY_INFO!$J20=4)),0,COUNTRY_INFO!$F20))","v":0},0,{"$f":"IF(AND(INTRO!$E$37=\"Non-endemic\",INTRO!$E$41=\"Non-endemic\"),0,COUNTRY_INFO!Q20)","v":0},{"$f":"IF(AND(INTRO!$E$37=\"Non-endemic\",INTRO!$E$41=\"Non-endemic\"),0,COUNTRY_INFO!S20)","v":0},{"$f":"IF(INTRO!$E$39=\"Non-endemic\",IF($G20=1,DEC!$I20,0),IF($G20=1,IVM!$G20,0))","v":0},{"$f":"IF($G20=0, \" \", IF(COUNTRY_INFO!$H20=1, IF(COUNTRY_INFO!$L20=1, 0,\" \"),\" \"))","v":" "},null,null,{"$f":"IF($L20=\"ALB\", IF(INTRO!$E$39=\"Non-endemic\",IF($H20<>0,$D20*($H20-$G20),0),$D20*$H20), 0)","v":0},0,null,0,{"$f":"IF($L20=\"MBD\", IF(INTRO!$E$39=\"Non-endemic\",IF($H20<>0,$D20*($H20-$G20),0),$D20*$H20),0)","v":0},0,null,0,null,0,0,null,0,0,null,0,0]
[{"$f":"IF(AND(INTRO!$E$37=\"Non-endemic\",INTRO!$E$41=\"Non-endemic\"),\" \",IF(COUNTRY_INFO!A21=0,\" \",COUNTRY_INFO!A21))","v":"CAR"},{"$f":"IF(AND(INTRO!$E$37=\"Non-endemic\",INTRO!$E$41=\"Non-endemic\"),\" \",IF(COUNTRY_INFO!B21=0,\" \",COUNTRY_INFO!B21))","v":"Région Sanitaire N°5"},{"$f":"IF(AND(INTRO!$E$37=\"Non-endemic\",INTRO!$E$41=\"Non-endemic\"),\" \",IF(COUNTRY_INFO!C21=0,\" \",COUNTRY_INFO!C21))","v":"Vakaga"},{"$f":"IF(AND(INTRO!$E$37=\"Non-endemic\",INTRO!$E$41=\"Non-endemic\"),0,IF(AND(OR(COUNTRY_INFO!$H21=0,COUNTRY_INFO!$H21=4,COUNTRY_INFO!$H21=99),OR(COUNTRY_INFO!$J21=0,COUNTRY_INFO!$J21=4)),0,COUNTRY_INFO!$E21))","v":0},{"$f":"IF(AND(INTRO!$E$37=\"Non-endemic\",INTRO!$E$41=\"Non-endemic\"),0,IF(AND(OR(COUNTRY_INFO!$H21=0,COUNTRY_INFO!$H21=4,COUNTRY_INFO!$H21=99),OR(COUNTRY_INFO!$J21=0,COUNTRY_INFO!$J21=4)),0,COUNTRY_INFO!$F21))","v":0},0,{"$f":"IF(AND(INTRO!$E$37=\"Non-endemic\",INTRO!$E$41=\"Non-endemic\"),0,COUNTRY_INFO!Q21)","v":0},{"$f":"IF(AND(INTRO!$E$37=\"Non-endemic\",INTRO!$E$41=\"Non-endemic\"),0,COUNTRY_INFO!S21)","v":0},{"$f":"IF(INTRO!$E$39=\"Non-endemic\",IF($G21=1,DEC!$I21,0),IF($G21=1,IVM!$G21,0))","v":0},{"$f":"IF($G21=0, \" \", IF(COUNTRY_INFO!$H21=1, IF(COUNTRY_INFO!$L21=1, 0,\" \"),\" \"))","v":" "},null,null,{"$f":"IF($L21=\"ALB\", IF(INTRO!$E$39=\"Non-endemic\",IF($H21<>0,$D21*($H21-$G21),0),$D21*$H21), 0)","v":0},0,null,0,{"$f":"IF($L21=\"MBD\", IF(INTRO!$E$39=\"Non-endemic\",IF($H21<>0,$D21*($H21-$G21),0),$D21*$H21),0)","v":0},0,null,0,null,0,0,null,0,0,null,0,0]
[{"$f":"IF(AND(INTRO!$E$37=\"Non-endemic\",INTRO!$E$41=\"Non-endemic\"),\" \",IF(COUNTRY_INFO!A22=0,\" \",COUNTRY_INFO!A22))","v":"CAR"},{"$f":"IF(AND(INTRO!$E$37=\"Non-endemic\",INTRO!$E$41=\"Non-endemic\"),\" \",IF(COUNTRY_INFO!B22=0,\" \",COUNTRY_INFO!B22))","v":"Région Sanitaire N°6"},{"$f":"IF(AND(INTRO!$E$37=\"Non-endemic\",INTRO!$E$41=\"Non-endemic\"),\" \",IF(COUNTRY_INFO!C22=0,\" \",COUNTRY_INFO!C22))","v":"Mbomou"},{"$f":"IF(AND(INTRO!$E$37=\"Non-endemic\",INTRO!$E$41=\"Non-endemic\"),0,IF(AND(OR(COUNTRY_INFO!$H22=0,COUNTRY_INFO!$H22=4,COUNTRY_INFO!$H22=99),OR(COUNTRY_INFO!$J22=0,COUNTRY_INFO!$J22=4)),0,COUNTRY_INFO!$E22))","v":32003},{"$f":"IF(AND(INTRO!$E$37=\"Non-endemic\",INTRO!$E$41=\"Non-endemic\"),0,IF(AND(OR(COUNTRY_INFO!$H22=0,COUNTRY_INFO!$H22=4,COUNTRY_INFO!$H22=99),OR(COUNTRY_INFO!$J22=0,COUNTRY_INFO!$J22=4)),0,COUNTRY_INFO!$F22))","v":52605},84608,{"$f":"IF(AND(INTRO!$E$37=\"Non-endemic\",INTRO!$E$41=\"Non-endemic\"),0,COUNTRY_INFO!Q22)","v":1},{"$f":"IF(AND(INTRO!$E$37=\"Non-endemic\",INTRO!$E$41=\"Non-endemic\"),0,COUNTRY_INFO!S22)","v":1},{"$f":"IF(INTRO!$E$39=\"Non-endemic\",IF($G22=1,DEC!$I22,0),IF($G22=1,IVM!$G22,0))","v":191626},{"$f":"IF($G22=0, \" \", IF(COUNTRY_INFO!$H22=1, IF(COUNTRY_INFO!$L22=1, 0,\" \"),\" \"))","v":" "},null,"ALB",{"$f":"IF($L22=\"ALB\", IF(INTRO!$E$39=\"Non-endemic\",IF($H22<>0,$D22*($H22-$G22),0),$D22*$H22), 0)","v":32003},0,null,32003,{"$f":"IF($L22=\"MBD\", IF(INTRO!$E$39=\"Non-endemic\",IF($H22<>0,$D22*($H22-$G22),0),$D22*$H22),0)","v":0},0,null,0,null,191626,959,null,0,0,null,0,0]
[{"$f":"IF(AND(INTRO!$E$37=\"Non-endemic\",INTRO!$E$41=\"Non-endemic\"),\" \",IF(COUNTRY_INFO!A23=0,\" \",COUNTRY_INFO!A23))","v":"CAR"},{"$f":"IF(AND(INTRO!$E$37=\"Non-endemic\",INTRO!$E$41=\"Non-endemic\"),\" \",IF(COUNTRY_INFO!B23=0,\" \",COUNTRY_INFO!B23))","v":"Région Sanitaire N°6"},{"$f":"IF(AND(INTRO!$E$37=\"Non-endemic\",INTRO!$E$41=\"Non-endemic\"),\" \",IF(COUNTRY_INFO!C23=0,\" \",COUNTRY_INFO!C23))","v":"Basse-Kotto"},{"$f":"IF(AND(INTRO!$E$37=\"Non-endemic\",INTRO!$E$41=\"Non-endemic\"),0,IF(AND(OR(COUNTRY_INFO!$H23=0,COUNTRY_INFO!$H23=4,COUNTRY_INFO!$H23=99),OR(COUNTRY_INFO!$J23=0,COUNTRY_INFO!$J23=4)),0,COUNTRY_INFO!$E23))","v":48617},{"$f":"IF(AND(INTRO!$E$37=\"Non-endemic\",INTRO!$E$41=\"Non-endemic\"),0,IF(AND(OR(COUNTRY_INFO!$H23=0,COUNTRY_INFO!$H23=4,COUNTRY_INFO!$H23=99),OR(COUNTRY_INFO!$J23=0,COUNTRY_INFO!$J23=4)),0,COUNTRY_INFO!$F23))","v":79914},128531,{"$f":"IF(AND(INTRO!$E$37=\"Non-endemic\",INTRO!$E$41=\"Non-endemic\"),0,COUNTRY_INFO!Q23)","v":1},{"$f":"IF(AND(INTRO!$E$37=\"Non-endemic\",INTRO!$E$41=\"Non-endemic\"),0,COUNTRY_INFO!S23)","v":1},{"$f":"IF(INTRO!$E$39=\"Non-endemic\",IF($G23=1,DEC!$I23,0),IF($G23=1,IVM!$G23,0))","v":291104},{"$f":"IF($G23=0, \" \", IF(COUNTRY_INFO!$H23=1, IF(COUNTRY_INFO!$L23=1, 0,\" \"),\" \"))","v":" "},null,"ALB",{"$f":"IF($L23=\"ALB\", IF(INTRO!$E$39=\"Non-endemic\",IF($H23<>0,$D23*($H23-$G23),0),$D23*$H23), 0)","v":48617},0,null,48617,{"$f":"IF($L23=\"MBD\", IF(INTRO!$E$39=\"Non-endemic\",IF($H23<>0,$D23*($H23-$G23),0),$D23*$H23),0)","v":0},0,null,0,null,291104,1456,null,0,0,null,0,0]
[{"$f":"IF(AND(INTRO!$E$37=\"Non-endemic\",INTRO!$E$41=\"Non-endemic\"),\" \",IF(COUNTRY_INFO!A24=0,\" \",COUNTRY_INFO!A24))","v":"CAR"},{"$f":"IF(AND(INTRO!$E$37=\"Non-endemic\",INTRO!$E$41=\"Non-endemic\"),\" \",IF(COUNTRY_INFO!B24=0,\" \",COUNTRY_INFO!B24))","v":"Région Sanitaire N°6"},{"$f":"IF(AND(INTRO!$E$37=\"Non-endemic\",INTRO!$E$41=\"Non-endemic\"),\" \",IF(COUNTRY_INFO!C24=0,\" \",COUNTRY_INFO!C24))","v":"Haut-Mbomou"},{"$f":"IF(AND(INTRO!$E$37=\"Non-endemic\",INTRO!$E$41=\"Non-endemic\"),0,IF(AND(OR(COUNTRY_INFO!$H24=0,COUNTRY_INFO!$H24=4,COUNTRY_INFO!$H24=99),OR(COUNTRY_INFO!$J24=0,COUNTRY_INFO!$J24=4)),0,COUNTRY_INFO!$E24))","v":0},{"$f":"IF(AND(INTRO!$E$37=\"Non-endemic\",INTRO!$E$41=\"Non-endemic\"),0,IF(AND(OR(COUNTRY_INFO!$H24=0,COUNTRY_INFO!$H24=4,COUNTRY_INFO!$H24=99),OR(COUNTRY_INFO!$J24=0,COUNTRY_INFO!$J24=4)),0,COUNTRY_INFO!$F24))","v":0},0,{"$f":"IF(AND(INTRO!$E$37=\"Non-endemic\",INTRO!$E$41=\"Non-endemic\"),0,COUNTRY_INFO!Q24)","v":0},{"$f":"IF(AND(INTRO!$E$37=\"Non-endemic\",INTRO!$E$41=\"Non-endemic\"),0,COUNTRY_INFO!S24)","v":0},{"$f":"IF(INTRO!$E$39=\"Non-endemic\",IF($G24=1,DEC!$I24,0),IF($G24=1,IVM!$G24,0))","v":0},{"$f":"IF($G24=0, \" \", IF(COUNTRY_INFO!$H24=1, IF(COUNTRY_INFO!$L24=1, 0,\" \"),\" \"))","v":" "},null,null,{"$f":"IF($L24=\"ALB\", IF(INTRO!$E$39=\"Non-endemic\",IF($H24<>0,$D24*($H24-$G24),0),$D24*$H24), 0)","v":0},0,null,0,{"$f":"IF($L24=\"MBD\", IF(INTRO!$E$39=\"Non-endemic\",IF($H24<>0,$D24*($H24-$G24),0),$D24*$H24),0)","v":0},0,null,0,null,0,0,null,0,0,null,0,0]
[{"$f":"IF(AND(INTRO!$E$37=\"Non-endemic\",INTRO!$E$41=\"Non-endemic\"),\" \",IF(COUNTRY_INFO!A25=0,\" \",COUNTRY_INFO!A25))","v":"CAR"},{"$f":"IF(AND(INTRO!$E$37=\"Non-endemic\",INTRO!$E$41=\"Non-endemic\"),\" \",IF(COUNTRY_INFO!B25=0,\" \",COUNTRY_INFO!B25))","v":"Région Sanitaire N°7"},{"$f":"IF(AND(INTRO!$E$37=\"Non-endemic\",INTRO!$E$41=\"Non-endemic\"),\" \",IF(COUNTRY_INFO!C25=0,\" \",COUNTRY_INFO!C25))","v":"BANGUI (8 Unités adm.)"},{"$f":"IF(AND(INTRO!$E$37=\"Non-endemic\",INTRO!$E$41=\"Non-endemic\"),0,IF(AND(OR(COUNTRY_INFO!$H25=0,COUNTRY_INFO!$H25=4,COUNTRY_INFO!$H25=99),OR(COUNTRY_INFO!$J25=0,COUNTRY_INFO!$J25=4)),0,COUNTRY_INFO!$E25))","v":0},{"$f":"IF(AND(INTRO!$E$37=\"Non-endemic\",INTRO!$E$41=\"Non-endemic\"),0,IF(AND(OR(COUNTRY_INFO!$H25=0,COUNTRY_INFO!$H25=4,COUNTRY_INFO!$H25=99),OR(COUNTRY_INFO!$J25=0,COUNTRY_INFO!$J25=4)),0,COUNTRY_INFO!$F25))","v":0},0,{"$f":"IF(AND(INTRO!$E$37=\"Non-endemic\",INTRO!$E$41=\"Non-endemic\"),0,COUNTRY_INFO!Q25)","v":0},{"$f":"IF(AND(INTRO!$E$37=\"Non-endemic\",INTRO!$E$41=\"Non-endemic\"),0,COUNTRY_INFO!S25)","v":0},{"$f":"IF(INTRO!$E$39=\"Non-endemic\",IF($G25=1,DEC!$I25,0),IF($G25=1,IVM!$G25,0))","v":0},{"$f":"IF($G25=0, \" \", IF(COUNTRY_INFO!$H25=1, IF(COUNTRY_INFO!$L25=1, 0,\" \"),\" \"))","v":" "},null,null,{"$f":"IF($L25=\"ALB\", IF(INTRO!$E$39=\"Non-endemic\",IF($H25<>0,$D25*($H25-$G25),0),$D25*$H25), 0)","v":0},0,null,0,{"$f":"IF($L25=\"MBD\", IF(INTRO!$E$39=\"Non-endemic\",IF($H25<>0,$D25*($H25-$G25),0),$D25*$H25),0)","v":0},0,null,0,null,0,0,null,0,0,null,0,0]

{"sheet":"PZQ","index":4,"n_rows":25,"n_cols":18,"rows_kept":25,"cut":false,"hidden":false,"merged":[[5,12,5,17],[6,6,7,6],[6,8,7,8],[6,9,7,9],[3,0,3,2],[5,0,5,2],[5,3,5,5],[5,8,5,11],[5,6,5,7],[6,10,7,10],[6,17,7,17],[6,13,7,13],[6,14,7,14],[6,15,7,15],[6,11,7,11],[6,12,7,12],[6,16,7,16],[6,4,7,4],[6,5,7,5],[6,7,7,7],[6,0,7,0],[6,1,7,1],[6,2,7,2],[6,3,7,3]]}
["Praziquantel (PZQ)"]
["Administrative structure, eligible population by age group, treatment plan and information about tablets"]
[]
["TOTAL",null,null,{"$f":"SUM(D$9:D$1000)","v":340070.77},{"$f":"SUM(E$9:E$1000)","v":607809},{"$f":"SUM(F$9:F$1000)","v":947879.77},null,null,{"$f":"SUM(I$9:I$1000)","v":563562},0,607809,1171371,1408905,1823427,1408905,0,1408905,1411]
[]
["Country administrative structure",null,null,"Population requiring treatment with PZQ",null,null,"Treatment plan",null,"Target population",null,null,null,"Praziquantel (PZQ)"]
["Country","Province/State","District","SAC","Adults","Total","SCH","All SAC targeted?","SAC","SAC\nat lower level","Adults","Total","SAC","Adults","Total required\nfor SAC","Remaining in stock","Tablets to be procured","Bottle (600 mg)\n1000 tablets"]
[]
[{"$f":"IF(INTRO!$E$43=\"Non-endemic\",\" \", IF(COUNTRY_INFO!A9=0,\" \",COUNTRY_INFO!A9))","v":"CAR"},{"$f":"IF(INTRO!$E$43=\"Non-endemic\",\" \", IF(COUNTRY_INFO!B9=0,\" \",COUNTRY_INFO!B9))","v":"Région Sanitaire N°1"},{"$f":"IF(INTRO!$E$43=\"Non-endemic\",\" \", IF(COUNTRY_INFO!C9=0,\" \",COUNTRY_INFO!C9))","v":"Ombella-Mpoko"},{"$f":"IF(INTRO!$E$43=\"Non-endemic\", 0, IF(COUNTRY_INFO!$K9>0, IF(COUNTRY_INFO!$K9=4, 0, IF(COUNTRY_INFO!$K9=1, COUNTRY_INFO!$F9*0.33, IF(COUNTRY_INFO!$K9=2, COUNTRY_INFO!$F9*0.5, COUNTRY_INFO!$F9))), 0))","v":112098},{"$f":"IF(INTRO!$E$43=\"Non-endemic\", 0, IF(COUNTRY_INFO!$K9>0, IF(COUNTRY_INFO!$K9=4, 0, IF(COUNTRY_INFO!$K9=1, 0, IF(COUNTRY_INFO!$K9=2, COUNTRY_INFO!$G9*0.2, COUNTRY_INFO!$G9))), 0))","v":296244},{"$f":"SUM(D9:E9)","v":408342},{"$f":"IF(INTRO!$E$43=\"Non-endemic\", \"Not required\", COUNTRY_INFO!T9)","v":1},"Yes",{"$f":"IF($D9=0,0,IF(AND($G9>0,$H9<>\"Yes\"),D9,IF(AND($G9>0,$H9=\"Yes\"),COUNTRY_INFO!$F9,0)))","v":112098},null,{"$f":"IF($G9>0,E9, 0)","v":296244},{"$f":"IF($J9=0,SUM(I9,K9),SUM(J9,K9))","v":408342},{"$f":"IF($J9=0,$I9*2.5,$J9*2.5)","v":280245},{"$f":"$K9*3","v":888732},{"$f":"M9","v":280245},null,{"$f":"IF($O9>$P9,O9-P9,0)","v":280245},{"$f":"ROUNDUP($O9/1000,0)","v":281}]
[{"$f":"IF(INTRO!$E$43=\"Non-endemic\",\" \", IF(COUNTRY_INFO!A10=0,\" \",COUNTRY_INFO!A10))","v":"CAR"},{"$f":"IF(INTRO!$E$43=\"Non-endemic\",\" \", IF(COUNTRY_INFO!B10=0,\" \",COUNTRY_INFO!B10))","v":"Région Sanitaire N°1"},{"$f":"IF(INTRO!$E$43=\"Non-endemic\",\" \", IF(COUNTRY_INFO!C10=0,\" \",COUNTRY_INFO!C10))","v":"Lobaye"},{"$f":"IF(INTRO!$E$43=\"Non-endemic\", 0, IF(COUNTRY_INFO!$K10>0, IF(COUNTRY_INFO!$K10=4, 0, IF(COUNTRY_INFO!$K10=1, COUNTRY_INFO!$F10*0.33, IF(COUNTRY_INFO!$K10=2, COUNTRY_INFO!$F10*0.5, COUNTRY_INFO!$F10))), 0))","v":25600.74},{"$f":"IF(INTRO!$E$43=\"Non-endemic\", 0, IF(COUNTRY_INFO!$K10>0, IF(COUNTRY_INFO!$K10=4, 0, IF(COUNTRY_INFO!$K10=1, 0, IF(COUNTRY_INFO!$K10=2, COUNTRY_INFO!$G10*0.2, COUNTRY_INFO!$G10))), 0))","v":0},{"$f":"SUM(D10:E10)","v":25600.74},{"$f":"IF(INTRO!$E$43=\"Non-endemic\", \"Not required\", COUNTRY_INFO!T10)","v":1},"Yes",{"$f":"IF($D10=0,0,IF(AND($G10>0,$H10<>\"Yes\"),D10,IF(AND($G10>0,$H10=\"Yes\"),COUNTRY_INFO!$F10,0)))","v":77578},null,{"$f":"IF($G10>0,E10, 0)","v":0},{"$f":"IF($J10=0,SUM(I10,K10),SUM(J10,K10))","v":77578},193945,0,{"$f":"M10","v":193945},null,{"$f":"IF($O10>$P10,O10-P10,0)","v":193945},194]
[{"$f":"IF(INTRO!$E$43=\"Non-endemic\",\" \", IF(COUNTRY_INFO!A11=0,\" \",COUNTRY_INFO!A11))","v":"CAR"},{"$f":"IF(INTRO!$E$43=\"Non-endemic\",\" \", IF(COUNTRY_INFO!B11=0,\" \",COUNTRY_INFO!B11))","v":"Région Sanitaire N°2"},{"$f":"IF(INTRO!$E$43=\"Non-endemic\",\" \", IF(COUNTRY_INFO!C11=0,\" \",COUNTRY_INFO!C11))","v":"Mambéré-Kadéï"},{"$f":"IF(INTRO!$E$43=\"Non-endemic\", 0, IF(COUNTRY_INFO!$K11>0, IF(COUNTRY_INFO!$K11=4, 0, IF(COUNTRY_INFO!$K11=1, COUNTRY_INFO!$F11*0.33, IF(COUNTRY_INFO!$K11=2, COUNTRY_INFO!$F11*0.5, COUNTRY_INFO!$F11))), 0))","v":37828.89},{"$f":"IF(INTRO!$E$43=\"Non-endemic\", 0, IF(COUNTRY_INFO!$K11>0, IF(COUNTRY_INFO!$K11=4, 0, IF(COUNTRY_INFO!$K11=1, 0, IF(COUNTRY_INFO!$K11=2, COUNTRY_INFO!$G11*0.2, COUNTRY_INFO!$G11))), 0))","v":0},37828.89,{"$f":"IF(INTRO!$E$43=\"Non-endemic\", \"Not required\", COUNTRY_INFO!T11)","v":1},"Yes",{"$f":"IF($D11=0,0,IF(AND($G11>0,$H11<>\"Yes\"),D11,IF(AND($G11>0,$H11=\"Yes\"),COUNTRY_INFO!$F11,0)))","v":114633},null,0,114633,286582.5,0,286582.5,null,286582.5,287]
[{"$f":"IF(INTRO!$E$43=\"Non-endemic\",\" \", IF(COUNTRY_INFO!A12=0,\" \",COUNTRY_INFO!A12))","v":"CAR"},{"$f":"IF(INTRO!$E$43=\"Non-endemic\",\" \", IF(COUNTRY_INFO!B12=0,\" \",COUNTRY_INFO!B12))","v":"Région Sanitaire N°2"},{"$f":"IF(INTRO!$E$43=\"Non-endemic\",\" \", IF(COUNTRY_INFO!C12=0,\" \",COUNTRY_INFO!C12))","v":"Sangha-Mbaéré"},{"$f":"IF(INTRO!$E$43=\"Non-endemic\", 0, IF(COUNTRY_INFO!$K12>0, IF(COUNTRY_INFO!$K12=4, 0, IF(COUNTRY_INFO!$K12=1, COUNTRY_INFO!$F12*0.33, IF(COUNTRY_INFO!$K12=2, COUNTRY_INFO!$F12*0.5, COUNTRY_INFO!$F12))), 0))","v":0},{"$f":"IF(INTRO!$E$43=\"Non-endemic\", 0, IF(COUNTRY_INFO!$K12>0, IF(COUNTRY_INFO!$K12=4, 0, IF(COUNTRY_INFO!$K12=1, 0, IF(COUNTRY_INFO!$K12=2, COUNTRY_INFO!$G12*0.2, COUNTRY_INFO!$G12))), 0))","v":0},0,{"$f":"IF(INTRO!$E$43=\"Non-endemic\", \"Not required\", COUNTRY_INFO!T12)","v":0},null,{"$f":"IF($D12=0,0,IF(AND($G12>0,$H12<>\"Yes\"),D12,IF(AND($G12>0,$H12=\"Yes\"),COUNTRY_INFO!$F12,0)))","v":0},null,0,0,0,0,0,null,0,0]
[{"$f":"IF(INTRO!$E$43=\"Non-endemic\",\" \", IF(COUNTRY_INFO!A13=0,\" \",COUNTRY_INFO!A13))","v":"CAR"},{"$f":"IF(INTRO!$E$43=\"Non-endemic\",\" \", IF(COUNTRY_INFO!B13=0,\" \",COUNTRY_INFO!B13))","v":"Région Sanitaire N°2"},{"$f":"IF(INTRO!$E$43=\"Non-endemic\",\" \", IF(COUNTRY_INFO!C13=0,\" \",COUNTRY_INFO!C13))","v":"Nana-Mambéré"},{"$f":"IF(INTRO!$E$43=\"Non-endemic\", 0, IF(COUNTRY_INFO!$K13>0, IF(COUNTRY_INFO!$K13=4, 0, IF(COUNTRY_INFO!$K13=1, COUNTRY_INFO!$F13*0.33, IF(COUNTRY_INFO!$K13=2, COUNTRY_INFO!$F13*0.5, COUNTRY_INFO!$F13))), 0))","v":0},{"$f":"IF(INTRO!$E$43=\"Non-endemic\", 0, IF(COUNTRY_INFO!$K13>0, IF(COUNTRY_INFO!$K13=4, 0, IF(COUNTRY_INFO!$K13=1, 0, IF(COUNTRY_INFO!$K13=2, COUNTRY_INFO!$G13*0.2, COUNTRY_INFO!$G13))), 0))","v":0},0,{"$f":"IF(INTRO!$E$43=\"Non-endemic\", \"Not required\", COUNTRY_INFO!T13)","v":0},null,{"$f":"IF($D13=0,0,IF(AND($G13>0,$H13<>\"Yes\"),D13,IF(AND($G13>0,$H13=\"Yes\"),COUNTRY_INFO!$F13,0)))","v":0},null,0,0,0,0,0,null,0,0]
[{"$f":"IF(INTRO!$E$43=\"Non-endemic\",\" \", IF(COUNTRY_INFO!A14=0,\" \",COUNTRY_INFO!A14))","v":"CAR"},{"$f":"IF(INTRO!$E$43=\"Non-endemic\",\" \", IF(COUNTRY_INFO!B14=0,\" \",COUNTRY_INFO!B14))","v":"Région Sanitaire N°3"},{"$f":"IF(INTRO!$E$43=\"Non-endemic\",\" \", IF(COUNTRY_INFO!C14=0,\" \",COUNTRY_INFO!C14))","v":"Ouham"},{"$f":"IF(INTRO!$E$43=\"Non-endemic\", 0, IF(COUNTRY_INFO!$K14>0, IF(COUNTRY_INFO!$K14=4, 0, IF(COUNTRY_INFO!$K14=1, COUNTRY_INFO!$F14*0.33, IF(COUNTRY_INFO!$K14=2, COUNTRY_INFO!$F14*0.5, COUNTRY_INFO!$F14))), 0))","v":0},{"$f":"IF(INTRO!$E$43=\"Non-endemic\", 0, IF(COUNTRY_INFO!$K14>0, IF(COUNTRY_INFO!$K14=4, 0, IF(COUNTRY_INFO!$K14=1, 0, IF(COUNTRY_INFO!$K14=2, COUNTRY_INFO!$G14*0.2, COUNTRY_INFO!$G14))), 0))","v":0},0,{"$f":"IF(INTRO!$E$43=\"Non-endemic\", \"Not required\", COUNTRY_INFO!T14)","v":0},null,{"$f":"IF($D14=0,0,IF(AND($G14>0,$H14<>\"Yes\"),D14,IF(AND($G14>0,$H14=\"Yes\"),COUNTRY_INFO!$F14,0)))","v":0},null,0,0,0,0,0,null,0,0]
[{"$f":"IF(INTRO!$E$43=\"Non-endemic\",\" \", IF(COUNTRY_INFO!A15=0,\" \",COUNTRY_INFO!A15))","v":"CAR"},{"$f":"IF(INTRO!$E$43=\"Non-endemic\",\" \", IF(COUNTRY_INFO!B15=0,\" \",COUNTRY_INFO!B15))","v":"Région Sanitaire N°3"},{"$f":"IF(INTRO!$E$43=\"Non-endemic\",\" \", IF(COUNTRY_INFO!C15=0,\" \",COUNTRY_INFO!C15))","v":"Ouham-Pendé"},{"$f":"IF(INTRO!$E$43=\"Non-endemic\", 0, IF(COUNTRY_INFO!$K15>0, IF(COUNTRY_INFO!$K15=4, 0, IF(COUNTRY_INFO!$K15=1, COUNTRY_INFO!$F15*0.33, IF(COUNTRY_INFO!$K15=2, COUNTRY_INFO!$F15*0.5, COUNTRY_INFO!$F15))), 0))","v":0},{"$f":"IF(INTRO!$E$43=\"Non-endemic\", 0, IF(COUNTRY_INFO!$K15>0, IF(COUNTRY_INFO!$K15=4, 0, IF(COUNTRY_INFO!$K15=1, 0, IF(COUNTRY_INFO!$K15=2, COUNTRY_INFO!$G15*0.2, COUNTRY_INFO!$G15))), 0))","v":0},0,{"$f":"IF(INTRO!$E$43=\"Non-endemic\", \"Not required\", COUNTRY_INFO!T15)","v":0},null,{"$f":"IF($D15=0,0,IF(AND($G15>0,$H15<>\"Yes\"),D15,IF(AND($G15>0,$H15=\"Yes\"),COUNTRY_INFO!$F15,0)))","v":0},null,0,0,0,0,0,null,0,0]
[{"$f":"IF(INTRO!$E$43=\"Non-endemic\",\" \", IF(COUNTRY_INFO!A16=0,\" \",COUNTRY_INFO!A16))","v":"CAR"},{"$f":"IF(INTRO!$E$43=\"Non-endemic\",\" \", IF(COUNTRY_INFO!B16=0,\" \",COUNTRY_INFO!B16))","v":"Région Sanitaire N°4"},{"$f":"IF(INTRO!$E$43=\"Non-endemic\",\" \", IF(COUNTRY_INFO!C16=0,\" \",COUNTRY_INFO!C16))","v":"Ouaka"},{"$f":"IF(INTRO!$E$43=\"Non-endemic\", 0, IF(COUNTRY_INFO!$K16>0, IF(COUNTRY_INFO!$K16=4, 0, IF(COUNTRY_INFO!$K16=1, COUNTRY_INFO!$F16*0.33, IF(COUNTRY_INFO!$K16=2, COUNTRY_INFO!$F16*0.5, COUNTRY_INFO!$F16))), 0))","v":29288.49},{"$f":"IF(INTRO!$E$43=\"Non-endemic\", 0, IF(COUNTRY_INFO!$K16>0, IF(COUNTRY_INFO!$K16=4, 0, IF(COUNTRY_INFO!$K16=1, 0, IF(COUNTRY_INFO!$K16=2, COUNTRY_INFO!$G16*0.2, COUNTRY_INFO!$G16))), 0))","v":0},29288.49,{"$f":"IF(INTRO!$E$43=\"Non-endemic\", \"Not required\", COUNTRY_INFO!T16)","v":1},"Yes",{"$f":"IF($D16=0,0,IF(AND($G16>0,$H16<>\"Yes\"),D16,IF(AND($G16>0,$H16=\"Yes\"),COUNTRY_INFO!$F16,0)))","v":88753},null,0,88753,221882.5,0,221882.5,null,221882.5,222]
[{"$f":"IF(INTRO!$E$43=\"Non-endemic\",\" \", IF(COUNTRY_INFO!A17=0,\" \",COUNTRY_INFO!A17))","v":"CAR"},{"$f":"IF(INTRO!$E$43=\"Non-endemic\",\" \", IF(COUNTRY_INFO!B17=0,\" \",COUNTRY_INFO!B17))","v":"Région Sanitaire N°4"},{"$f":"IF(INTRO!$E$43=\"Non-endemic\",\" \", IF(COUNTRY_INFO!C17=0,\" \",COUNTRY_INFO!C17))","v":"Kémo"},{"$f":"IF(INTRO!$E$43=\"Non-endemic\", 0, IF(COUNTRY_INFO!$K17>0, IF(COUNTRY_INFO!$K17=4, 0, IF(COUNTRY_INFO!$K17=1, COUNTRY_INFO!$F17*0.33, IF(COUNTRY_INFO!$K17=2, COUNTRY_INFO!$F17*0.5, COUNTRY_INFO!$F17))), 0))","v":37981},{"$f":"IF(INTRO!$E$43=\"Non-endemic\", 0, IF(COUNTRY_INFO!$K17>0, IF(COUNTRY_INFO!$K17=4, 0, IF(COUNTRY_INFO!$K17=1, 0, IF(COUNTRY_INFO!$K17=2, COUNTRY_INFO!$G17*0.2, COUNTRY_INFO!$G17))), 0))","v":100375},138356,{"$f":"IF(INTRO!$E$43=\"Non-endemic\", \"Not required\", COUNTRY_INFO!T17)","v":1},"Yes",{"$f":"IF($D17=0,0,IF(AND($G17>0,$H17<>\"Yes\"),D17,IF(AND($G17>0,$H17=\"Yes\"),COUNTRY_INFO!$F17,0)))","v":37981},null,100375,138356,94952.5,301125,94952.5,null,94952.5,95]
[{"$f":"IF(INTRO!$E$43=\"Non-endemic\",\" \", IF(COUNTRY_INFO!A18=0,\" \",COUNTRY_INFO!A18))","v":"CAR"},{"$f":"IF(INTRO!$E$43=\"Non-endemic\",\" \", IF(COUNTRY_INFO!B18=0,\" \",COUNTRY_INFO!B18))","v":"Région Sanitaire N°4"},{"$f":"IF(INTRO!$E$43=\"Non-endemic\",\" \", IF(COUNTRY_INFO!C18=0,\" \",COUNTRY_INFO!C18))","v":"Nana-Gribizi"},{"$f":"IF(INTRO!$E$43=\"Non-endemic\", 0, IF(COUNTRY_INFO!$K18>0, IF(COUNTRY_INFO!$K18=4, 0, IF(COUNTRY_INFO!$K18=1, COUNTRY_INFO!$F18*0.33, IF(COUNTRY_INFO!$K18=2, COUNTRY_INFO!$F18*0.5, COUNTRY_INFO!$F18))), 0))","v":0},{"$f":"IF(INTRO!$E$43=\"Non-endemic\", 0, IF(COUNTRY_INFO!$K18>0, IF(COUNTRY_INFO!$K18=4, 0, IF(COUNTRY_INFO!$K18=1, 0, IF(COUNTRY_INFO!$K18=2, COUNTRY_INFO!$G18*0.2, COUNTRY_INFO!$G18))), 0))","v":0},0,{"$f":"IF(INTRO!$E$43=\"Non-endemic\", \"Not required\", COUNTRY_INFO!T18)","v":0},null,{"$f":"IF($D18=0,0,IF(AND($G18>0,$H18<>\"Yes\"),D18,IF(AND($G18>0,$H18=\"Yes\"),COUNTRY_INFO!$F18,0)))","v":0},null,0,0,0,0,0,null,0,0]
[{"$f":"IF(INTRO!$E$43=\"Non-endemic\",\" \", IF(COUNTRY_INFO!A19=0,\" \",COUNTRY_INFO!A19))","v":"CAR"},{"$f":"IF(INTRO!$E$43=\"Non-endemic\",\" \", IF(COUNTRY_INFO!B19=0,\" \",COUNTRY_INFO!B19))","v":"Région Sanitaire N°5"},{"$f":"IF(INTRO!$E$43=\"Non-endemic\",\" \", IF(COUNTRY_INFO!C19=0,\" \",COUNTRY_INFO!C19))","v":"Haute-Kotto"},{"$f":"IF(INTRO!$E$43=\"Non-endemic\", 0, IF(COUNTRY_INFO!$K19>0, IF(COUNTRY_INFO!$K19=4, 0, IF(COUNTRY_INFO!$K19=1, COUNTRY_INFO!$F19*0.33, IF(COUNTRY_INFO!$K19=2, COUNTRY_INFO!$F19*0.5, COUNTRY_INFO!$F19))), 0))","v":0},{"$f":"IF(INTRO!$E$43=\"Non-endemic\", 0, IF(COUNTRY_INFO!$K19>0, IF(COUNTRY_INFO!$K19=4, 0, IF(COUNTRY_INFO!$K19=1, 0, IF(COUNTRY_INFO!$K19=2, COUNTRY_INFO!$G19*0.2, COUNTRY_INFO!$G19))), 0))","v":0},0,{"$f":"IF(INTRO!$E$43=\"Non-endemic\", \"Not required\", COUNTRY_INFO!T19)","v":0},null,{"$f":"IF($D19=0,0,IF(AND($G19>0,$H19<>\"Yes\"),D19,IF(AND($G19>0,$H19=\"Yes\"),COUNTRY_INFO!$F19,0)))","v":0},null,0,0,0,0,0,null,0,0]
[{"$f":"IF(INTRO!$E$43=\"Non-endemic\",\" \", IF(COUNTRY_INFO!A20=0,\" \",COUNTRY_INFO!A20))","v":"CAR"},{"$f":"IF(INTRO!$E$43=\"Non-endemic\",\" \", IF(COUNTRY_INFO!B20=0,\" \",COUNTRY_INFO!B20))","v":"Région Sanitaire N°5"},{"$f":"IF(INTRO!$E$43=\"Non-endemic\",\" \", IF(COUNTRY_INFO!C20=0,\" \",COUNTRY_INFO!C20))","v":"Bamingui-Bangoran"},{"$f":"IF(INTRO!$E$43=\"Non-endemic\", 0, IF(COUNTRY_INFO!$K20>0, IF(COUNTRY_INFO!$K20=4, 0, IF(COUNTRY_INFO!$K20=1, COUNTRY_INFO!$F20*0.33, IF(COUNTRY_INFO!$K20=2, COUNTRY_INFO!$F20*0.5, COUNTRY_INFO!$F20))), 0))","v":0},{"$f":"IF(INTRO!$E$43=\"Non-endemic\", 0, IF(COUNTRY_INFO!$K20>0, IF(COUNTRY_INFO!$K20=4, 0, IF(COUNTRY_INFO!$K20=1, 0, IF(COUNTRY_INFO!$K20=2, COUNTRY_INFO!$G20*0.2, COUNTRY_INFO!$G20))), 0))","v":0},0,{"$f":"IF(INTRO!$E$43=\"Non-endemic\", \"Not required\", COUNTRY_INFO!T20)","v":0},null,{"$f":"IF($D20=0,0,IF(AND($G20>0,$H20<>\"Yes\"),D20,IF(AND($G20>0,$H20=\"Yes\"),COUNTRY_INFO!$F20,0)))","v":0},null,0,0,0,0,0,null,0,0]
[{"$f":"IF(INTRO!$E$43=\"Non-endemic\",\" \", IF(COUNTRY_INFO!A21=0,\" \",COUNTRY_INFO!A21))","v":"CAR"},{"$f":"IF(INTRO!$E$43=\"Non-endemic\",\" \", IF(COUNTRY_INFO!B21=0,\" \",COUNTRY_INFO!B21))","v":"Région Sanitaire N°5"},{"$f":"IF(INTRO!$E$43=\"Non-endemic\",\" \", IF(COUNTRY_INFO!C21=0,\" \",COUNTRY_INFO!C21))","v":"Vakaga"},{"$f":"IF(INTRO!$E$43=\"Non-endemic\", 0, IF(COUNTRY_INFO!$K21>0, IF(COUNTRY_INFO!$K21=4, 0, IF(COUNTRY_INFO!$K21=1, COUNTRY_INFO!$F21*0.33, IF(COUNTRY_INFO!$K21=2, COUNTRY_INFO!$F21*0.5, COUNTRY_INFO!$F21))), 0))","v":0},{"$f":"IF(INTRO!$E$43=\"Non-endemic\", 0, IF(COUNTRY_INFO!$K21>0, IF(COUNTRY_INFO!$K21=4, 0, IF(COUNTRY_INFO!$K21=1, 0, IF(COUNTRY_INFO!$K21=2, COUNTRY_INFO!$G21*0.2, COUNTRY_INFO!$G21))), 0))","v":0},0,{"$f":"IF(INTRO!$E$43=\"Non-endemic\", \"Not required\", COUNTRY_INFO!T21)","v":0},null,{"$f":"IF($D21=0,0,IF(AND($G21>0,$H21<>\"Yes\"),D21,IF(AND($G21>0,$H21=\"Yes\"),COUNTRY_INFO!$F21,0)))","v":0},null,0,0,0,0,0,null,0,0]
[{"$f":"IF(INTRO!$E$43=\"Non-endemic\",\" \", IF(COUNTRY_INFO!A22=0,\" \",COUNTRY_INFO!A22))","v":"CAR"},{"$f":"IF(INTRO!$E$43=\"Non-endemic\",\" \", IF(COUNTRY_INFO!B22=0,\" \",COUNTRY_INFO!B22))","v":"Région Sanitaire N°6"},{"$f":"IF(INTRO!$E$43=\"Non-endemic\",\" \", IF(COUNTRY_INFO!C22=0,\" \",COUNTRY_INFO!C22))","v":"Mbomou"},{"$f":"IF(INTRO!$E$43=\"Non-endemic\", 0, IF(COUNTRY_INFO!$K22>0, IF(COUNTRY_INFO!$K22=4, 0, IF(COUNTRY_INFO!$K22=1, COUNTRY_INFO!$F22*0.33, IF(COUNTRY_INFO!$K22=2, COUNTRY_INFO!$F22*0.5, COUNTRY_INFO!$F22))), 0))","v":17359.650000000001},{"$f":"IF(INTRO!$E$43=\"Non-endemic\", 0, IF(COUNTRY_INFO!$K22>0, IF(COUNTRY_INFO!$K22=4, 0, IF(COUNTRY_INFO!$K22=1, 0, IF(COUNTRY_INFO!$K22=2, COUNTRY_INFO!$G22*0.2, COUNTRY_INFO!$G22))), 0))","v":0},17359.650000000001,{"$f":"IF(INTRO!$E$43=\"Non-endemic\", \"Not required\", COUNTRY_INFO!T22)","v":1},"Yes",{"$f":"IF($D22=0,0,IF(AND($G22>0,$H22<>\"Yes\"),D22,IF(AND($G22>0,$H22=\"Yes\"),COUNTRY_INFO!$F22,0)))","v":52605},null,0,52605,131512.5,0,131512.5,null,131512.5,132]
[{"$f":"IF(INTRO!$E$43=\"Non-endemic\",\" \", IF(COUNTRY_INFO!A23=0,\" \",COUNTRY_INFO!A23))","v":"CAR"},{"$f":"IF(INTRO!$E$43=\"Non-endemic\",\" \", IF(COUNTRY_INFO!B23=0,\" \",COUNTRY_INFO!B23))","v":"Région Sanitaire N°6"},{"$f":"IF(INTRO!$E$43=\"Non-endemic\",\" \", IF(COUNTRY_INFO!C23=0,\" \",COUNTRY_INFO!C23))","v":"Basse-Kotto"},{"$f":"IF(INTRO!$E$43=\"Non-endemic\", 0, IF(COUNTRY_INFO!$K23>0, IF(COUNTRY_INFO!$K23=4, 0, IF(COUNTRY_INFO!$K23=1, COUNTRY_INFO!$F23*0.33, IF(COUNTRY_INFO!$K23=2, COUNTRY_INFO!$F23*0.5, COUNTRY_INFO!$F23))), 0))","v":79914},{"$f":"IF(INTRO!$E$43=\"Non-endemic\", 0, IF(COUNTRY_INFO!$K23>0, IF(COUNTRY_INFO!$K23=4, 0, IF(COUNTRY_INFO!$K23=1, 0, IF(COUNTRY_INFO!$K23=2, COUNTRY_INFO!$G23*0.2, COUNTRY_INFO!$G23))), 0))","v":211190},291104,{"$f":"IF(INTRO!$E$43=\"Non-endemic\", \"Not required\", COUNTRY_INFO!T23)","v":1},"Yes",{"$f":"IF($D23=0,0,IF(AND($G23>0,$H23<>\"Yes\"),D23,IF(AND($G23>0,$H23=\"Yes\"),COUNTRY_INFO!$F23,0)))","v":79914},null,211190,291104,199785,633570,199785,null,199785,200]
[{"$f":"IF(INTRO!$E$43=\"Non-endemic\",\" \", IF(COUNTRY_INFO!A24=0,\" \",COUNTRY_INFO!A24))","v":"CAR"},{"$f":"IF(INTRO!$E$43=\"Non-endemic\",\" \", IF(COUNTRY_INFO!B24=0,\" \",COUNTRY_INFO!B24))","v":"Région Sanitaire N°6"},{"$f":"IF(INTRO!$E$43=\"Non-endemic\",\" \", IF(COUNTRY_INFO!C24=0,\" \",COUNTRY_INFO!C24))","v":"Haut-Mbomou"},{"$f":"IF(INTRO!$E$43=\"Non-endemic\", 0, IF(COUNTRY_INFO!$K24>0, IF(COUNTRY_INFO!$K24=4, 0, IF(COUNTRY_INFO!$K24=1, COUNTRY_INFO!$F24*0.33, IF(COUNTRY_INFO!$K24=2, COUNTRY_INFO!$F24*0.5, COUNTRY_INFO!$F24))), 0))","v":0},{"$f":"IF(INTRO!$E$43=\"Non-endemic\", 0, IF(COUNTRY_INFO!$K24>0, IF(COUNTRY_INFO!$K24=4, 0, IF(COUNTRY_INFO!$K24=1, 0, IF(COUNTRY_INFO!$K24=2, COUNTRY_INFO!$G24*0.2, COUNTRY_INFO!$G24))), 0))","v":0},0,{"$f":"IF(INTRO!$E$43=\"Non-endemic\", \"Not required\", COUNTRY_INFO!T24)","v":0},null,{"$f":"IF($D24=0,0,IF(AND($G24>0,$H24<>\"Yes\"),D24,IF(AND($G24>0,$H24=\"Yes\"),COUNTRY_INFO!$F24,0)))","v":0},null,0,0,0,0,0,null,0,0]
[{"$f":"IF(INTRO!$E$43=\"Non-endemic\",\" \", IF(COUNTRY_INFO!A25=0,\" \",COUNTRY_INFO!A25))","v":"CAR"},{"$f":"IF(INTRO!$E$43=\"Non-endemic\",\" \", IF(COUNTRY_INFO!B25=0,\" \",COUNTRY_INFO!B25))","v":"Région Sanitaire N°7"},{"$f":"IF(INTRO!$E$43=\"Non-endemic\",\" \", IF(COUNTRY_INFO!C25=0,\" \",COUNTRY_INFO!C25))","v":"BANGUI (8 Unités adm.)"},{"$f":"IF(INTRO!$E$43=\"Non-endemic\", 0, IF(COUNTRY_INFO!$K25>0, IF(COUNTRY_INFO!$K25=4, 0, IF(COUNTRY_INFO!$K25=1, COUNTRY_INFO!$F25*0.33, IF(COUNTRY_INFO!$K25=2, COUNTRY_INFO!$F25*0.5, COUNTRY_INFO!$F25))), 0))","v":0},{"$f":"IF(INTRO!$E$43=\"Non-endemic\", 0, IF(COUNTRY_INFO!$K25>0, IF(COUNTRY_INFO!$K25=4, 0, IF(COUNTRY_INFO!$K25=1, 0, IF(COUNTRY_INFO!$K25=2, COUNTRY_INFO!$G25*0.2, COUNTRY_INFO!$G25))), 0))","v":0},0,{"$f":"IF(INTRO!$E$43=\"Non-endemic\", \"Not required\", COUNTRY_INFO!T25)","v":0},null,{"$f":"IF($D25=0,0,IF(AND($G25>0,$H25<>\"Yes\"),D25,IF(AND($G25>0,$H25=\"Yes\"),COUNTRY_INFO!$F25,0)))","v":0},null,0,0,0,0,0,null,0,0]

{"sheet":"IVM","index":5,"n_rows":25,"n_cols":17,"rows_kept":25,"cut":false,"hidden":false,"merged":[[6,6,7,6],[5,10,5,16],[6,0,7,0],[6,1,7,1],[6,2,7,2],[6,7,6,9],[5,0,5,2],[5,4,5,5],[5,6,5,9],[6,14,7,14],[6,15,7,15],[6,16,7,16],[6,10,7,10],[6,11,7,11],[6,12,7,12],[6,13,7,13],[3,0,3,2],[3,4,3,5],[6,4,7,4],[6,5,7,5],[5,3,7,3]]}
["Ivermectin (IVM)"]
["Administrative structure, eligible population by age group, treatment plan and information about tablets"]
[]
["TOTAL",null,null,{"$f":"SUM(D$9:D$1000)","v":3437715},null,null,{"$f":"SUM(G$9:G$1000)","v":1049357},2213500,0,2213500,293907.59999999998,3553507.9999999995,2644292,6491707.6000000006,0,6491707.6000000006,12991]
[]
["Country administrative structure",null,null,"Population requiring treatment with IVM","Treatment plan",null,"Target population",null,null,null,"Ivermectin (IVM)"]
["Country","Province/State","District",null,"LF","Oncho","LF","Oncho",null,null,"LF only","Oncho only","LF+Oncho","Total required","Remaining in stock","Tablets to be procured","Bottles (3mg)\n500 tablets"]
[null,null,null,null,null,null,null,"in the district","village","total"]
[{"$f":"IF(INTRO!$E$39=\"Non-endemic\",\" \",IF(COUNTRY_INFO!A9=0,\" \",COUNTRY_INFO!A9))","v":"CAR"},{"$f":"IF(INTRO!$E$39=\"Non-endemic\",\" \",IF(COUNTRY_INFO!B9=0,\" \",COUNTRY_INFO!B9))","v":"Région Sanitaire N°1"},{"$f":"IF(INTRO!$E$39=\"Non-endemic\",\" \",IF(COUNTRY_INFO!C9=0,\" \",COUNTRY_INFO!C9))","v":"Ombella-Mpoko"},{"$f":"IF(INTRO!$E$39=\"Non-endemic\",0,IF(INTRO!$E$39=\"Endemic but PC is not required\",IF(COUNTRY_INFO!$H9=1,COUNTRY_INFO!F9+COUNTRY_INFO!G9,0),IF(COUNTRY_INFO!$H9=1,COUNTRY_INFO!F9+COUNTRY_INFO!G9,IF(COUNTRY_INFO!$I9=1,IF(COUNTRY_INFO!N9>=(COUNTRY_INFO!F9+COUNTRY_INFO!G9),COUNTRY_INFO!F9+COUNTRY_INFO!G9,COUNTRY_INFO!$N9),0))))","v":408342},{"$f":"IF(AND(INTRO!$E$39=\"Non-endemic\",INTRO!$E$37=\"Non-endemic\"),\"Not required\",IF(INTRO!$E$39=\"Non-endemic\",\"Treat with DEC\",COUNTRY_INFO!Q9))","v":1},{"$f":"IF(INTRO!$E$39<>\"Non-endemic\",COUNTRY_INFO!R9,\"Not required\")","v":0},{"$f":"IF(COUNTRY_INFO!H9=1, IF($E9=1,IF(ALB_MBD!$J9<>\" \",COUNTRY_INFO!F9+COUNTRY_INFO!G9-ALB_MBD!$J9,COUNTRY_INFO!F9+COUNTRY_INFO!G9), 0),0)","v":35013},{"$f":"IF(INTRO!$E$39<>\"Endemic\",0, IF(AND(COUNTRY_INFO!$I9=1,$F9<>0),IF(COUNTRY_INFO!N9>=(COUNTRY_INFO!F9+COUNTRY_INFO!G9),COUNTRY_INFO!F9+COUNTRY_INFO!G9,COUNTRY_INFO!$N9), 0))","v":0},null,{"$f":"IF(I9=0,H9,IF(I9>H9,H9,I9))","v":0},{"$f":"IF(G9<J9,0,IF($E9=1, (G9-J9)*2.8, 0))","v":98036.4},{"$f":"IF($E9<$F9, J9*(F9-E9)*2.8, 0)","v":0},{"$f":"IF(AND($E9=1, $F9<>0), J9*2.8, 0)","v":0},{"$f":"SUM(K9:M9)","v":98036.4},null,{"$f":"IF($N9>$O9,$N9-$O9,0)","v":98036.4},{"$f":"ROUNDUP($N9/500,0)","v":197}]
[{"$f":"IF(INTRO!$E$39=\"Non-endemic\",\" \",IF(COUNTRY_INFO!A10=0,\" \",COUNTRY_INFO!A10))","v":"CAR"},{"$f":"IF(INTRO!$E$39=\"Non-endemic\",\" \",IF(COUNTRY_INFO!B10=0,\" \",COUNTRY_INFO!B10))","v":"Région Sanitaire N°1"},{"$f":"IF(INTRO!$E$39=\"Non-endemic\",\" \",IF(COUNTRY_INFO!C10=0,\" \",COUNTRY_INFO!C10))","v":"Lobaye"},{"$f":"IF(INTRO!$E$39=\"Non-endemic\",0,IF(INTRO!$E$39=\"Endemic but PC is not required\",IF(COUNTRY_INFO!$H10=1,COUNTRY_INFO!F10+COUNTRY_INFO!G10,0),IF(COUNTRY_INFO!$H10=1,COUNTRY_INFO!F10+COUNTRY_INFO!G10,IF(COUNTRY_INFO!$I10=1,IF(COUNTRY_INFO!N10>=(COUNTRY_INFO!F10+COUNTRY_INFO!G10),COUNTRY_INFO!F10+COUNTRY_INFO!G10,COUNTRY_INFO!$N10),0))))","v":282596},{"$f":"IF(AND(INTRO!$E$39=\"Non-endemic\",INTRO!$E$37=\"Non-endemic\"),\"Not required\",IF(INTRO!$E$39=\"Non-endemic\",\"Treat with DEC\",COUNTRY_INFO!Q10))","v":1},{"$f":"IF(INTRO!$E$39<>\"Non-endemic\",COUNTRY_INFO!R10,\"Not required\")","v":0},{"$f":"IF(COUNTRY_INFO!H10=1, IF($E10=1,IF(ALB_MBD!$J10<>\" \",COUNTRY_INFO!F10+COUNTRY_INFO!G10-ALB_MBD!$J10,COUNTRY_INFO!F10+COUNTRY_INFO!G10), 0),0)","v":24230},{"$f":"IF(INTRO!$E$39<>\"Endemic\",0, IF(AND(COUNTRY_INFO!$I10=1,$F10<>0),IF(COUNTRY_INFO!N10>=(COUNTRY_INFO!F10+COUNTRY_INFO!G10),COUNTRY_INFO!F10+COUNTRY_INFO!G10,COUNTRY_INFO!$N10), 0))","v":0},null,{"$f":"IF(I10=0,H10,IF(I10>H10,H10,I10))","v":0},{"$f":"IF(G10<J10,0,IF($E10=1, (G10-J10)*2.8, 0))","v":67844},{"$f":"IF($E10<$F10, J10*(F10-E10)*2.8, 0)","v":0},{"$f":"IF(AND($E10=1, $F10<>0), J10*2.8, 0)","v":0},{"$f":"SUM(K10:M10)","v":67844},null,67844,136]
[{"$f":"IF(INTRO!$E$39=\"Non-endemic\",\" \",IF(COUNTRY_INFO!A11=0,\" \",COUNTRY_INFO!A11))","v":"CAR"},{"$f":"IF(INTRO!$E$39=\"Non-endemic\",\" \",IF(COUNTRY_INFO!B11=0,\" \",COUNTRY_INFO!B11))","v":"Région Sanitaire N°2"},{"$f":"IF(INTRO!$E$39=\"Non-endemic\",\" \",IF(COUNTRY_INFO!C11=0,\" \",COUNTRY_INFO!C11))","v":"Mambéré-Kadéï"},{"$f":"IF(INTRO!$E$39=\"Non-endemic\",0,IF(INTRO!$E$39=\"Endemic but PC is not required\",IF(COUNTRY_INFO!$H11=1,COUNTRY_INFO!F11+COUNTRY_INFO!G11,0),IF(COUNTRY_INFO!$H11=1,COUNTRY_INFO!F11+COUNTRY_INFO!G11,IF(COUNTRY_INFO!$I11=1,IF(COUNTRY_INFO!N11>=(COUNTRY_INFO!F11+COUNTRY_INFO!G11),COUNTRY_INFO!F11+COUNTRY_INFO!G11,COUNTRY_INFO!$N11),0))))","v":417578},{"$f":"IF(AND(INTRO!$E$39=\"Non-endemic\",INTRO!$E$37=\"Non-endemic\"),\"Not required\",IF(INTRO!$E$39=\"Non-endemic\",\"Treat with DEC\",COUNTRY_INFO!Q11))","v":1},{"$f":"IF(INTRO!$E$39<>\"Non-endemic\",COUNTRY_INFO!R11,\"Not required\")","v":0},{"$f":"IF(COUNTRY_INFO!H11=1, IF($E11=1,IF(ALB_MBD!$J11<>\" \",COUNTRY_INFO!F11+COUNTRY_INFO!G11-ALB_MBD!$J11,COUNTRY_INFO!F11+COUNTRY_INFO!G11), 0),0)","v":35804},{"$f":"IF(INTRO!$E$39<>\"Endemic\",0, IF(AND(COUNTRY_INFO!$I11=1,$F11<>0),IF(COUNTRY_INFO!N11>=(COUNTRY_INFO!F11+COUNTRY_INFO!G11),COUNTRY_INFO!F11+COUNTRY_INFO!G11,COUNTRY_INFO!$N11), 0))","v":0},null,0,100251.2,0,0,100251.2,null,100251.2,201]
[{"$f":"IF(INTRO!$E$39=\"Non-endemic\",\" \",IF(COUNTRY_INFO!A12=0,\" \",COUNTRY_INFO!A12))","v":"CAR"},{"$f":"IF(INTRO!$E$39=\"Non-endemic\",\" \",IF(COUNTRY_INFO!B12=0,\" \",COUNTRY_INFO!B12))","v":"Région Sanitaire N°2"},{"$f":"IF(INTRO!$E$39=\"Non-endemic\",\" \",IF(COUNTRY_INFO!C12=0,\" \",COUNTRY_INFO!C12))","v":"Sangha-Mbaéré"},{"$f":"IF(INTRO!$E$39=\"Non-endemic\",0,IF(INTRO!$E$39=\"Endemic but PC is not required\",IF(COUNTRY_INFO!$H12=1,COUNTRY_INFO!F12+COUNTRY_INFO!G12,0),IF(COUNTRY_INFO!$H12=1,COUNTRY_INFO!F12+COUNTRY_INFO!G12,IF(COUNTRY_INFO!$I12=1,IF(COUNTRY_INFO!N12>=(COUNTRY_INFO!F12+COUNTRY_INFO!G12),COUNTRY_INFO!F12+COUNTRY_INFO!G12,COUNTRY_INFO!$N12),0))))","v":115699},{"$f":"IF(AND(INTRO!$E$39=\"Non-endemic\",INTRO!$E$37=\"Non-endemic\"),\"Not required\",IF(INTRO!$E$39=\"Non-endemic\",\"Treat with DEC\",COUNTRY_INFO!Q12))","v":1},{"$f":"IF(INTRO!$E$39<>\"Non-endemic\",COUNTRY_INFO!R12,\"Not required\")","v":0},{"$f":"IF(COUNTRY_INFO!H12=1, IF($E12=1,IF(ALB_MBD!$J12<>\" \",COUNTRY_INFO!F12+COUNTRY_INFO!G12-ALB_MBD!$J12,COUNTRY_INFO!F12+COUNTRY_INFO!G12), 0),0)","v":9920},{"$f":"IF(INTRO!$E$39<>\"Endemic\",0, IF(AND(COUNTRY_INFO!$I12=1,$F12<>0),IF(COUNTRY_INFO!N12>=(COUNTRY_INFO!F12+COUNTRY_INFO!G12),COUNTRY_INFO!F12+COUNTRY_INFO!G12,COUNTRY_INFO!$N12), 0))","v":0},null,0,27776,0,0,27776,null,27776,56]
[{"$f":"IF(INTRO!$E$39=\"Non-endemic\",\" \",IF(COUNTRY_INFO!A13=0,\" \",COUNTRY_INFO!A13))","v":"CAR"},{"$f":"IF(INTRO!$E$39=\"Non-endemic\",\" \",IF(COUNTRY_INFO!B13=0,\" \",COUNTRY_INFO!B13))","v":"Région Sanitaire N°2"},{"$f":"IF(INTRO!$E$39=\"Non-endemic\",\" \",IF(COUNTRY_INFO!C13=0,\" \",COUNTRY_INFO!C13))","v":"Nana-Mambéré"},{"$f":"IF(INTRO!$E$39=\"Non-endemic\",0,IF(INTRO!$E$39=\"Endemic but PC is not required\",IF(COUNTRY_INFO!$H13=1,COUNTRY_INFO!F13+COUNTRY_INFO!G13,0),IF(COUNTRY_INFO!$H13=1,COUNTRY_INFO!F13+COUNTRY_INFO!G13,IF(COUNTRY_INFO!$I13=1,IF(COUNTRY_INFO!N13>=(COUNTRY_INFO!F13+COUNTRY_INFO!G13),COUNTRY_INFO!F13+COUNTRY_INFO!G13,COUNTRY_INFO!$N13),0))))","v":0},{"$f":"IF(AND(INTRO!$E$39=\"Non-endemic\",INTRO!$E$37=\"Non-endemic\"),\"Not required\",IF(INTRO!$E$39=\"Non-endemic\",\"Treat with DEC\",COUNTRY_INFO!Q13))","v":0},{"$f":"IF(INTRO!$E$39<>\"Non-endemic\",COUNTRY_INFO!R13,\"Not required\")","v":0},{"$f":"IF(COUNTRY_INFO!H13=1, IF($E13=1,IF(ALB_MBD!$J13<>\" \",COUNTRY_INFO!F13+COUNTRY_INFO!G13-ALB_MBD!$J13,COUNTRY_INFO!F13+COUNTRY_INFO!G13), 0),0)","v":0},{"$f":"IF(INTRO!$E$39<>\"Endemic\",0, IF(AND(COUNTRY_INFO!$I13=1,$F13<>0),IF(COUNTRY_INFO!N13>=(COUNTRY_INFO!F13+COUNTRY_INFO!G13),COUNTRY_INFO!F13+COUNTRY_INFO!G13,COUNTRY_INFO!$N13), 0))","v":0},null,0,0,0,0,0,null,0,0]
[{"$f":"IF(INTRO!$E$39=\"Non-endemic\",\" \",IF(COUNTRY_INFO!A14=0,\" \",COUNTRY_INFO!A14))","v":"CAR"},{"$f":"IF(INTRO!$E$39=\"Non-endemic\",\" \",IF(COUNTRY_INFO!B14=0,\" \",COUNTRY_INFO!B14))","v":"Région Sanitaire N°3"},{"$f":"IF(INTRO!$E$39=\"Non-endemic\",\" \",IF(COUNTRY_INFO!C14=0,\" \",COUNTRY_INFO!C14))","v":"Ouham"},{"$f":"IF(INTRO!$E$39=\"Non-endemic\",0,IF(INTRO!$E$39=\"Endemic but PC is not required\",IF(COUNTRY_INFO!$H14=1,COUNTRY_INFO!F14+COUNTRY_INFO!G14,0),IF(COUNTRY_INFO!$H14=1,COUNTRY_INFO!F14+COUNTRY_INFO!G14,IF(COUNTRY_INFO!$I14=1,IF(COUNTRY_INFO!N14>=(COUNTRY_INFO!F14+COUNTRY_INFO!G14),COUNTRY_INFO!F14+COUNTRY_INFO!G14,COUNTRY_INFO!$N14),0))))","v":422644},{"$f":"IF(AND(INTRO!$E$39=\"Non-endemic\",INTRO!$E$37=\"Non-endemic\"),\"Not required\",IF(INTRO!$E$39=\"Non-endemic\",\"Treat with DEC\",COUNTRY_INFO!Q14))","v":0},{"$f":"IF(INTRO!$E$39<>\"Non-endemic\",COUNTRY_INFO!R14,\"Not required\")","v":1},{"$f":"IF(COUNTRY_INFO!H14=1, IF($E14=1,IF(ALB_MBD!$J14<>\" \",COUNTRY_INFO!F14+COUNTRY_INFO!G14-ALB_MBD!$J14,COUNTRY_INFO!F14+COUNTRY_INFO!G14), 0),0)","v":0},{"$f":"IF(INTRO!$E$39<>\"Endemic\",0, IF(AND(COUNTRY_INFO!$I14=1,$F14<>0),IF(COUNTRY_INFO!N14>=(COUNTRY_INFO!F14+COUNTRY_INFO!G14),COUNTRY_INFO!F14+COUNTRY_INFO!G14,COUNTRY_INFO!$N14), 0))","v":422644},null,422644,0,1183403.2,0,1183403.2,null,1183403.2,2367]
[{"$f":"IF(INTRO!$E$39=\"Non-endemic\",\" \",IF(COUNTRY_INFO!A15=0,\" \",COUNTRY_INFO!A15))","v":"CAR"},{"$f":"IF(INTRO!$E$39=\"Non-endemic\",\" \",IF(COUNTRY_INFO!B15=0,\" \",COUNTRY_INFO!B15))","v":"Région Sanitaire N°3"},{"$f":"IF(INTRO!$E$39=\"Non-endemic\",\" \",IF(COUNTRY_INFO!C15=0,\" \",COUNTRY_INFO!C15))","v":"Ouham-Pendé"},{"$f":"IF(INTRO!$E$39=\"Non-endemic\",0,IF(INTRO!$E$39=\"Endemic but PC is not required\",IF(COUNTRY_INFO!$H15=1,COUNTRY_INFO!F15+COUNTRY_INFO!G15,0),IF(COUNTRY_INFO!$H15=1,COUNTRY_INFO!F15+COUNTRY_INFO!G15,IF(COUNTRY_INFO!$I15=1,IF(COUNTRY_INFO!N15>=(COUNTRY_INFO!F15+COUNTRY_INFO!G15),COUNTRY_INFO!F15+COUNTRY_INFO!G15,COUNTRY_INFO!$N15),0))))","v":492799},{"$f":"IF(AND(INTRO!$E$39=\"Non-endemic\",INTRO!$E$37=\"Non-endemic\"),\"Not required\",IF(INTRO!$E$39=\"Non-endemic\",\"Treat with DEC\",COUNTRY_INFO!Q15))","v":0},{"$f":"IF(INTRO!$E$39<>\"Non-endemic\",COUNTRY_INFO!R15,\"Not required\")","v":1},{"$f":"IF(COUNTRY_INFO!H15=1, IF($E15=1,IF(ALB_MBD!$J15<>\" \",COUNTRY_INFO!F15+COUNTRY_INFO!G15-ALB_MBD!$J15,COUNTRY_INFO!F15+COUNTRY_INFO!G15), 0),0)","v":0},{"$f":"IF(INTRO!$E$39<>\"Endemic\",0, IF(AND(COUNTRY_INFO!$I15=1,$F15<>0),IF(COUNTRY_INFO!N15>=(COUNTRY_INFO!F15+COUNTRY_INFO!G15),COUNTRY_INFO!F15+COUNTRY_INFO!G15,COUNTRY_INFO!$N15), 0))","v":492799},null,492799,0,1379837.2,0,1379837.2,null,1379837.2,2760]
[{"$f":"IF(INTRO!$E$39=\"Non-endemic\",\" \",IF(COUNTRY_INFO!A16=0,\" \",COUNTRY_INFO!A16))","v":"CAR"},{"$f":"IF(INTRO!$E$39=\"Non-endemic\",\" \",IF(COUNTRY_INFO!B16=0,\" \",COUNTRY_INFO!B16))","v":"Région Sanitaire N°4"},{"$f":"IF(INTRO!$E$39=\"Non-endemic\",\" \",IF(COUNTRY_INFO!C16=0,\" \",COUNTRY_INFO!C16))","v":"Ouaka"},{"$f":"IF(INTRO!$E$39=\"Non-endemic\",0,IF(INTRO!$E$39=\"Endemic but PC is not required\",IF(COUNTRY_INFO!$H16=1,COUNTRY_INFO!F16+COUNTRY_INFO!G16,0),IF(COUNTRY_INFO!$H16=1,COUNTRY_INFO!F16+COUNTRY_INFO!G16,IF(COUNTRY_INFO!$I16=1,IF(COUNTRY_INFO!N16>=(COUNTRY_INFO!F16+COUNTRY_INFO!G16),COUNTRY_INFO!F16+COUNTRY_INFO!G16,COUNTRY_INFO!$N16),0))))","v":323304},{"$f":"IF(AND(INTRO!$E$39=\"Non-endemic\",INTRO!$E$37=\"Non-endemic\"),\"Not required\",IF(INTRO!$E$39=\"Non-endemic\",\"Treat with DEC\",COUNTRY_INFO!Q16))","v":1},{"$f":"IF(INTRO!$E$39<>\"Non-endemic\",COUNTRY_INFO!R16,\"Not required\")","v":1},{"$f":"IF(COUNTRY_INFO!H16=1, IF($E16=1,IF(ALB_MBD!$J16<>\" \",COUNTRY_INFO!F16+COUNTRY_INFO!G16-ALB_MBD!$J16,COUNTRY_INFO!F16+COUNTRY_INFO!G16), 0),0)","v":323304},{"$f":"IF(INTRO!$E$39<>\"Endemic\",0, IF(AND(COUNTRY_INFO!$I16=1,$F16<>0),IF(COUNTRY_INFO!N16>=(COUNTRY_INFO!F16+COUNTRY_INFO!G16),COUNTRY_INFO!F16+COUNTRY_INFO!G16,COUNTRY_INFO!$N16), 0))","v":323304},null,323304,0,0,905251.2,905251.2,null,905251.2,1811]
[{"$f":"IF(INTRO!$E$39=\"Non-endemic\",\" \",IF(COUNTRY_INFO!A17=0,\" \",COUNTRY_INFO!A17))","v":"CAR"},{"$f":"IF(INTRO!$E$39=\"Non-endemic\",\" \",IF(COUNTRY_INFO!B17=0,\" \",COUNTRY_INFO!B17))","v":"Région Sanitaire N°4"},{"$f":"IF(INTRO!$E$39=\"Non-endemic\",\" \",IF(COUNTRY_INFO!C17=0,\" \",COUNTRY_INFO!C17))","v":"Kémo"},{"$f":"IF(INTRO!$E$39=\"Non-endemic\",0,IF(INTRO!$E$39=\"Endemic but PC is not required\",IF(COUNTRY_INFO!$H17=1,COUNTRY_INFO!F17+COUNTRY_INFO!G17,0),IF(COUNTRY_INFO!$H17=1,COUNTRY_INFO!F17+COUNTRY_INFO!G17,IF(COUNTRY_INFO!$I17=1,IF(COUNTRY_INFO!N17>=(COUNTRY_INFO!F17+COUNTRY_INFO!G17),COUNTRY_INFO!F17+COUNTRY_INFO!G17,COUNTRY_INFO!$N17),0))))","v":138356},{"$f":"IF(AND(INTRO!$E$39=\"Non-endemic\",INTRO!$E$37=\"Non-endemic\"),\"Not required\",IF(INTRO!$E$39=\"Non-endemic\",\"Treat with DEC\",COUNTRY_INFO!Q17))","v":1},{"$f":"IF(INTRO!$E$39<>\"Non-endemic\",COUNTRY_INFO!R17,\"Not required\")","v":1},{"$f":"IF(COUNTRY_INFO!H17=1, IF($E17=1,IF(ALB_MBD!$J17<>\" \",COUNTRY_INFO!F17+COUNTRY_INFO!G17-ALB_MBD!$J17,COUNTRY_INFO!F17+COUNTRY_INFO!G17), 0),0)","v":138356},{"$f":"IF(INTRO!$E$39<>\"Endemic\",0, IF(AND(COUNTRY_INFO!$I17=1,$F17<>0),IF(COUNTRY_INFO!N17>=(COUNTRY_INFO!F17+COUNTRY_INFO!G17),COUNTRY_INFO!F17+COUNTRY_INFO!G17,COUNTRY_INFO!$N17), 0))","v":138356},null,138356,0,0,387396.8,387396.8,null,387396.8,775]
[{"$f":"IF(INTRO!$E$39=\"Non-endemic\",\" \",IF(COUNTRY_INFO!A18=0,\" \",COUNTRY_INFO!A18))","v":"CAR"},{"$f":"IF(INTRO!$E$39=\"Non-endemic\",\" \",IF(COUNTRY_INFO!B18=0,\" \",COUNTRY_INFO!B18))","v":"Région Sanitaire N°4"},{"$f":"IF(INTRO!$E$39=\"Non-endemic\",\" \",IF(COUNTRY_INFO!C18=0,\" \",COUNTRY_INFO!C18))","v":"Nana-Gribizi"},{"$f":"IF(INTRO!$E$39=\"Non-endemic\",0,IF(INTRO!$E$39=\"Endemic but PC is not required\",IF(COUNTRY_INFO!$H18=1,COUNTRY_INFO!F18+COUNTRY_INFO!G18,0),IF(COUNTRY_INFO!$H18=1,COUNTRY_INFO!F18+COUNTRY_INFO!G18,IF(COUNTRY_INFO!$I18=1,IF(COUNTRY_INFO!N18>=(COUNTRY_INFO!F18+COUNTRY_INFO!G18),COUNTRY_INFO!F18+COUNTRY_INFO!G18,COUNTRY_INFO!$N18),0))))","v":134864},{"$f":"IF(AND(INTRO!$E$39=\"Non-endemic\",INTRO!$E$37=\"Non-endemic\"),\"Not required\",IF(INTRO!$E$39=\"Non-endemic\",\"Treat with DEC\",COUNTRY_INFO!Q18))","v":0},{"$f":"IF(INTRO!$E$39<>\"Non-endemic\",COUNTRY_INFO!R18,\"Not required\")","v":1},{"$f":"IF(COUNTRY_INFO!H18=1, IF($E18=1,IF(ALB_MBD!$J18<>\" \",COUNTRY_INFO!F18+COUNTRY_INFO!G18-ALB_MBD!$J18,COUNTRY_INFO!F18+COUNTRY_INFO!G18), 0),0)","v":0},{"$f":"IF(INTRO!$E$39<>\"Endemic\",0, IF(AND(COUNTRY_INFO!$I18=1,$F18<>0),IF(COUNTRY_INFO!N18>=(COUNTRY_INFO!F18+COUNTRY_INFO!G18),COUNTRY_INFO!F18+COUNTRY_INFO!G18,COUNTRY_INFO!$N18), 0))","v":134864},null,134864,0,377619.19999999995,0,377619.19999999995,null,377619.19999999995,756]
[{"$f":"IF(INTRO!$E$39=\"Non-endemic\",\" \",IF(COUNTRY_INFO!A19=0,\" \",COUNTRY_INFO!A19))","v":"CAR"},{"$f":"IF(INTRO!$E$39=\"Non-endemic\",\" \",IF(COUNTRY_INFO!B19=0,\" \",COUNTRY_INFO!B19))","v":"Région Sanitaire N°5"},{"$f":"IF(INTRO!$E$39=\"Non-endemic\",\" \",IF(COUNTRY_INFO!C19=0,\" \",COUNTRY_INFO!C19))","v":"Haute-Kotto"},{"$f":"IF(INTRO!$E$39=\"Non-endemic\",0,IF(INTRO!$E$39=\"Endemic but PC is not required\",IF(COUNTRY_INFO!$H19=1,COUNTRY_INFO!F19+COUNTRY_INFO!G19,0),IF(COUNTRY_INFO!$H19=1,COUNTRY_INFO!F19+COUNTRY_INFO!G19,IF(COUNTRY_INFO!$I19=1,IF(COUNTRY_INFO!N19>=(COUNTRY_INFO!F19+COUNTRY_INFO!G19),COUNTRY_INFO!F19+COUNTRY_INFO!G19,COUNTRY_INFO!$N19),0))))","v":103383},{"$f":"IF(AND(INTRO!$E$39=\"Non-endemic\",INTRO!$E$37=\"Non-endemic\"),\"Not required\",IF(INTRO!$E$39=\"Non-endemic\",\"Treat with DEC\",COUNTRY_INFO!Q19))","v":0},{"$f":"IF(INTRO!$E$39<>\"Non-endemic\",COUNTRY_INFO!R19,\"Not required\")","v":1},{"$f":"IF(COUNTRY_INFO!H19=1, IF($E19=1,IF(ALB_MBD!$J19<>\" \",COUNTRY_INFO!F19+COUNTRY_INFO!G19-ALB_MBD!$J19,COUNTRY_INFO!F19+COUNTRY_INFO!G19), 0),0)","v":0},{"$f":"IF(INTRO!$E$39<>\"Endemic\",0, IF(AND(COUNTRY_INFO!$I19=1,$F19<>0),IF(COUNTRY_INFO!N19>=(COUNTRY_INFO!F19+COUNTRY_INFO!G19),COUNTRY_INFO!F19+COUNTRY_INFO!G19,COUNTRY_INFO!$N19), 0))","v":103383},null,103383,0,289472.39999999997,0,289472.39999999997,null,289472.39999999997,579]
[{"$f":"IF(INTRO!$E$39=\"Non-endemic\",\" \",IF(COUNTRY_INFO!A20=0,\" \",COUNTRY_INFO!A20))","v":"CAR"},{"$f":"IF(INTRO!$E$39=\"Non-endemic\",\" \",IF(COUNTRY_INFO!B20=0,\" \",COUNTRY_INFO!B20))","v":"Région Sanitaire N°5"},{"$f":"IF(INTRO!$E$39=\"Non-endemic\",\" \",IF(COUNTRY_INFO!C20=0,\" \",COUNTRY_INFO!C20))","v":"Bamingui-Bangoran"},{"$f":"IF(INTRO!$E$39=\"Non-endemic\",0,IF(INTRO!$E$39=\"Endemic but PC is not required\",IF(COUNTRY_INFO!$H20=1,COUNTRY_INFO!F20+COUNTRY_INFO!G20,0),IF(COUNTRY_INFO!$H20=1,COUNTRY_INFO!F20+COUNTRY_INFO!G20,IF(COUNTRY_INFO!$I20=1,IF(COUNTRY_INFO!N20>=(COUNTRY_INFO!F20+COUNTRY_INFO!G20),COUNTRY_INFO!F20+COUNTRY_INFO!G20,COUNTRY_INFO!$N20),0))))","v":49484},{"$f":"IF(AND(INTRO!$E$39=\"Non-endemic\",INTRO!$E$37=\"Non-endemic\"),\"Not required\",IF(INTRO!$E$39=\"Non-endemic\",\"Treat with DEC\",COUNTRY_INFO!Q20))","v":0},{"$f":"IF(INTRO!$E$39<>\"Non-endemic\",COUNTRY_INFO!R20,\"Not required\")","v":1},{"$f":"IF(COUNTRY_INFO!H20=1, IF($E20=1,IF(ALB_MBD!$J20<>\" \",COUNTRY_INFO!F20+COUNTRY_INFO!G20-ALB_MBD!$J20,COUNTRY_INFO!F20+COUNTRY_INFO!G20), 0),0)","v":0},{"$f":"IF(INTRO!$E$39<>\"Endemic\",0, IF(AND(COUNTRY_INFO!$I20=1,$F20<>0),IF(COUNTRY_INFO!N20>=(COUNTRY_INFO!F20+COUNTRY_INFO!G20),COUNTRY_INFO!F20+COUNTRY_INFO!G20,COUNTRY_INFO!$N20), 0))","v":49484},null,49484,0,138555.19999999998,0,138555.19999999998,null,138555.19999999998,278]
[{"$f":"IF(INTRO!$E$39=\"Non-endemic\",\" \",IF(COUNTRY_INFO!A21=0,\" \",COUNTRY_INFO!A21))","v":"CAR"},{"$f":"IF(INTRO!$E$39=\"Non-endemic\",\" \",IF(COUNTRY_INFO!B21=0,\" \",COUNTRY_INFO!B21))","v":"Région Sanitaire N°5"},{"$f":"IF(INTRO!$E$39=\"Non-endemic\",\" \",IF(COUNTRY_INFO!C21=0,\" \",COUNTRY_INFO!C21))","v":"Vakaga"},{"$f":"IF(INTRO!$E$39=\"Non-endemic\",0,IF(INTRO!$E$39=\"Endemic but PC is not required\",IF(COUNTRY_INFO!$H21=1,COUNTRY_INFO!F21+COUNTRY_INFO!G21,0),IF(COUNTRY_INFO!$H21=1,COUNTRY_INFO!F21+COUNTRY_INFO!G21,IF(COUNTRY_INFO!$I21=1,IF(COUNTRY_INFO!N21>=(COUNTRY_INFO!F21+COUNTRY_INFO!G21),COUNTRY_INFO!F21+COUNTRY_INFO!G21,COUNTRY_INFO!$N21),0))))","v":0},{"$f":"IF(AND(INTRO!$E$39=\"Non-endemic\",INTRO!$E$37=\"Non-endemic\"),\"Not required\",IF(INTRO!$E$39=\"Non-endemic\",\"Treat with DEC\",COUNTRY_INFO!Q21))","v":0},{"$f":"IF(INTRO!$E$39<>\"Non-endemic\",COUNTRY_INFO!R21,\"Not required\")","v":0},{"$f":"IF(COUNTRY_INFO!H21=1, IF($E21=1,IF(ALB_MBD!$J21<>\" \",COUNTRY_INFO!F21+COUNTRY_INFO!G21-ALB_MBD!$J21,COUNTRY_INFO!F21+COUNTRY_INFO!G21), 0),0)","v":0},{"$f":"IF(INTRO!$E$39<>\"Endemic\",0, IF(AND(COUNTRY_INFO!$I21=1,$F21<>0),IF(COUNTRY_INFO!N21>=(COUNTRY_INFO!F21+COUNTRY_INFO!G21),COUNTRY_INFO!F21+COUNTRY_INFO!G21,COUNTRY_INFO!$N21), 0))","v":0},null,0,0,0,0,0,null,0,0]
[{"$f":"IF(INTRO!$E$39=\"Non-endemic\",\" \",IF(COUNTRY_INFO!A22=0,\" \",COUNTRY_INFO!A22))","v":"CAR"},{"$f":"IF(INTRO!$E$39=\"Non-endemic\",\" \",IF(COUNTRY_INFO!B22=0,\" \",COUNTRY_INFO!B22))","v":"Région Sanitaire N°6"},{"$f":"IF(INTRO!$E$39=\"Non-endemic\",\" \",IF(COUNTRY_INFO!C22=0,\" \",COUNTRY_INFO!C22))","v":"Mbomou"},{"$f":"IF(INTRO!$E$39=\"Non-endemic\",0,IF(INTRO!$E$39=\"Endemic but PC is not required\",IF(COUNTRY_INFO!$H22=1,COUNTRY_INFO!F22+COUNTRY_INFO!G22,0),IF(COUNTRY_INFO!$H22=1,COUNTRY_INFO!F22+COUNTRY_INFO!G22,IF(COUNTRY_INFO!$I22=1,IF(COUNTRY_INFO!N22>=(COUNTRY_INFO!F22+COUNTRY_INFO!G22),COUNTRY_INFO!F22+COUNTRY_INFO!G22,COUNTRY_INFO!$N22),0))))","v":191626},{"$f":"IF(AND(INTRO!$E$39=\"Non-endemic\",INTRO!$E$37=\"Non-endemic\"),\"Not required\",IF(INTRO!$E$39=\"Non-endemic\",\"Treat with DEC\",COUNTRY_INFO!Q22))","v":1},{"$f":"IF(INTRO!$E$39<>\"Non-endemic\",COUNTRY_INFO!R22,\"Not required\")","v":1},{"$f":"IF(COUNTRY_INFO!H22=1, IF($E22=1,IF(ALB_MBD!$J22<>\" \",COUNTRY_INFO!F22+COUNTRY_INFO!G22-ALB_MBD!$J22,COUNTRY_INFO!F22+COUNTRY_INFO!G22), 0),0)","v":191626},{"$f":"IF(INTRO!$E$39<>\"Endemic\",0, IF(AND(COUNTRY_INFO!$I22=1,$F22<>0),IF(COUNTRY_INFO!N22>=(COUNTRY_INFO!F22+COUNTRY_INFO!G22),COUNTRY_INFO!F22+COUNTRY_INFO!G22,COUNTRY_INFO!$N22), 0))","v":191626},null,191626,0,0,536552.79999999993,536552.79999999993,null,536552.79999999993,1074]
[{"$f":"IF(INTRO!$E$39=\"Non-endemic\",\" \",IF(COUNTRY_INFO!A23=0,\" \",COUNTRY_INFO!A23))","v":"CAR"},{"$f":"IF(INTRO!$E$39=\"Non-endemic\",\" \",IF(COUNTRY_INFO!B23=0,\" \",COUNTRY_INFO!B23))","v":"Région Sanitaire N°6"},{"$f":"IF(INTRO!$E$39=\"Non-endemic\",\" \",IF(COUNTRY_INFO!C23=0,\" \",COUNTRY_INFO!C23))","v":"Basse-Kotto"},{"$f":"IF(INTRO!$E$39=\"Non-endemic\",0,IF(INTRO!$E$39=\"Endemic but PC is not required\",IF(COUNTRY_INFO!$H23=1,COUNTRY_INFO!F23+COUNTRY_INFO!G23,0),IF(COUNTRY_INFO!$H23=1,COUNTRY_INFO!F23+COUNTRY_INFO!G23,IF(COUNTRY_INFO!$I23=1,IF(COUNTRY_INFO!N23>=(COUNTRY_INFO!F23+COUNTRY_INFO!G23),COUNTRY_INFO!F23+COUNTRY_INFO!G23,COUNTRY_INFO!$N23),0))))","v":291104},{"$f":"IF(AND(INTRO!$E$39=\"Non-endemic\",INTRO!$E$37=\"Non-endemic\"),\"Not required\",IF(INTRO!$E$39=\"Non-endemic\",\"Treat with DEC\",COUNTRY_INFO!Q23))","v":1},{"$f":"IF(INTRO!$E$39<>\"Non-endemic\",COUNTRY_INFO!R23,\"Not required\")","v":1},{"$f":"IF(COUNTRY_INFO!H23=1, IF($E23=1,IF(ALB_MBD!$J23<>\" \",COUNTRY_INFO!F23+COUNTRY_INFO!G23-ALB_MBD!$J23,COUNTRY_INFO!F23+COUNTRY_INFO!G23), 0),0)","v":291104},{"$f":"IF(INTRO!$E$39<>\"Endemic\",0, IF(AND(COUNTRY_INFO!$I23=1,$F23<>0),IF(COUNTRY_INFO!N23>=(COUNTRY_INFO!F23+COUNTRY_INFO!G23),COUNTRY_INFO!F23+COUNTRY_INFO!G23,COUNTRY_INFO!$N23), 0))","v":291104},null,291104,0,0,815091.19999999995,815091.19999999995,null,815091.19999999995,1631]
[{"$f":"IF(INTRO!$E$39=\"Non-endemic\",\" \",IF(COUNTRY_INFO!A24=0,\" \",COUNTRY_INFO!A24))","v":"CAR"},{"$f":"IF(INTRO!$E$39=\"Non-endemic\",\" \",IF(COUNTRY_INFO!B24=0,\" \",COUNTRY_INFO!B24))","v":"Région Sanitaire N°6"},{"$f":"IF(INTRO!$E$39=\"Non-endemic\",\" \",IF(COUNTRY_INFO!C24=0,\" \",COUNTRY_INFO!C24))","v":"Haut-Mbomou"},{"$f":"IF(INTRO!$E$39=\"Non-endemic\",0,IF(INTRO!$E$39=\"Endemic but PC is not required\",IF(COUNTRY_INFO!$H24=1,COUNTRY_INFO!F24+COUNTRY_INFO!G24,0),IF(COUNTRY_INFO!$H24=1,COUNTRY_INFO!F24+COUNTRY_INFO!G24,IF(COUNTRY_INFO!$I24=1,IF(COUNTRY_INFO!N24>=(COUNTRY_INFO!F24+COUNTRY_INFO!G24),COUNTRY_INFO!F24+COUNTRY_INFO!G24,COUNTRY_INFO!$N24),0))))","v":65936},{"$f":"IF(AND(INTRO!$E$39=\"Non-endemic\",INTRO!$E$37=\"Non-endemic\"),\"Not required\",IF(INTRO!$E$39=\"Non-endemic\",\"Treat with DEC\",COUNTRY_INFO!Q24))","v":0},{"$f":"IF(INTRO!$E$39<>\"Non-endemic\",COUNTRY_INFO!R24,\"Not required\")","v":1},{"$f":"IF(COUNTRY_INFO!H24=1, IF($E24=1,IF(ALB_MBD!$J24<>\" \",COUNTRY_INFO!F24+COUNTRY_INFO!G24-ALB_MBD!$J24,COUNTRY_INFO!F24+COUNTRY_INFO!G24), 0),0)","v":0},{"$f":"IF(INTRO!$E$39<>\"Endemic\",0, IF(AND(COUNTRY_INFO!$I24=1,$F24<>0),IF(COUNTRY_INFO!N24>=(COUNTRY_INFO!F24+COUNTRY_INFO!G24),COUNTRY_INFO!F24+COUNTRY_INFO!G24,COUNTRY_INFO!$N24), 0))","v":65936},null,65936,0,184620.79999999999,0,184620.79999999999,null,184620.79999999999,370]
[{"$f":"IF(INTRO!$E$39=\"Non-endemic\",\" \",IF(COUNTRY_INFO!A25=0,\" \",COUNTRY_INFO!A25))","v":"CAR"},{"$f":"IF(INTRO!$E$39=\"Non-endemic\",\" \",IF(COUNTRY_INFO!B25=0,\" \",COUNTRY_INFO!B25))","v":"Région Sanitaire N°7"},{"$f":"IF(INTRO!$E$39=\"Non-endemic\",\" \",IF(COUNTRY_INFO!C25=0,\" \",COUNTRY_INFO!C25))","v":"BANGUI (8 Unités adm.)"},{"$f":"IF(INTRO!$E$39=\"Non-endemic\",0,IF(INTRO!$E$39=\"Endemic but PC is not required\",IF(COUNTRY_INFO!$H25=1,COUNTRY_INFO!F25+COUNTRY_INFO!G25,0),IF(COUNTRY_INFO!$H25=1,COUNTRY_INFO!F25+COUNTRY_INFO!G25,IF(COUNTRY_INFO!$I25=1,IF(COUNTRY_INFO!N25>=(COUNTRY_INFO!F25+COUNTRY_INFO!G25),COUNTRY_INFO!F25+COUNTRY_INFO!G25,COUNTRY_INFO!$N25),0))))","v":0},{"$f":"IF(AND(INTRO!$E$39=\"Non-endemic\",INTRO!$E$37=\"Non-endemic\"),\"Not required\",IF(INTRO!$E$39=\"Non-endemic\",\"Treat with DEC\",COUNTRY_INFO!Q25))","v":0},{"$f":"IF(INTRO!$E$39<>\"Non-endemic\",COUNTRY_INFO!R25,\"Not required\")","v":0},{"$f":"IF(COUNTRY_INFO!H25=1, IF($E25=1,IF(ALB_MBD!$J25<>\" \",COUNTRY_INFO!F25+COUNTRY_INFO!G25-ALB_MBD!$J25,COUNTRY_INFO!F25+COUNTRY_INFO!G25), 0),0)","v":0},{"$f":"IF(INTRO!$E$39<>\"Endemic\",0, IF(AND(COUNTRY_INFO!$I25=1,$F25<>0),IF(COUNTRY_INFO!N25>=(COUNTRY_INFO!F25+COUNTRY_INFO!G25),COUNTRY_INFO!F25+COUNTRY_INFO!G25,COUNTRY_INFO!$N25), 0))","v":0},null,0,0,0,0,0,null,0,0]

{"sheet":"SUMMARY","index":6,"n_rows":92,"n_cols":8,"rows_kept":92,"cut":false,"hidden":false,"merged":[[0,2,0,7],[25,1,25,7],[1,1,1,7],[2,1,2,5],[3,1,3,7],[4,1,4,7],[5,2,5,5],[6,1,6,7],[9,1,10,1],[9,2,9,5],[9,6,9,7],[21,2,24,5],[62,1,62,7],[63,1,63,7],[48,5,48,6],[30,2,30,3],[30,4,30,5],[30,6,30,7],[40,5,40,6],[41,5,41,6],[42,5,42,6],[43,5,43,6],[44,5,44,6],[45,5,45,6],[46,5,46,6],[47,5,47,6],[56,1,56,7],[57,1,57,7],[58,1,58,7],[59,1,59,7],[61,1,61,7],[49,5,49,6],[50,5,50,6],[53,1,53,7],[54,1,54,7],[55,1,55,7],[74,2,74,3],[74,4,74,5],[75,2,75,3],[75,4,75,5],[64,1,64,7],[65,1,65,7],[67,1,67,7],[68,1,68,7],[72,2,72,3],[72,4,72,5],[96,1,96,7],[76,2,76,3],[76,4,76,5],[78,1,78,7],[79,1,79,7],[80,1,80,7],[84,1,84,7],[85,1,85,7],[90,1,90,7],[91,1,91,7],[81,2,81,7],[82,2,82,7]]}
[null,null,"The current version should be used in countries endemic for Loasis"]
[null,"Joint request for selected PC medicines"]
[]
[null,"This form constitutes an official government request to WHO for the supply of the PC medicines. It can be submitted any time before 15 August of the current year for distribution of medicines during the following year, but at least 6-8 months before the planned PC intervention(s) to allow time for reviewing and approval of the request, placing order, manufacturing PC medicines and shipment to the country."]
[]
[null,"Country",{"$f":"IF(INTRO!$E$33<>0,INTRO!$E$33,\" \")","v":"CAR"},null,null,null,"Year",{"$f":"IF(INTRO!$E$35<>0,INTRO!$E$35,\" \")","v":2018}]
[]
[null,"Information on PC medicines requested to WHO"]
[]
[null,"PC medicine","Number of tablets",null,null,null,"Total number of bottles"]
[null,null,"Required","In stock","In pipeline","Requested","Required","Requested"]
[null,"Albendazole for LF",3287853,0,null,{"$f":"IF(C12>(D12+E12),C12-D12-E12, 0)","v":3287853},{"$f":"IF($C12=0,0, IF($B12=\"Albendazole for LF\", IF($C12=(ALB_MBD!$U$4+ALB_MBD!$V$4),ALB_MBD!$W$4,ROUNDUP($C12/200,0)), IF($B12=\"Albendazole for STH (SAC)\", IF($C12=ALB_MBD!$N$4,ALB_MBD!$Z$4,ROUNDUP($C12/200,0)), IF($B12=\"Mebendazole (SAC)\", IF($C12=ALB_MBD!$R$4,ALB_MBD!$AC$4,ROUNDUP($C12/150,0)), IF($B12=\"Diethylcarbamazine citrate\", IF($C12=DEC!$J$4,DEC!$M$4,ROUNDUP($C12/1000,0)), IF($B12=\"Praziquantel (SAC)\", IF($C12=PZQ!$O$4,PZQ!$R$4,ROUNDUP($C12/1000,0)), IF($B12=\"Ivermectin\", IF($C12=IVM!$N$4,IVM!$Q$4,$C12/500+0.49),0)))))))","v":16443},{"$f":"IF($F12=0,0,IF(OR($B12=\"Albendazole for LF\",$B12=\"Albendazole for STH (SAC)\"),$G12-ROUNDUP(($E12+$D12)/200,0),IF($B12=\"Ivermectin\",$G12-ROUNDUP(($E12+$D12)/500,0),IF($B12=\"Mebendazole (SAC)\",$G12-ROUNDUP(($E12+$D12)/150,0),$G12-ROUNDUP(($E12+$D12)/1000,0)))))","v":16443}]
[null,"Ivermectin",6491707.6000000006,0,null,6491707.6000000006,{"$f":"IF($C13=0,0, IF($B13=\"Albendazole for LF\", IF($C13=(ALB_MBD!$U$4+ALB_MBD!$V$4),ALB_MBD!$W$4,ROUNDUP($C13/200,0)), IF($B13=\"Albendazole for STH (SAC)\", IF($C13=ALB_MBD!$N$4,ALB_MBD!$Z$4,ROUNDUP($C13/200,0)), IF($B13=\"Mebendazole (SAC)\", IF($C13=ALB_MBD!$R$4,ALB_MBD!$AC$4,ROUNDUP($C13/150,0)), IF($B13=\"Diethylcarbamazine citrate\", IF($C13=DEC!$J$4,DEC!$M$4,ROUNDUP($C13/1000,0)), IF($B13=\"Praziquantel (SAC)\", IF($C13=PZQ!$O$4,PZQ!$R$4,ROUNDUP($C13/1000,0)), IF($B13=\"Ivermectin\", IF($C13=IVM!$N$4,IVM!$Q$4,$C13/500+0.49),0)))))))","v":12991},{"$f":"IF($F13=0,0,IF(OR($B13=\"Albendazole for LF\",$B13=\"Albendazole for STH (SAC)\"),$G13-ROUNDUP(($E13+$D13)/200,0),IF($B13=\"Ivermectin\",$G13-ROUNDUP(($E13+$D13)/500,0),IF($B13=\"Mebendazole (SAC)\",$G13-ROUNDUP(($E13+$D13)/150,0),$G13-ROUNDUP(($E13+$D13)/1000,0)))))","v":12991}]
[null,"Praziquantel (SAC)",1408905,0,null,1408905,{"$f":"IF($C14=0,0, IF($B14=\"Albendazole for LF\", IF($C14=(ALB_MBD!$U$4+ALB_MBD!$V$4),ALB_MBD!$W$4,ROUNDUP($C14/200,0)), IF($B14=\"Albendazole for STH (SAC)\", IF($C14=ALB_MBD!$N$4,ALB_MBD!$Z$4,ROUNDUP($C14/200,0)), IF($B14=\"Mebendazole (SAC)\", IF($C14=ALB_MBD!$R$4,ALB_MBD!$AC$4,ROUNDUP($C14/150,0)), IF($B14=\"Diethylcarbamazine citrate\", IF($C14=DEC!$J$4,DEC!$M$4,ROUNDUP($C14/1000,0)), IF($B14=\"Praziquantel (SAC)\", IF($C14=PZQ!$O$4,PZQ!$R$4,ROUNDUP($C14/1000,0)), IF($B14=\"Ivermectin\", IF($C14=IVM!$N$4,IVM!$Q$4,$C14/500+0.49),0)))))))","v":1411},1411]
[null,null,0,0,null,0,{"$f":"IF($C15=0,0, IF($B15=\"Albendazole for LF\", IF($C15=(ALB_MBD!$U$4+ALB_MBD!$V$4),ALB_MBD!$W$4,ROUNDUP($C15/200,0)), IF($B15=\"Albendazole for STH (SAC)\", IF($C15=ALB_MBD!$N$4,ALB_MBD!$Z$4,ROUNDUP($C15/200,0)), IF($B15=\"Mebendazole (SAC)\", IF($C15=ALB_MBD!$R$4,ALB_MBD!$AC$4,ROUNDUP($C15/150,0)), IF($B15=\"Diethylcarbamazine citrate\", IF($C15=DEC!$J$4,DEC!$M$4,ROUNDUP($C15/1000,0)), IF($B15=\"Praziquantel (SAC)\", IF($C15=PZQ!$O$4,PZQ!$R$4,ROUNDUP($C15/1000,0)), IF($B15=\"Ivermectin\", IF($C15=IVM!$N$4,IVM!$Q$4,$C15/500+0.49),0)))))))","v":0},0]
[null,null,0,0,null,0,{"$f":"IF($C16=0,0, IF($B16=\"Albendazole for LF\", IF($C16=(ALB_MBD!$U$4+ALB_MBD!$V$4),ALB_MBD!$W$4,ROUNDUP($C16/200,0)), IF($B16=\"Albendazole for STH (SAC)\", IF($C16=ALB_MBD!$N$4,ALB_MBD!$Z$4,ROUNDUP($C16/200,0)), IF($B16=\"Mebendazole (SAC)\", IF($C16=ALB_MBD!$R$4,ALB_MBD!$AC$4,ROUNDUP($C16/150,0)), IF($B16=\"Diethylcarbamazine citrate\", IF($C16=DEC!$J$4,DEC!$M$4,ROUNDUP($C16/1000,0)), IF($B16=\"Praziquantel (SAC)\", IF($C16=PZQ!$O$4,PZQ!$R$4,ROUNDUP($C16/1000,0)), IF($B16=\"Ivermectin\", IF($C16=IVM!$N$4,IVM!$Q$4,$C16/500+0.49),0)))))))","v":0},0]
[null,null,0,0,null,0,{"$f":"IF($C17=0,0, IF($B17=\"Albendazole for LF\", IF($C17=(ALB_MBD!$U$4+ALB_MBD!$V$4),ALB_MBD!$W$4,ROUNDUP($C17/200,0)), IF($B17=\"Albendazole for STH (SAC)\", IF($C17=ALB_MBD!$N$4,ALB_MBD!$Z$4,ROUNDUP($C17/200,0)), IF($B17=\"Mebendazole (SAC)\", IF($C17=ALB_MBD!$R$4,ALB_MBD!$AC$4,ROUNDUP($C17/150,0)), IF($B17=\"Diethylcarbamazine citrate\", IF($C17=DEC!$J$4,DEC!$M$4,ROUNDUP($C17/1000,0)), IF($B17=\"Praziquantel (SAC)\", IF($C17=PZQ!$O$4,PZQ!$R$4,ROUNDUP($C17/1000,0)), IF($B17=\"Ivermectin\", IF($C17=IVM!$N$4,IVM!$Q$4,$C17/500+0.49),0)))))))","v":0},0]
[]
[null,"Number of people to be treated with donated medicine ( see User Guide for details )"]
[]
[null,"Disease",null,null,null,null,"Round 1","Round 2"]
[null,"Lymphatic filariasis","These figures are estimated only for targeted \nage groups to be treated with donated \nmedicines in areas where treatment for specific disease is required",null,null,null,2168605," "]
[null,"Onchocerciasis",null,null,null,null,2213500,0]
[null,"Schistosomiasis",null,null,null,null,563562," "]
[null,"Soil-transmitted helminthiases",null,null,null,null,595324,0]
[]
[]
[]
[null,"Information on planned PC interventions"]
[]
[null,"PC medicine","Planned date of the \n1st round of PC",null,"Planned date of the \n2nd round of PC",null,"Date by which the medicine \nshould arrive to the national warehouse"]
[null,"Albendazole for LF","October",2018,"March",null,"March",2018]
[null,"Ivermectin","October",2018,null,null,"March",2018]
[null,"Praziquantel","October",2018,null,null,"March",2018]
[null,"Albendazole for STH"]
[]
[]
[]
[null,"Information on PC medicines for treatment of population not targeted with current donation through WHO"]
[]
[null,"PC medicine","Age group","# of people","# of tablets","Specify source",null,"Status"]
[]
[]
[]
[]
[]
[]
[]
[]
[]
[]
[]
[null,"Checklist"]
[null,"Submission"]
[null,"What should be submitted?"]
[null,"The supply of the requested medicines should be based on up-to-date epidemiological data, specific usage plans, and capacity for implementation. The following checklist ensures that all necessary forms and information are provided to WHO (in electronic format). "]
[null,"Joint request for selected PC medicines"]
[null,"Joint reporting form"]
[null,"PC epidemiological data reporting form"]
[]
[null,"Availability of funding for implementation"]
[]
[null,"Financial resources secured for the implementation in the year for which the medicines are requested"]
[null,"Financement en cours de négociation avec les Partenaires CBM et END FUND"]
[]
[]
[]
[null,"Who should fill in the form? "]
[null,"National NTD coordinator should compile all required information needed to complete the request form. In the absence of such a coordinator, specific programme managers should coordinate their respective part. The final single request must be approved by the Ministry of Health."]
[]
[null,"Information on person(s) who has filled in the form"]
[]
[null,"Title ","Name",null,"Phone",null,"Email","Date"]
[null,"Data Manager","M. Richard YAMA",null,"00 (236) 72 50 67 60 ",null,"ryama110@gmail.com"]
[]
[]
[]
[]
[null,"The WHO recommends that all serious adverse events suspected to be associated with use of PC medicines should be reported in accordance with national Pharmacovigilance guidelines. In the absence of a national Pharmacovigilance system, contact the WHO Neglected Tropical Disease department for guidance."]
[null,"The WHO is committed to facilitate PC medicines donation with a free-of-charge supply of a) albendazole, mebendazole and praziquantel to the MoH’s national warehouse; and b) diethylcarbamazine citrate to the entry port/airport of recipient countries."]
[null,"The institution submitting the present request is responsible for a) arranging the offloading of the medicines from the truck and storing it in the national warehouse and subsequent shipment to the final distribution centres; b) for registering the donated medicine, if required, by the relevant national regulatory authorities; and c) for informing about any changes of their PC campaigns (e.g. postpone of the planned MDA date, replacement of NTD coordinator, etc.)."]
[null,"Name and signature of NTD coordinator or Ministry of Health representative","Dr Innocent NAGUEZAMBA-NGOUBA"]
[null,"Date:","2017-09-19"]
[]
[null,"Please complete information on shipment and consignee in the workshsheet SHIPMENT"]
[null,"Please send the national request (signed and in electronic format) to the concerned WR with copy to:"]
[]
[null,"WHO headquarters","PC_JointForms@who.int"]
[null,"WHO Regional Office","Regional Advisor for NTD"]
[null,"Mectizan donation program","Dr Yao Sodahlon, email: ysodahlon@taskforce.org"]
[]
[null,"Please note that your request will be reviewed by an independent panel before approval. The information in this form, joint reporting form and PC epidemiological data reporting form are essential for WHO to ensure efficient usage of medicines. As part of its ongoing monitoring and evaluation activities, and to meet its contractual obligations to donors and other partners, WHO and its appointed agents reserve the right to periodically inspect stocks of the medicines at country level."]

{"sheet":"SHIPMENT","index":7,"n_rows":48,"n_cols":8,"rows_kept":48,"cut":false,"hidden":false,"merged":[[6,1,6,7],[0,1,0,7],[1,1,1,7],[2,1,2,5],[3,2,3,5],[4,1,4,7],[15,2,15,4],[15,5,15,7],[7,2,7,4],[7,5,7,7],[8,2,8,4],[9,2,9,4],[16,2,16,4],[16,5,16,7],[17,2,17,4],[17,5,17,7],[18,2,18,4],[18,5,18,7],[25,2,25,4],[25,5,25,7],[19,2,19,4],[19,5,19,7],[20,2,20,4],[20,5,20,7],[21,2,21,4],[21,5,21,7],[22,2,22,4],[22,5,22,7],[23,2,23,4],[23,5,23,7],[24,1,24,7],[29,2,29,4],[29,5,29,7],[30,2,30,4],[30,5,30,7],[31,2,31,4],[31,5,31,7],[26,2,26,4],[26,5,26,7],[27,2,27,4],[27,5,27,7],[28,2,28,4],[28,5,28,7],[42,1,42,6],[43,1,43,7],[45,1,45,7],[47,1,56,7],[32,5,32,7],[34,1,34,7],[36,1,36,7],[37,1,37,6],[41,1,41,6],[39,1,39,6],[40,1,40,7],[38,1,38,5],[32,2,32,4]]}
[]
[null,"Joint request for selected PC medicines"]
[]
[null,"Country",{"$f":"IF(INTRO!$E$33<>0,INTRO!$E$33,\" \")","v":"CAR"},null,null,null,"Year",{"$f":"IF(INTRO!$E$35<>0,INTRO!$E$35,\" \")","v":2018}]
[]
[null,"Information on shipment and consignee "]
[]
[null,null,"Consignee",null,null,"Delivery point / Final recipient\nif different from the consignee"]
[null,"Name","Dr Léonard TAPSOBA",null,null,"Dr Innocent NAGUEZAMBA"]
[null,"Department/Unit",null,null,null,"Ministère de la Santé/Coordination Programme MTN"]
[null,"Organization","Organisation Mondiale de la Santé (OMS)"]
[null,"Phone","00 (236) 21 61 02 88",null,null,"00 (236) 72 63 03 70 / 75 37 42 61"]
[null,"Fax","00 (236) 21 61 01 37",null,null,"Néant"," "]
[null,"E-mail","tapsobal@who.int",null,null,"innocent_naguez@yahoo.fr"]
[null,"Mailing address","B.P 1416 Bangui/République Centrafricaine",null,null,"Bangui/République Centrafricaine (RCA)"]
[]
[null,null,"Consignee",null,null,"Delivery point / Final recipient\nif different from the consignee"]
[null,"Name"]
[null,"Department/Unit"]
[null,"Organization"]
[null,"Phone"]
[null,"Fax"]
[null,"E-mail"]
[null,"Mailing address"]
[]
[null,null,"Consignee",null,null,"Delivery point / Final recipient\nif different from the consignee"]
[null,"Name"]
[null,"Department/Unit"]
[null,"Organization"]
[null,"Phone"]
[null,"Fax"]
[null,"E-mail"]
[null,"Mailing address"]
[]
[]
[null,"Information on import requirements"]
[]
[null,"Is the Import Permit required?",null,null,null,null,null,"No"]
[null,"How long does it take to obtain the Import Permit?",null,null,null,null,null,"Weeks"]
[null,"Do you require any documents to be submitted together with the Import Permit application?",null,null,null,null,null,"No"]
[null,"If YES, please specify here"]
[null,"Does the consignee have to get customs clearance before the shipment can proceed?",null,null,null,null,null,"No"]
[null,"Is there any additional information may be helpful in ensuring timely clearance and delivery of medicines to your country? ",null,null,null,null,null,"No"]
[null,"If YES, please specify here"]
[]
[null,"Additional information"]
[]
[null,"Par ailleurs, il restait une quantité impotante d'Ivermectine (818 979 Cp),  Albendazole (193 703 Cp) et Praziquantel (74 423 CP). Les restes des médicaments  mentionnés sont purement théoriques, le disponible réel en stock n'existe plus, suite aux actes de vandalisme et pillage commis par les groupes armés dans certaines formations sanitaires du pays. Il convient de noter que ces restes de médicaments étaient gardés dans les centres/postes de santé pour le rattrapage des absents.\n\nLes médicaments pour les MTN sont exonérés des taxes de douane. Toutefois, il faudra prévoir les frais de transit et souvent c'est le Bureau OMS/Pays qui s'en charge puis livre les médicaments envoyés par les firmes pharmaceutiques au programme MTN. Il convient de souligner qu'en RCA, 4 préfectures sont coendémiques à la Filariose lymphatique et à Loase, ce qui nécessite un traitement de masse avec l'Albendazole en monothérapie. Le premier tour va concerner 8 préfectures et le second 4 préfectures seulement (la moitié des 8)."]